Body,Body Name,Posted Fiscal Date,Amount,Transaction Number,Supplier Name,Directorate,Service,Activity,Cost Centre Name,Subjective Name
http://opendatacommunities.org/doc/london-borough-council/havering,London Borough of Havering,26/01/2016,480.00,JAN2016L10,The Camden Society,"Children, Adults & Housing",Adult Services,Learning Disabilities,Learning Disability Support,DAYCARE - PRIVATE CONTRACTORS PAYMENT
http://opendatacommunities.org/doc/london-borough-council/havering,London Borough of Havering,06/01/2016,850.00,JAN2016L96,University of East London,"Children, Adults & Housing",Safeguarding - Quality and Assurance,Learning and Development,Learning and Development,STAFF DEVELOPMENT AND TRAINING
http://opendatacommunities.org/doc/london-borough-council/havering,London Borough of Havering,12/01/2016,9647.50,JAN2016L125,Alzheimer's Society.,"Children, Adults & Housing",Adult Services,Strategy and Commissioning,Mental Health Commissioning,PAYMENTS TO VOLUNTARY SECTOR
http://opendatacommunities.org/doc/london-borough-council/havering,London Borough of Havering,12/01/2016,10568.00,JAN2016L126,Alzheimer's Society.,"Children, Adults & Housing",Adult Services,Strategy and Commissioning,Mental Health Commissioning,PAYMENTS TO VOLUNTARY SECTOR
http://opendatacommunities.org/doc/london-borough-council/havering,London Borough of Havering,12/01/2016,3666.60,JAN2016L127,Alzheimer's Society.,"Children, Adults & Housing",Adult Services,Strategy and Commissioning,Mental Health Commissioning,PAYMENTS TO VOLUNTARY SECTOR
http://opendatacommunities.org/doc/london-borough-council/havering,London Borough of Havering,12/01/2016,7000.00,JAN2016L133,London Borough of Newham,"Children, Adults & Housing",Adult Services,Transforming Health and Social Care,NHS Support for Social Care,PRIVATE CONTRACTORS PAYMENT - OTHER
http://opendatacommunities.org/doc/london-borough-council/havering,London Borough of Havering,12/01/2016,1777.50,JAN2016L139,Havering Disabled Sports Association,"Children, Adults & Housing",Adult Services,Strategy and Commissioning,Carers Commissioning,PAYMENTS TO VOLUNTARY SECTOR
http://opendatacommunities.org/doc/london-borough-council/havering,London Borough of Havering,08/01/2016,1849.04,JAN2016L158,Cedars Care Home for the Elderly_a,"Children, Adults & Housing",Adult Services,Adult Community Team,Physical Support,RESIDENTIAL PLACEMENTS - PRIVATE CONTRACTORS PAYMENT
http://opendatacommunities.org/doc/london-borough-council/havering,London Borough of Havering,07/01/2016,447.63,JAN2016L161,British Gas Trading Ltd t/as British Gas Business,"Children, Adults & Housing",Mental Health,Mental Health - Non Section 75,81 Maybank Avenue,GAS
http://opendatacommunities.org/doc/london-borough-council/havering,London Borough of Havering,07/01/2016,464.87,JAN2016L162,British Gas Trading Ltd t/as British Gas Business,"Children, Adults & Housing",Mental Health,Mental Health - Non Section 75,79 Maybank Avenue,GAS
http://opendatacommunities.org/doc/london-borough-council/havering,London Borough of Havering,14/01/2016,4736.00,JAN2016L185,Virgin Media Payments Ltd,"Children, Adults & Housing",Adult Services,Prevention,Yew Tree Lodge Admin&Bldg,RESPONSIVE REPAIRS - BUILDING
http://opendatacommunities.org/doc/london-borough-council/havering,London Borough of Havering,12/01/2016,1200.00,JAN2016L194,Parasol Ltd,"Children, Adults & Housing",Adult Services,Transforming Health and Social Care,Care Act Programme,CONSULTANCY FEES
http://opendatacommunities.org/doc/london-borough-council/havering,London Borough of Havering,12/01/2016,1800.00,JAN2016L195,Parasol Ltd,"Children, Adults & Housing",Adult Services,Transforming Health and Social Care,Care Act Programme,CONSULTANCY FEES
http://opendatacommunities.org/doc/london-borough-council/havering,London Borough of Havering,12/01/2016,600.00,JAN2016L196,Parasol Ltd,"Children, Adults & Housing",Adult Services,Transforming Health and Social Care,Care Act Programme,CONSULTANCY FEES
http://opendatacommunities.org/doc/london-borough-council/havering,London Borough of Havering,21/01/2016,2000.00,JAN2016L197,Parasol Ltd,"Children, Adults & Housing",Adult Services,Transforming Health and Social Care,Care Act Programme,CONSULTANCY FEES
http://opendatacommunities.org/doc/london-borough-council/havering,London Borough of Havering,26/01/2016,2000.00,JAN2016L198,Parasol Ltd,"Children, Adults & Housing",Adult Services,Transforming Health and Social Care,Care Act Programme,CONSULTANCY FEES
http://opendatacommunities.org/doc/london-borough-council/havering,London Borough of Havering,26/01/2016,1600.00,JAN2016L199,Parasol Ltd,"Children, Adults & Housing",Adult Services,Transforming Health and Social Care,Care Act Programme,CONSULTANCY FEES
http://opendatacommunities.org/doc/london-borough-council/havering,London Borough of Havering,26/01/2016,950.00,JAN2016L205,Lakefield Enterprises Ltd t/a R J Bowyer Building Services,"Children, Adults & Housing",Adult Services,Prevention,Adaptations,"PURCHASE - EQUIPMENT, FURNITURE AND MATERIALS"
http://opendatacommunities.org/doc/london-borough-council/havering,London Borough of Havering,18/01/2016,434.00,JAN2016L207,Citibank Europe Plc,"Children, Adults & Housing",Adult Services,Adult Community Team,Sensory Support,DIRECT PAYMENTS
http://opendatacommunities.org/doc/london-borough-council/havering,London Borough of Havering,18/01/2016,1799.64,JAN2016L209,Citibank Europe Plc,"Children, Adults & Housing",Adult Services,Learning Disabilities,Learning Disability Support,DIRECT PAYMENTS
http://opendatacommunities.org/doc/london-borough-council/havering,London Borough of Havering,18/01/2016,2150.58,JAN2016L210,Citibank Europe Plc,"Children, Adults & Housing",Adult Services,Adult Community Team,Support to Carer,DIRECT PAYMENTS
http://opendatacommunities.org/doc/london-borough-council/havering,London Borough of Havering,18/01/2016,5528.77,JAN2016L211,Citibank Europe Plc,"Children, Adults & Housing",Adult Services,Adult Community Team,Physical Support,DIRECT PAYMENTS
http://opendatacommunities.org/doc/london-borough-council/havering,London Borough of Havering,20/01/2016,758.00,JAN2016L212,Child Bereavement Charity,"Children, Adults & Housing",Safeguarding - Quality and Assurance,Learning and Development,Social Work Improvement Team,STAFF DEVELOPMENT AND TRAINING
http://opendatacommunities.org/doc/london-borough-council/havering,London Borough of Havering,07/01/2016,1600.00,JAN2016L290,St. Francis Hospice,"Children, Adults & Housing",Safeguarding - Quality and Assurance,Learning and Development,Learning and Development,STAFF DEVELOPMENT AND TRAINING
http://opendatacommunities.org/doc/london-borough-council/havering,London Borough of Havering,19/01/2016,1496.99,JAN2016L311,Marula House Ltd,"Children, Adults & Housing",Mental Health,Mental Health - Non Section 75,Mental Health Support,LONG TERM SUPPORT - COMMUNITY: SUPPORTED LIVING
http://opendatacommunities.org/doc/london-borough-council/havering,London Borough of Havering,19/01/2016,1324.01,JAN2016L312,Marula House Ltd,"Children, Adults & Housing",Mental Health,Mental Health - Non Section 75,Mental Health Support,LONG TERM SUPPORT - COMMUNITY: SUPPORTED LIVING
http://opendatacommunities.org/doc/london-borough-council/havering,London Borough of Havering,19/01/2016,1237.83,JAN2016L313,Marula House Ltd,"Children, Adults & Housing",Mental Health,Mental Health - Non Section 75,Mental Health Support,LONG TERM SUPPORT - COMMUNITY: SUPPORTED LIVING
http://opendatacommunities.org/doc/london-borough-council/havering,London Borough of Havering,19/01/2016,3277.01,JAN2016L314,Marula House Ltd,"Children, Adults & Housing",Mental Health,Mental Health - Non Section 75,Mental Health Support,LONG TERM SUPPORT - COMMUNITY: SUPPORTED LIVING
http://opendatacommunities.org/doc/london-borough-council/havering,London Borough of Havering,19/01/2016,1736.00,JAN2016L315,Marula House Ltd,"Children, Adults & Housing",Mental Health,Mental Health - Non Section 75,Mental Health Support,LONG TERM SUPPORT - COMMUNITY: SUPPORTED LIVING
http://opendatacommunities.org/doc/london-borough-council/havering,London Borough of Havering,19/01/2016,665.52,JAN2016L327,Headway East London,"Children, Adults & Housing",Adult Services,Adult Community Team,Support for Social Isolation - Other,DAYCARE - PRIVATE CONTRACTORS PAYMENT
http://opendatacommunities.org/doc/london-borough-council/havering,London Borough of Havering,08/01/2016,8480.00,JAN2016L333,Cambian Learning Disabilities Ltd,"Children, Adults & Housing",Adult Services,Learning Disabilities,Learning Disability Support,RESIDENTIAL PLACEMENTS - PRIVATE CONTRACTORS PAYMENT
http://opendatacommunities.org/doc/london-borough-council/havering,London Borough of Havering,21/01/2016,1648.00,JAN2016L337,Skyguard Ltd,"Children, Adults & Housing",Adult Services,Transforming Health and Social Care,NHS Support for Social Care,"PURCHASE - EQUIPMENT, FURNITURE AND MATERIALS"
http://opendatacommunities.org/doc/london-borough-council/havering,London Borough of Havering,21/01/2016,1800.00,JAN2016L338,Skyguard Ltd,"Children, Adults & Housing",Adult Services,Transforming Health and Social Care,NHS Support for Social Care,"PURCHASE - EQUIPMENT, FURNITURE AND MATERIALS"
http://opendatacommunities.org/doc/london-borough-council/havering,London Borough of Havering,21/01/2016,2400.00,JAN2016L339,Skyguard Ltd,"Children, Adults & Housing",Adult Services,Transforming Health and Social Care,NHS Support for Social Care,"PURCHASE - EQUIPMENT, FURNITURE AND MATERIALS"
http://opendatacommunities.org/doc/london-borough-council/havering,London Borough of Havering,07/01/2016,789.00,JAN2016L414,The Knowledge Academy Limited,"Children, Adults & Housing",Safeguarding - Quality and Assurance,Learning and Development,Learning and Development,STAFF DEVELOPMENT AND TRAINING
http://opendatacommunities.org/doc/london-borough-council/havering,London Borough of Havering,04/01/2016,1080.00,JAN2016L428,ACAS,"Children, Adults & Housing",Safeguarding - Quality and Assurance,Learning and Development,Learning and Development,STAFF DEVELOPMENT AND TRAINING
http://opendatacommunities.org/doc/london-borough-council/havering,London Borough of Havering,25/01/2016,790.00,JAN2016L432,Michael Mandelstam Ltd,"Children, Adults & Housing",Safeguarding - Quality and Assurance,Learning and Development,Learning and Development,STAFF DEVELOPMENT AND TRAINING
http://opendatacommunities.org/doc/london-borough-council/havering,London Borough of Havering,21/01/2016,945.00,JAN2016L480,Action First iPeople Ltd,"Children, Adults & Housing",Adult Services,Prevention,Adult Protection,PRIVATE CONTRACTORS PAYMENT - OTHER
http://opendatacommunities.org/doc/london-borough-council/havering,London Borough of Havering,21/01/2016,1260.00,JAN2016L481,Action First iPeople Ltd,"Children, Adults & Housing",Adult Services,Prevention,Adult Protection,PRIVATE CONTRACTORS PAYMENT - OTHER
http://opendatacommunities.org/doc/london-borough-council/havering,London Borough of Havering,21/01/2016,1890.00,JAN2016L482,Action First iPeople Ltd,"Children, Adults & Housing",Adult Services,Prevention,Adult Protection,PRIVATE CONTRACTORS PAYMENT - OTHER
http://opendatacommunities.org/doc/london-borough-council/havering,London Borough of Havering,21/01/2016,945.00,JAN2016L483,Action First iPeople Ltd,"Children, Adults & Housing",Adult Services,Prevention,Adult Protection,PRIVATE CONTRACTORS PAYMENT - OTHER
http://opendatacommunities.org/doc/london-borough-council/havering,London Borough of Havering,21/01/2016,630.00,JAN2016L484,Action First iPeople Ltd,"Children, Adults & Housing",Adult Services,Prevention,Adult Protection,PRIVATE CONTRACTORS PAYMENT - OTHER
http://opendatacommunities.org/doc/london-borough-council/havering,London Borough of Havering,21/01/2016,630.00,JAN2016L485,Action First iPeople Ltd,"Children, Adults & Housing",Adult Services,Prevention,Adult Protection,PRIVATE CONTRACTORS PAYMENT - OTHER
http://opendatacommunities.org/doc/london-borough-council/havering,London Borough of Havering,22/01/2016,1260.00,JAN2016L486,Action First iPeople Ltd,"Children, Adults & Housing",Adult Services,Prevention,Adult Protection,PRIVATE CONTRACTORS PAYMENT - OTHER
http://opendatacommunities.org/doc/london-borough-council/havering,London Borough of Havering,22/01/2016,700.00,JAN2016L487,Action First iPeople Ltd,"Children, Adults & Housing",Adult Services,Prevention,Adult Protection,PRIVATE CONTRACTORS PAYMENT - OTHER
http://opendatacommunities.org/doc/london-borough-council/havering,London Borough of Havering,22/01/2016,1575.00,JAN2016L488,Action First iPeople Ltd,"Children, Adults & Housing",Adult Services,Prevention,Adult Protection,PRIVATE CONTRACTORS PAYMENT - OTHER
http://opendatacommunities.org/doc/london-borough-council/havering,London Borough of Havering,22/01/2016,1575.00,JAN2016L489,Action First iPeople Ltd,"Children, Adults & Housing",Adult Services,Prevention,Adult Protection,PRIVATE CONTRACTORS PAYMENT - OTHER
http://opendatacommunities.org/doc/london-borough-council/havering,London Borough of Havering,22/01/2016,980.00,JAN2016L490,Action First iPeople Ltd,"Children, Adults & Housing",Adult Services,Prevention,Adult Protection,PRIVATE CONTRACTORS PAYMENT - OTHER
http://opendatacommunities.org/doc/london-borough-council/havering,London Borough of Havering,22/01/2016,630.00,JAN2016L491,Action First iPeople Ltd,"Children, Adults & Housing",Adult Services,Prevention,Adult Protection,PRIVATE CONTRACTORS PAYMENT - OTHER
http://opendatacommunities.org/doc/london-borough-council/havering,London Borough of Havering,26/01/2016,1157.30,JAN2016L496,Misco,"Children, Adults & Housing",Adult Services,Transforming Health and Social Care,Care Act Programme,ICT HARDWARE
http://opendatacommunities.org/doc/london-borough-council/havering,London Borough of Havering,19/01/2016,1305.27,JAN2016L516,Mears Care Ltd,"Children, Adults & Housing",Adult Services,Adult Community Team,Physical Support,HOME CARE - PRIVATE CONTRACTORS PAYMENT
http://opendatacommunities.org/doc/london-borough-council/havering,London Borough of Havering,19/01/2016,1334.71,JAN2016L517,Mears Care Ltd,"Children, Adults & Housing",Adult Services,Adult Community Team,Physical Support,HOME CARE - PRIVATE CONTRACTORS PAYMENT
http://opendatacommunities.org/doc/london-borough-council/havering,London Borough of Havering,19/01/2016,722.60,JAN2016L518,Mears Care Ltd,"Children, Adults & Housing",Adult Services,Adult Community Team,Physical Support,HOME CARE - PRIVATE CONTRACTORS PAYMENT
http://opendatacommunities.org/doc/london-borough-council/havering,London Borough of Havering,19/01/2016,411.61,JAN2016L519,Mears Care Ltd,"Children, Adults & Housing",Adult Services,Adult Community Team,Physical Support,HOME CARE - PRIVATE CONTRACTORS PAYMENT
http://opendatacommunities.org/doc/london-borough-council/havering,London Borough of Havering,19/01/2016,428.78,JAN2016L520,Mears Care Ltd,"Children, Adults & Housing",Adult Services,Adult Community Team,Physical Support,HOME CARE - PRIVATE CONTRACTORS PAYMENT
http://opendatacommunities.org/doc/london-borough-council/havering,London Borough of Havering,19/01/2016,452.43,JAN2016L521,Mears Care Ltd,"Children, Adults & Housing",Adult Services,Adult Community Team,Physical Support,HOME CARE - PRIVATE CONTRACTORS PAYMENT
http://opendatacommunities.org/doc/london-borough-council/havering,London Borough of Havering,19/01/2016,1618.45,JAN2016L522,Mears Care Ltd,"Children, Adults & Housing",Adult Services,Adult Community Team,Physical Support,HOME CARE - PRIVATE CONTRACTORS PAYMENT
http://opendatacommunities.org/doc/london-borough-council/havering,London Borough of Havering,19/01/2016,608.10,JAN2016L523,Mears Care Ltd,"Children, Adults & Housing",Adult Services,Adult Community Team,Physical Support,HOME CARE - PRIVATE CONTRACTORS PAYMENT
http://opendatacommunities.org/doc/london-borough-council/havering,London Borough of Havering,19/01/2016,620.72,JAN2016L524,Mears Care Ltd,"Children, Adults & Housing",Adult Services,Adult Community Team,Support with Memory & Cognition,HOME CARE - PRIVATE CONTRACTORS PAYMENT
http://opendatacommunities.org/doc/london-borough-council/havering,London Borough of Havering,19/01/2016,619.77,JAN2016L525,Mears Care Ltd,"Children, Adults & Housing",Adult Services,Adult Community Team,Physical Support,HOME CARE - PRIVATE CONTRACTORS PAYMENT
http://opendatacommunities.org/doc/london-borough-council/havering,London Borough of Havering,19/01/2016,812.73,JAN2016L526,Mears Care Ltd,"Children, Adults & Housing",Adult Services,Adult Community Team,Physical Support,HOME CARE - PRIVATE CONTRACTORS PAYMENT
http://opendatacommunities.org/doc/london-borough-council/havering,London Borough of Havering,19/01/2016,582.66,JAN2016L527,Mears Care Ltd,"Children, Adults & Housing",Adult Services,Adult Community Team,Physical Support,HOME CARE - PRIVATE CONTRACTORS PAYMENT
http://opendatacommunities.org/doc/london-borough-council/havering,London Borough of Havering,19/01/2016,5968.68,JAN2016L535,NAS Services Limited,"Children, Adults & Housing",Adult Services,Learning Disabilities,Learning Disability Support,HOME CARE - PRIVATE CONTRACTORS PAYMENT
http://opendatacommunities.org/doc/london-borough-council/havering,London Borough of Havering,07/01/2016,5968.68,JAN2016L536,NAS Services Limited,"Children, Adults & Housing",Adult Services,Learning Disabilities,Learning Disability Support,HOME CARE - PRIVATE CONTRACTORS PAYMENT
http://opendatacommunities.org/doc/london-borough-council/havering,London Borough of Havering,08/01/2016,1951.80,JAN2016L539,Bupa Care Homes - Hutton Village_a,"Children, Adults & Housing",Adult Services,Adult Community Team,Physical Support,NURSING HOMES - PRIVATE CONTRACTORS PAYMENT
http://opendatacommunities.org/doc/london-borough-council/havering,London Borough of Havering,12/01/2016,2350.75,JAN2016L540,Romford YMCA Ltd_a,"Children, Adults & Housing",Adult Services,Strategy and Commissioning,Carers Commissioning,PAYMENTS TO VOLUNTARY SECTOR
http://opendatacommunities.org/doc/london-borough-council/havering,London Borough of Havering,08/01/2016,-1203.84,JAN2016L541,Priory Supporting Care Ltd_a,"Children, Adults & Housing",Adult Services,Adult Community Team,Physical Support,RESIDENTIAL CARE INCOME
http://opendatacommunities.org/doc/london-borough-council/havering,London Borough of Havering,08/01/2016,4889.23,JAN2016L542,Priory Supporting Care Ltd_a,"Children, Adults & Housing",Adult Services,Adult Community Team,Physical Support,RESIDENTIAL PLACEMENTS - PRIVATE CONTRACTORS PAYMENT
http://opendatacommunities.org/doc/london-borough-council/havering,London Borough of Havering,08/01/2016,2139.04,JAN2016L543,Priory Supporting Care Ltd_a,"Children, Adults & Housing",Adult Services,Adult Community Team,Physical Support,RESIDENTIAL PLACEMENTS - PRIVATE CONTRACTORS PAYMENT
http://opendatacommunities.org/doc/london-borough-council/havering,London Borough of Havering,08/01/2016,1849.04,JAN2016L544,Priory Supporting Care Ltd_a,"Children, Adults & Housing",Adult Services,Adult Community Team,Physical Support,RESIDENTIAL PLACEMENTS - PRIVATE CONTRACTORS PAYMENT
http://opendatacommunities.org/doc/london-borough-council/havering,London Borough of Havering,08/01/2016,2139.04,JAN2016L545,Priory Supporting Care Ltd_a,"Children, Adults & Housing",Adult Services,Adult Community Team,Physical Support,RESIDENTIAL PLACEMENTS - PRIVATE CONTRACTORS PAYMENT
http://opendatacommunities.org/doc/london-borough-council/havering,London Borough of Havering,08/01/2016,1849.04,JAN2016L546,Priory Supporting Care Ltd_a,"Children, Adults & Housing",Adult Services,Adult Community Team,Physical Support,RESIDENTIAL PLACEMENTS - PRIVATE CONTRACTORS PAYMENT
http://opendatacommunities.org/doc/london-borough-council/havering,London Borough of Havering,08/01/2016,2139.04,JAN2016L547,Priory Supporting Care Ltd_a,"Children, Adults & Housing",Adult Services,Adult Community Team,Support with Memory & Cognition,RESIDENTIAL PLACEMENTS - PRIVATE CONTRACTORS PAYMENT
http://opendatacommunities.org/doc/london-borough-council/havering,London Borough of Havering,08/01/2016,3000.00,JAN2016L548,Priory Supporting Care Ltd_a,"Children, Adults & Housing",Adult Services,Adult Community Team,Physical Support,RESIDENTIAL PLACEMENTS - PRIVATE CONTRACTORS PAYMENT
http://opendatacommunities.org/doc/london-borough-council/havering,London Borough of Havering,08/01/2016,-1182.40,JAN2016L549,Priory Supporting Care Ltd_a,"Children, Adults & Housing",Adult Services,Adult Community Team,Physical Support,RESIDENTIAL CARE INCOME
http://opendatacommunities.org/doc/london-borough-council/havering,London Borough of Havering,08/01/2016,1849.04,JAN2016L550,Priory Supporting Care Ltd_a,"Children, Adults & Housing",Adult Services,Adult Community Team,Physical Support,RESIDENTIAL PLACEMENTS - PRIVATE CONTRACTORS PAYMENT
http://opendatacommunities.org/doc/london-borough-council/havering,London Borough of Havering,08/01/2016,-526.68,JAN2016L551,Priory Supporting Care Ltd_a,"Children, Adults & Housing",Adult Services,Adult Community Team,Physical Support,RESIDENTIAL CARE INCOME
http://opendatacommunities.org/doc/london-borough-council/havering,London Borough of Havering,08/01/2016,2139.04,JAN2016L552,Priory Supporting Care Ltd_a,"Children, Adults & Housing",Adult Services,Adult Community Team,Physical Support,RESIDENTIAL PLACEMENTS - PRIVATE CONTRACTORS PAYMENT
http://opendatacommunities.org/doc/london-borough-council/havering,London Borough of Havering,08/01/2016,-505.20,JAN2016L553,Priory Supporting Care Ltd_a,"Children, Adults & Housing",Adult Services,Adult Community Team,Physical Support,RESIDENTIAL CARE INCOME
http://opendatacommunities.org/doc/london-borough-council/havering,London Borough of Havering,08/01/2016,2139.04,JAN2016L554,Priory Supporting Care Ltd_a,"Children, Adults & Housing",Adult Services,Adult Community Team,Physical Support,RESIDENTIAL PLACEMENTS - PRIVATE CONTRACTORS PAYMENT
http://opendatacommunities.org/doc/london-borough-council/havering,London Borough of Havering,08/01/2016,-533.60,JAN2016L555,Priory Supporting Care Ltd_a,"Children, Adults & Housing",Adult Services,Adult Community Team,Physical Support,RESIDENTIAL CARE INCOME
http://opendatacommunities.org/doc/london-borough-council/havering,London Borough of Havering,08/01/2016,2139.04,JAN2016L556,Priory Supporting Care Ltd_a,"Children, Adults & Housing",Adult Services,Adult Community Team,Physical Support,RESIDENTIAL PLACEMENTS - PRIVATE CONTRACTORS PAYMENT
http://opendatacommunities.org/doc/london-borough-council/havering,London Borough of Havering,08/01/2016,-505.20,JAN2016L557,Priory Supporting Care Ltd_a,"Children, Adults & Housing",Adult Services,Adult Community Team,Physical Support,RESIDENTIAL CARE INCOME
http://opendatacommunities.org/doc/london-borough-council/havering,London Borough of Havering,08/01/2016,1849.04,JAN2016L558,Priory Supporting Care Ltd_a,"Children, Adults & Housing",Adult Services,Adult Community Team,Physical Support,RESIDENTIAL PLACEMENTS - PRIVATE CONTRACTORS PAYMENT
http://opendatacommunities.org/doc/london-borough-council/havering,London Borough of Havering,08/01/2016,-497.92,JAN2016L559,Priory Supporting Care Ltd_a,"Children, Adults & Housing",Adult Services,Adult Community Team,Support with Memory & Cognition,RESIDENTIAL CARE INCOME
http://opendatacommunities.org/doc/london-borough-council/havering,London Borough of Havering,08/01/2016,2139.04,JAN2016L560,Priory Supporting Care Ltd_a,"Children, Adults & Housing",Adult Services,Adult Community Team,Support with Memory & Cognition,RESIDENTIAL PLACEMENTS - PRIVATE CONTRACTORS PAYMENT
http://opendatacommunities.org/doc/london-borough-council/havering,London Borough of Havering,08/01/2016,-497.20,JAN2016L561,Priory Supporting Care Ltd_a,"Children, Adults & Housing",Adult Services,Adult Community Team,Physical Support,RESIDENTIAL CARE INCOME
http://opendatacommunities.org/doc/london-borough-council/havering,London Borough of Havering,08/01/2016,1849.04,JAN2016L562,Priory Supporting Care Ltd_a,"Children, Adults & Housing",Adult Services,Adult Community Team,Physical Support,RESIDENTIAL PLACEMENTS - PRIVATE CONTRACTORS PAYMENT
http://opendatacommunities.org/doc/london-borough-council/havering,London Borough of Havering,08/01/2016,-637.90,JAN2016L564,Ash Grove Residential Care Home_a,"Children, Adults & Housing",Adult Services,Adult Community Team,Physical Support,RESIDENTIAL CARE INCOME
http://opendatacommunities.org/doc/london-borough-council/havering,London Borough of Havering,08/01/2016,2311.30,JAN2016L565,Ash Grove Residential Care Home_a,"Children, Adults & Housing",Adult Services,Adult Community Team,Physical Support,RESIDENTIAL PLACEMENTS - PRIVATE CONTRACTORS PAYMENT
http://opendatacommunities.org/doc/london-borough-council/havering,London Borough of Havering,08/01/2016,2139.04,JAN2016L566,Ash Grove Residential Care Home_a,"Children, Adults & Housing",Adult Services,Adult Community Team,Physical Support,RESIDENTIAL PLACEMENTS - PRIVATE CONTRACTORS PAYMENT
http://opendatacommunities.org/doc/london-borough-council/havering,London Borough of Havering,08/01/2016,2139.04,JAN2016L567,Ash Grove Residential Care Home_a,"Children, Adults & Housing",Adult Services,Adult Community Team,Physical Support,RESIDENTIAL PLACEMENTS - PRIVATE CONTRACTORS PAYMENT
http://opendatacommunities.org/doc/london-borough-council/havering,London Borough of Havering,08/01/2016,1849.04,JAN2016L568,Ash Grove Residential Care Home_a,"Children, Adults & Housing",Adult Services,Adult Community Team,Physical Support,RESIDENTIAL PLACEMENTS - PRIVATE CONTRACTORS PAYMENT
http://opendatacommunities.org/doc/london-borough-council/havering,London Borough of Havering,08/01/2016,-911.12,JAN2016L569,Ash Grove Residential Care Home_a,"Children, Adults & Housing",Adult Services,Adult Community Team,Physical Support,RESIDENTIAL CARE INCOME
http://opendatacommunities.org/doc/london-borough-council/havering,London Borough of Havering,08/01/2016,2139.04,JAN2016L570,Ash Grove Residential Care Home_a,"Children, Adults & Housing",Adult Services,Adult Community Team,Physical Support,RESIDENTIAL PLACEMENTS - PRIVATE CONTRACTORS PAYMENT
http://opendatacommunities.org/doc/london-borough-council/havering,London Borough of Havering,08/01/2016,-709.36,JAN2016L571,Ash Grove Residential Care Home_a,"Children, Adults & Housing",Adult Services,Adult Community Team,Support with Memory & Cognition,RESIDENTIAL CARE INCOME
http://opendatacommunities.org/doc/london-borough-council/havering,London Borough of Havering,08/01/2016,2139.04,JAN2016L572,Ash Grove Residential Care Home_a,"Children, Adults & Housing",Adult Services,Adult Community Team,Support with Memory & Cognition,RESIDENTIAL PLACEMENTS - PRIVATE CONTRACTORS PAYMENT
http://opendatacommunities.org/doc/london-borough-council/havering,London Borough of Havering,08/01/2016,-505.20,JAN2016L573,Ash Grove Residential Care Home_a,"Children, Adults & Housing",Adult Services,Adult Community Team,Support for Social Isolation - Other,RESIDENTIAL CARE INCOME
http://opendatacommunities.org/doc/london-borough-council/havering,London Borough of Havering,08/01/2016,1849.04,JAN2016L574,Ash Grove Residential Care Home_a,"Children, Adults & Housing",Adult Services,Adult Community Team,Support for Social Isolation - Other,RESIDENTIAL PLACEMENTS - PRIVATE CONTRACTORS PAYMENT
http://opendatacommunities.org/doc/london-borough-council/havering,London Borough of Havering,08/01/2016,-510.32,JAN2016L575,Ash Grove Residential Care Home_a,"Children, Adults & Housing",Adult Services,Adult Community Team,Physical Support,RESIDENTIAL CARE INCOME
http://opendatacommunities.org/doc/london-borough-council/havering,London Borough of Havering,08/01/2016,1849.04,JAN2016L576,Ash Grove Residential Care Home_a,"Children, Adults & Housing",Adult Services,Adult Community Team,Physical Support,RESIDENTIAL PLACEMENTS - PRIVATE CONTRACTORS PAYMENT
http://opendatacommunities.org/doc/london-borough-council/havering,London Borough of Havering,08/01/2016,1298.70,JAN2016L577,Ash Grove Residential Care Home_a,"Children, Adults & Housing",Adult Services,Adult Community Team,Physical Support,RESIDENTIAL PLACEMENTS - PRIVATE CONTRACTORS PAYMENT
http://opendatacommunities.org/doc/london-borough-council/havering,London Borough of Havering,08/01/2016,3235.47,JAN2016L578,Ash Grove Residential Care Home_a,"Children, Adults & Housing",Adult Services,Adult Community Team,Physical Support,RESPITE CARE - PRIVATE CONTRACTORS PAYMENT
http://opendatacommunities.org/doc/london-borough-council/havering,London Borough of Havering,12/01/2016,963.20,JAN2016L579,Carers Trust EHHR_a,"Children, Adults & Housing",Adult Services,Adult Community Team,Physical Support,HOME CARE - PRIVATE CONTRACTORS PAYMENT
http://opendatacommunities.org/doc/london-borough-council/havering,London Borough of Havering,12/01/2016,604.31,JAN2016L580,Carers Trust EHHR_a,"Children, Adults & Housing",Adult Services,Learning Disabilities,Learning Disability Support,HOME CARE - PRIVATE CONTRACTORS PAYMENT
http://opendatacommunities.org/doc/london-borough-council/havering,London Borough of Havering,12/01/2016,957.74,JAN2016L581,Carers Trust EHHR_a,"Children, Adults & Housing",Adult Services,Adult Community Team,Physical Support,HOME CARE - PRIVATE CONTRACTORS PAYMENT
http://opendatacommunities.org/doc/london-borough-council/havering,London Borough of Havering,12/01/2016,413.04,JAN2016L582,Carers Trust EHHR_a,"Children, Adults & Housing",Adult Services,Learning Disabilities,Learning Disability Support,HOME CARE - PRIVATE CONTRACTORS PAYMENT
http://opendatacommunities.org/doc/london-borough-council/havering,London Borough of Havering,12/01/2016,444.17,JAN2016L583,Carers Trust EHHR_a,"Children, Adults & Housing",Adult Services,Learning Disabilities,Learning Disability Support,HOME CARE - PRIVATE CONTRACTORS PAYMENT
http://opendatacommunities.org/doc/london-borough-council/havering,London Borough of Havering,12/01/2016,9373.00,JAN2016L584,Carers Trust EHHR_a,"Children, Adults & Housing",Adult Services,Strategy and Commissioning,Carers Commissioning,PAYMENTS TO VOLUNTARY SECTOR
http://opendatacommunities.org/doc/london-borough-council/havering,London Borough of Havering,12/01/2016,5228.64,JAN2016L585,Carers Trust EHHR_a,"Children, Adults & Housing",Adult Services,Strategy and Commissioning,Carers Commissioning,PAYMENTS TO VOLUNTARY SECTOR
http://opendatacommunities.org/doc/london-borough-council/havering,London Borough of Havering,08/01/2016,2033.96,JAN2016L586,Bupa Care Homes - Ghyll Grove_a,"Children, Adults & Housing",Adult Services,Adult Community Team,Physical Support,NURSING HOMES - PRIVATE CONTRACTORS PAYMENT
http://opendatacommunities.org/doc/london-borough-council/havering,London Borough of Havering,08/01/2016,2139.04,JAN2016L587,Bupa Care Homes - Ghyll Grove_a,"Children, Adults & Housing",Adult Services,Adult Community Team,Support with Memory & Cognition,RESIDENTIAL PLACEMENTS - PRIVATE CONTRACTORS PAYMENT
http://opendatacommunities.org/doc/london-borough-council/havering,London Borough of Havering,08/01/2016,-561.88,JAN2016L588,Squirrels Nursing & Residential Home_a,"Children, Adults & Housing",Adult Services,Adult Community Team,Physical Support,RESIDENTIAL CARE INCOME
http://opendatacommunities.org/doc/london-borough-council/havering,London Borough of Havering,08/01/2016,2139.04,JAN2016L589,Squirrels Nursing & Residential Home_a,"Children, Adults & Housing",Adult Services,Adult Community Team,Physical Support,RESIDENTIAL PLACEMENTS - PRIVATE CONTRACTORS PAYMENT
http://opendatacommunities.org/doc/london-borough-council/havering,London Borough of Havering,08/01/2016,4804.68,JAN2016L590,Clacton Family Trust_a,"Children, Adults & Housing",Adult Services,Learning Disabilities,Learning Disability Support,RESIDENTIAL PLACEMENTS - PRIVATE CONTRACTORS PAYMENT
http://opendatacommunities.org/doc/london-borough-council/havering,London Borough of Havering,08/01/2016,4853.12,JAN2016L591,Clacton Family Trust_a,"Children, Adults & Housing",Adult Services,Learning Disabilities,Learning Disability Support,RESIDENTIAL PLACEMENTS - PRIVATE CONTRACTORS PAYMENT
http://opendatacommunities.org/doc/london-borough-council/havering,London Borough of Havering,08/01/2016,4248.76,JAN2016L592,Clacton Family Trust_a,"Children, Adults & Housing",Adult Services,Learning Disabilities,Learning Disability Support,RESIDENTIAL PLACEMENTS - PRIVATE CONTRACTORS PAYMENT
http://opendatacommunities.org/doc/london-borough-council/havering,London Borough of Havering,08/01/2016,1798.64,JAN2016L593,Langley House_a,"Children, Adults & Housing",Adult Services,Adult Community Team,Support with Memory & Cognition,RESIDENTIAL PLACEMENTS - PRIVATE CONTRACTORS PAYMENT
http://opendatacommunities.org/doc/london-borough-council/havering,London Borough of Havering,08/01/2016,1849.04,JAN2016L594,Langley House_a,"Children, Adults & Housing",Adult Services,Adult Community Team,Physical Support,RESIDENTIAL PLACEMENTS - PRIVATE CONTRACTORS PAYMENT
http://opendatacommunities.org/doc/london-borough-council/havering,London Borough of Havering,08/01/2016,2139.04,JAN2016L595,Langley House_a,"Children, Adults & Housing",Adult Services,Adult Community Team,Support with Memory & Cognition,RESIDENTIAL PLACEMENTS - PRIVATE CONTRACTORS PAYMENT
http://opendatacommunities.org/doc/london-borough-council/havering,London Borough of Havering,08/01/2016,1849.04,JAN2016L596,Langley House_a,"Children, Adults & Housing",Adult Services,Adult Community Team,Physical Support,RESIDENTIAL PLACEMENTS - PRIVATE CONTRACTORS PAYMENT
http://opendatacommunities.org/doc/london-borough-council/havering,London Borough of Havering,08/01/2016,2139.04,JAN2016L597,Langley House_a,"Children, Adults & Housing",Adult Services,Adult Community Team,Physical Support,RESIDENTIAL PLACEMENTS - PRIVATE CONTRACTORS PAYMENT
http://opendatacommunities.org/doc/london-borough-council/havering,London Borough of Havering,08/01/2016,-512.32,JAN2016L598,Langley House_a,"Children, Adults & Housing",Adult Services,Adult Community Team,Physical Support,RESIDENTIAL CARE INCOME
http://opendatacommunities.org/doc/london-borough-council/havering,London Borough of Havering,08/01/2016,2139.04,JAN2016L599,Langley House_a,"Children, Adults & Housing",Adult Services,Adult Community Team,Physical Support,RESIDENTIAL PLACEMENTS - PRIVATE CONTRACTORS PAYMENT
http://opendatacommunities.org/doc/london-borough-council/havering,London Borough of Havering,08/01/2016,-603.84,JAN2016L600,Langley House_a,"Children, Adults & Housing",Adult Services,Adult Community Team,Physical Support,RESIDENTIAL CARE INCOME
http://opendatacommunities.org/doc/london-borough-council/havering,London Borough of Havering,08/01/2016,1849.04,JAN2016L601,Langley House_a,"Children, Adults & Housing",Adult Services,Adult Community Team,Physical Support,RESIDENTIAL PLACEMENTS - PRIVATE CONTRACTORS PAYMENT
http://opendatacommunities.org/doc/london-borough-council/havering,London Borough of Havering,08/01/2016,-1254.36,JAN2016L602,Langley House_a,"Children, Adults & Housing",Adult Services,Adult Community Team,Support with Memory & Cognition,RESIDENTIAL CARE INCOME
http://opendatacommunities.org/doc/london-borough-council/havering,London Borough of Havering,08/01/2016,2139.04,JAN2016L603,Langley House_a,"Children, Adults & Housing",Adult Services,Adult Community Team,Support with Memory & Cognition,RESIDENTIAL PLACEMENTS - PRIVATE CONTRACTORS PAYMENT
http://opendatacommunities.org/doc/london-borough-council/havering,London Borough of Havering,08/01/2016,-498.52,JAN2016L604,Langley House_a,"Children, Adults & Housing",Adult Services,Adult Community Team,Physical Support,RESIDENTIAL CARE INCOME
http://opendatacommunities.org/doc/london-borough-council/havering,London Borough of Havering,08/01/2016,1849.04,JAN2016L605,Langley House_a,"Children, Adults & Housing",Adult Services,Adult Community Team,Physical Support,RESIDENTIAL PLACEMENTS - PRIVATE CONTRACTORS PAYMENT
http://opendatacommunities.org/doc/london-borough-council/havering,London Borough of Havering,08/01/2016,-817.04,JAN2016L606,Langley House_a,"Children, Adults & Housing",Adult Services,Adult Community Team,Physical Support,RESIDENTIAL CARE INCOME
http://opendatacommunities.org/doc/london-borough-council/havering,London Borough of Havering,08/01/2016,2139.04,JAN2016L607,Langley House_a,"Children, Adults & Housing",Adult Services,Adult Community Team,Physical Support,RESIDENTIAL PLACEMENTS - PRIVATE CONTRACTORS PAYMENT
http://opendatacommunities.org/doc/london-borough-council/havering,London Borough of Havering,08/01/2016,-3268.16,JAN2016L608,Langley House_a,"Children, Adults & Housing",Adult Services,Adult Community Team,Physical Support,RESIDENTIAL CARE INCOME
http://opendatacommunities.org/doc/london-borough-council/havering,London Borough of Havering,08/01/2016,8556.16,JAN2016L609,Langley House_a,"Children, Adults & Housing",Adult Services,Adult Community Team,Physical Support,RESIDENTIAL PLACEMENTS - PRIVATE CONTRACTORS PAYMENT
http://opendatacommunities.org/doc/london-borough-council/havering,London Borough of Havering,08/01/2016,-8479.77,JAN2016L610,Langley House_a,"Children, Adults & Housing",Adult Services,Adult Community Team,Physical Support,RESIDENTIAL PLACEMENTS - PRIVATE CONTRACTORS PAYMENT
http://opendatacommunities.org/doc/london-borough-council/havering,London Borough of Havering,08/01/2016,2002.76,JAN2016L611,Langley House_a,"Children, Adults & Housing",Adult Services,Adult Community Team,Physical Support,RESIDENTIAL CARE INCOME
http://opendatacommunities.org/doc/london-borough-council/havering,London Borough of Havering,08/01/2016,2900.00,JAN2016L612,Ebury Court_a,"Children, Adults & Housing",Adult Services,Learning Disabilities,Learning Disability Support,RESIDENTIAL PLACEMENTS - PRIVATE CONTRACTORS PAYMENT
http://opendatacommunities.org/doc/london-borough-council/havering,London Borough of Havering,08/01/2016,1831.12,JAN2016L613,Ebury Court_a,"Children, Adults & Housing",Adult Services,Adult Community Team,Physical Support,RESIDENTIAL PLACEMENTS - PRIVATE CONTRACTORS PAYMENT
http://opendatacommunities.org/doc/london-borough-council/havering,London Borough of Havering,08/01/2016,2033.96,JAN2016L614,Ebury Court_a,"Children, Adults & Housing",Adult Services,Adult Community Team,Physical Support,NURSING HOMES - PRIVATE CONTRACTORS PAYMENT
http://opendatacommunities.org/doc/london-borough-council/havering,London Borough of Havering,08/01/2016,3000.00,JAN2016L615,Ebury Court_a,"Children, Adults & Housing",Adult Services,Adult Community Team,Physical Support,RESIDENTIAL PLACEMENTS - PRIVATE CONTRACTORS PAYMENT
http://opendatacommunities.org/doc/london-borough-council/havering,London Borough of Havering,08/01/2016,-637.92,JAN2016L616,Ebury Court_a,"Children, Adults & Housing",Adult Services,Adult Community Team,Physical Support,RESIDENTIAL CARE INCOME
http://opendatacommunities.org/doc/london-borough-council/havering,London Borough of Havering,08/01/2016,2139.04,JAN2016L617,Ebury Court_a,"Children, Adults & Housing",Adult Services,Adult Community Team,Physical Support,RESIDENTIAL PLACEMENTS - PRIVATE CONTRACTORS PAYMENT
http://opendatacommunities.org/doc/london-borough-council/havering,London Borough of Havering,08/01/2016,-890.72,JAN2016L618,Ebury Court_a,"Children, Adults & Housing",Adult Services,Adult Community Team,Physical Support,RESIDENTIAL CARE INCOME
http://opendatacommunities.org/doc/london-borough-council/havering,London Borough of Havering,08/01/2016,2139.04,JAN2016L619,Ebury Court_a,"Children, Adults & Housing",Adult Services,Adult Community Team,Physical Support,RESIDENTIAL PLACEMENTS - PRIVATE CONTRACTORS PAYMENT
http://opendatacommunities.org/doc/london-borough-council/havering,London Borough of Havering,08/01/2016,-1123.32,JAN2016L620,Ebury Court_a,"Children, Adults & Housing",Adult Services,Adult Community Team,Physical Support,RESIDENTIAL CARE INCOME
http://opendatacommunities.org/doc/london-borough-council/havering,London Borough of Havering,08/01/2016,2139.04,JAN2016L621,Ebury Court_a,"Children, Adults & Housing",Adult Services,Adult Community Team,Support with Memory & Cognition,RESIDENTIAL PLACEMENTS - PRIVATE CONTRACTORS PAYMENT
http://opendatacommunities.org/doc/london-borough-council/havering,London Borough of Havering,08/01/2016,2675.20,JAN2016L632,The Cottage Residential Care Home_a,"Children, Adults & Housing",Adult Services,Learning Disabilities,Learning Disability Support,RESIDENTIAL PLACEMENTS - PRIVATE CONTRACTORS PAYMENT
http://opendatacommunities.org/doc/london-borough-council/havering,London Borough of Havering,08/01/2016,2689.16,JAN2016L633,The Hornchurch Nursing Centre_a,"Children, Adults & Housing",Adult Services,Adult Community Team,Support with Memory & Cognition,NURSING HOMES - PRIVATE CONTRACTORS PAYMENT
http://opendatacommunities.org/doc/london-borough-council/havering,London Borough of Havering,08/01/2016,2139.04,JAN2016L634,The Hornchurch Nursing Centre_a,"Children, Adults & Housing",Adult Services,Adult Community Team,Physical Support,RESIDENTIAL PLACEMENTS - PRIVATE CONTRACTORS PAYMENT
http://opendatacommunities.org/doc/london-borough-council/havering,London Borough of Havering,08/01/2016,1970.92,JAN2016L635,The Hornchurch Nursing Centre_a,"Children, Adults & Housing",Adult Services,Adult Community Team,Physical Support,NURSING HOMES - PRIVATE CONTRACTORS PAYMENT
http://opendatacommunities.org/doc/london-borough-council/havering,London Borough of Havering,08/01/2016,-576.00,JAN2016L636,The Hornchurch Nursing Centre_a,"Children, Adults & Housing",Adult Services,Adult Community Team,Physical Support,NURSING CARE INCOME
http://opendatacommunities.org/doc/london-borough-council/havering,London Borough of Havering,08/01/2016,1970.92,JAN2016L637,The Hornchurch Nursing Centre_a,"Children, Adults & Housing",Adult Services,Adult Community Team,Physical Support,NURSING HOMES - PRIVATE CONTRACTORS PAYMENT
http://opendatacommunities.org/doc/london-borough-council/havering,London Borough of Havering,08/01/2016,-505.20,JAN2016L638,The Hornchurch Nursing Centre_a,"Children, Adults & Housing",Adult Services,Adult Community Team,Physical Support,NURSING CARE INCOME
http://opendatacommunities.org/doc/london-borough-council/havering,London Borough of Havering,08/01/2016,2033.96,JAN2016L639,The Hornchurch Nursing Centre_a,"Children, Adults & Housing",Adult Services,Adult Community Team,Physical Support,NURSING HOMES - PRIVATE CONTRACTORS PAYMENT
http://opendatacommunities.org/doc/london-borough-council/havering,London Borough of Havering,08/01/2016,-910.84,JAN2016L640,The Hornchurch Nursing Centre_a,"Children, Adults & Housing",Adult Services,Adult Community Team,Physical Support,NURSING CARE INCOME
http://opendatacommunities.org/doc/london-borough-council/havering,London Borough of Havering,08/01/2016,1970.92,JAN2016L641,The Hornchurch Nursing Centre_a,"Children, Adults & Housing",Adult Services,Adult Community Team,Physical Support,NURSING HOMES - PRIVATE CONTRACTORS PAYMENT
http://opendatacommunities.org/doc/london-borough-council/havering,London Borough of Havering,08/01/2016,-501.20,JAN2016L642,The Hornchurch Nursing Centre_a,"Children, Adults & Housing",Adult Services,Adult Community Team,Physical Support,NURSING CARE INCOME
http://opendatacommunities.org/doc/london-borough-council/havering,London Borough of Havering,08/01/2016,1970.92,JAN2016L643,The Hornchurch Nursing Centre_a,"Children, Adults & Housing",Adult Services,Adult Community Team,Physical Support,NURSING HOMES - PRIVATE CONTRACTORS PAYMENT
http://opendatacommunities.org/doc/london-borough-council/havering,London Borough of Havering,08/01/2016,-583.32,JAN2016L644,The Hornchurch Nursing Centre_a,"Children, Adults & Housing",Adult Services,Adult Community Team,Physical Support,NURSING CARE INCOME
http://opendatacommunities.org/doc/london-borough-council/havering,London Borough of Havering,08/01/2016,1970.92,JAN2016L645,The Hornchurch Nursing Centre_a,"Children, Adults & Housing",Adult Services,Adult Community Team,Physical Support,NURSING HOMES - PRIVATE CONTRACTORS PAYMENT
http://opendatacommunities.org/doc/london-borough-council/havering,London Borough of Havering,08/01/2016,-980.24,JAN2016L646,The Hornchurch Nursing Centre_a,"Children, Adults & Housing",Adult Services,Adult Community Team,Physical Support,RESIDENTIAL CARE INCOME
http://opendatacommunities.org/doc/london-borough-council/havering,London Borough of Havering,08/01/2016,1849.04,JAN2016L647,The Hornchurch Nursing Centre_a,"Children, Adults & Housing",Adult Services,Adult Community Team,Physical Support,RESIDENTIAL PLACEMENTS - PRIVATE CONTRACTORS PAYMENT
http://opendatacommunities.org/doc/london-borough-council/havering,London Borough of Havering,08/01/2016,-924.24,JAN2016L648,The Hornchurch Nursing Centre_a,"Children, Adults & Housing",Adult Services,Adult Community Team,Support with Memory & Cognition,NURSING CARE INCOME
http://opendatacommunities.org/doc/london-borough-council/havering,London Borough of Havering,08/01/2016,2033.96,JAN2016L649,The Hornchurch Nursing Centre_a,"Children, Adults & Housing",Adult Services,Adult Community Team,Support with Memory & Cognition,NURSING HOMES - PRIVATE CONTRACTORS PAYMENT
http://opendatacommunities.org/doc/london-borough-council/havering,London Borough of Havering,08/01/2016,-477.20,JAN2016L650,The Hornchurch Nursing Centre_a,"Children, Adults & Housing",Adult Services,Adult Community Team,Physical Support,RESIDENTIAL CARE INCOME
http://opendatacommunities.org/doc/london-borough-council/havering,London Borough of Havering,08/01/2016,1849.04,JAN2016L651,The Hornchurch Nursing Centre_a,"Children, Adults & Housing",Adult Services,Adult Community Team,Physical Support,RESIDENTIAL PLACEMENTS - PRIVATE CONTRACTORS PAYMENT
http://opendatacommunities.org/doc/london-borough-council/havering,London Borough of Havering,08/01/2016,-426.44,JAN2016L652,The Hornchurch Nursing Centre_a,"Children, Adults & Housing",Adult Services,Adult Community Team,Physical Support,RESIDENTIAL CARE INCOME
http://opendatacommunities.org/doc/london-borough-council/havering,London Borough of Havering,08/01/2016,1849.04,JAN2016L653,The Hornchurch Nursing Centre_a,"Children, Adults & Housing",Adult Services,Adult Community Team,Physical Support,RESIDENTIAL PLACEMENTS - PRIVATE CONTRACTORS PAYMENT
http://opendatacommunities.org/doc/london-borough-council/havering,London Borough of Havering,08/01/2016,-505.20,JAN2016L654,The Hornchurch Nursing Centre_a,"Children, Adults & Housing",Adult Services,Adult Community Team,Physical Support,NURSING CARE INCOME
http://opendatacommunities.org/doc/london-borough-council/havering,London Borough of Havering,08/01/2016,2033.96,JAN2016L655,The Hornchurch Nursing Centre_a,"Children, Adults & Housing",Adult Services,Adult Community Team,Physical Support,NURSING HOMES - PRIVATE CONTRACTORS PAYMENT
http://opendatacommunities.org/doc/london-borough-council/havering,London Borough of Havering,08/01/2016,-1107.00,JAN2016L656,The Hornchurch Nursing Centre_a,"Children, Adults & Housing",Adult Services,Adult Community Team,Physical Support,NURSING CARE INCOME
http://opendatacommunities.org/doc/london-borough-council/havering,London Borough of Havering,08/01/2016,2033.96,JAN2016L657,The Hornchurch Nursing Centre_a,"Children, Adults & Housing",Adult Services,Adult Community Team,Physical Support,NURSING HOMES - PRIVATE CONTRACTORS PAYMENT
http://opendatacommunities.org/doc/london-borough-council/havering,London Borough of Havering,08/01/2016,-666.96,JAN2016L658,The Hornchurch Nursing Centre_a,"Children, Adults & Housing",Adult Services,Adult Community Team,Support with Memory & Cognition,NURSING CARE INCOME
http://opendatacommunities.org/doc/london-borough-council/havering,London Borough of Havering,08/01/2016,2033.96,JAN2016L659,The Hornchurch Nursing Centre_a,"Children, Adults & Housing",Adult Services,Adult Community Team,Support with Memory & Cognition,NURSING HOMES - PRIVATE CONTRACTORS PAYMENT
http://opendatacommunities.org/doc/london-borough-council/havering,London Borough of Havering,08/01/2016,-707.04,JAN2016L660,The Hornchurch Nursing Centre_a,"Children, Adults & Housing",Adult Services,Adult Community Team,Support with Memory & Cognition,RESIDENTIAL CARE INCOME
http://opendatacommunities.org/doc/london-borough-council/havering,London Borough of Havering,08/01/2016,2139.04,JAN2016L661,The Hornchurch Nursing Centre_a,"Children, Adults & Housing",Adult Services,Adult Community Team,Support with Memory & Cognition,RESIDENTIAL PLACEMENTS - PRIVATE CONTRACTORS PAYMENT
http://opendatacommunities.org/doc/london-borough-council/havering,London Borough of Havering,08/01/2016,-1035.08,JAN2016L662,The Hornchurch Nursing Centre_a,"Children, Adults & Housing",Adult Services,Adult Community Team,Physical Support,RESIDENTIAL CARE INCOME
http://opendatacommunities.org/doc/london-borough-council/havering,London Borough of Havering,08/01/2016,2139.04,JAN2016L663,The Hornchurch Nursing Centre_a,"Children, Adults & Housing",Adult Services,Adult Community Team,Physical Support,RESIDENTIAL PLACEMENTS - PRIVATE CONTRACTORS PAYMENT
http://opendatacommunities.org/doc/london-borough-council/havering,London Borough of Havering,08/01/2016,-678.92,JAN2016L664,The Hornchurch Nursing Centre_a,"Children, Adults & Housing",Adult Services,Adult Community Team,Physical Support,NURSING CARE INCOME
http://opendatacommunities.org/doc/london-borough-council/havering,London Borough of Havering,08/01/2016,2033.96,JAN2016L665,The Hornchurch Nursing Centre_a,"Children, Adults & Housing",Adult Services,Adult Community Team,Physical Support,NURSING HOMES - PRIVATE CONTRACTORS PAYMENT
http://opendatacommunities.org/doc/london-borough-council/havering,London Borough of Havering,08/01/2016,-489.20,JAN2016L666,The Hornchurch Nursing Centre_a,"Children, Adults & Housing",Adult Services,Adult Community Team,Support with Memory & Cognition,RESIDENTIAL CARE INCOME
http://opendatacommunities.org/doc/london-borough-council/havering,London Borough of Havering,08/01/2016,2139.04,JAN2016L667,The Hornchurch Nursing Centre_a,"Children, Adults & Housing",Adult Services,Adult Community Team,Support with Memory & Cognition,RESIDENTIAL PLACEMENTS - PRIVATE CONTRACTORS PAYMENT
http://opendatacommunities.org/doc/london-borough-council/havering,London Borough of Havering,08/01/2016,-1055.85,JAN2016L668,The Hornchurch Nursing Centre_a,"Children, Adults & Housing",Adult Services,Adult Community Team,Physical Support,NURSING HOMES - PRIVATE CONTRACTORS PAYMENT
http://opendatacommunities.org/doc/london-borough-council/havering,London Borough of Havering,08/01/2016,-505.20,JAN2016L669,Brandon House_a,"Children, Adults & Housing",Mental Health,Mental Health - Non Section 75,Mental Health Support,RESIDENTIAL CARE INCOME
http://opendatacommunities.org/doc/london-borough-council/havering,London Borough of Havering,08/01/2016,1880.52,JAN2016L670,Brandon House_a,"Children, Adults & Housing",Mental Health,Mental Health - Non Section 75,Mental Health Support,RESIDENTIAL PLACEMENTS - PRIVATE CONTRACTORS PAYMENT
http://opendatacommunities.org/doc/london-borough-council/havering,London Borough of Havering,08/01/2016,1872.16,JAN2016L671,Brandon House_a,"Children, Adults & Housing",Mental Health,Mental Health - Non Section 75,Mental Health Support,RESIDENTIAL PLACEMENTS - PRIVATE CONTRACTORS PAYMENT
http://opendatacommunities.org/doc/london-borough-council/havering,London Borough of Havering,08/01/2016,1831.12,JAN2016L678,Adiemus Care Ltd t/a Brookes House_a,"Children, Adults & Housing",Adult Services,Adult Community Team,Physical Support,RESIDENTIAL PLACEMENTS - PRIVATE CONTRACTORS PAYMENT
http://opendatacommunities.org/doc/london-borough-council/havering,London Borough of Havering,08/01/2016,-548.20,JAN2016L679,Adiemus Care Ltd t/a Brookes House_a,"Children, Adults & Housing",Adult Services,Adult Community Team,Physical Support,RESIDENTIAL CARE INCOME
http://opendatacommunities.org/doc/london-borough-council/havering,London Borough of Havering,08/01/2016,1849.04,JAN2016L680,Adiemus Care Ltd t/a Brookes House_a,"Children, Adults & Housing",Adult Services,Adult Community Team,Physical Support,RESIDENTIAL PLACEMENTS - PRIVATE CONTRACTORS PAYMENT
http://opendatacommunities.org/doc/london-borough-council/havering,London Borough of Havering,08/01/2016,2100.00,JAN2016L682,Highfield Care Homes Ltd t/a Romford Grange Care Home_a,"Children, Adults & Housing",Adult Services,Learning Disabilities,Learning Disability Support,NURSING HOMES - PRIVATE CONTRACTORS PAYMENT
http://opendatacommunities.org/doc/london-borough-council/havering,London Borough of Havering,08/01/2016,2120.00,JAN2016L683,Highfield Care Homes Ltd t/a Romford Grange Care Home_a,"Children, Adults & Housing",Adult Services,Learning Disabilities,Learning Disability Support,NURSING HOMES - PRIVATE CONTRACTORS PAYMENT
http://opendatacommunities.org/doc/london-borough-council/havering,London Borough of Havering,08/01/2016,1970.92,JAN2016L684,Highfield Care Homes Ltd t/a Romford Grange Care Home_a,"Children, Adults & Housing",Adult Services,Adult Community Team,Physical Support,NURSING HOMES - PRIVATE CONTRACTORS PAYMENT
http://opendatacommunities.org/doc/london-borough-council/havering,London Borough of Havering,08/01/2016,1970.92,JAN2016L685,Highfield Care Homes Ltd t/a Romford Grange Care Home_a,"Children, Adults & Housing",Adult Services,Adult Community Team,Physical Support,NURSING HOMES - PRIVATE CONTRACTORS PAYMENT
http://opendatacommunities.org/doc/london-borough-council/havering,London Borough of Havering,08/01/2016,2033.96,JAN2016L686,Highfield Care Homes Ltd t/a Romford Grange Care Home_a,"Children, Adults & Housing",Adult Services,Adult Community Team,Support with Memory & Cognition,NURSING HOMES - PRIVATE CONTRACTORS PAYMENT
http://opendatacommunities.org/doc/london-borough-council/havering,London Borough of Havering,08/01/2016,2033.96,JAN2016L687,Highfield Care Homes Ltd t/a Romford Grange Care Home_a,"Children, Adults & Housing",Adult Services,Adult Community Team,Physical Support,NURSING HOMES - PRIVATE CONTRACTORS PAYMENT
http://opendatacommunities.org/doc/london-borough-council/havering,London Borough of Havering,08/01/2016,1970.92,JAN2016L688,Highfield Care Homes Ltd t/a Romford Grange Care Home_a,"Children, Adults & Housing",Adult Services,Adult Community Team,Physical Support,NURSING HOMES - PRIVATE CONTRACTORS PAYMENT
http://opendatacommunities.org/doc/london-borough-council/havering,London Borough of Havering,08/01/2016,1970.92,JAN2016L689,Highfield Care Homes Ltd t/a Romford Grange Care Home_a,"Children, Adults & Housing",Adult Services,Adult Community Team,Physical Support,NURSING HOMES - PRIVATE CONTRACTORS PAYMENT
http://opendatacommunities.org/doc/london-borough-council/havering,London Borough of Havering,08/01/2016,1970.92,JAN2016L690,Highfield Care Homes Ltd t/a Romford Grange Care Home_a,"Children, Adults & Housing",Adult Services,Adult Community Team,Physical Support,NURSING HOMES - PRIVATE CONTRACTORS PAYMENT
http://opendatacommunities.org/doc/london-borough-council/havering,London Borough of Havering,08/01/2016,1849.04,JAN2016L691,Highfield Care Homes Ltd t/a Romford Grange Care Home_a,"Children, Adults & Housing",Adult Services,Adult Community Team,Physical Support,RESIDENTIAL PLACEMENTS - PRIVATE CONTRACTORS PAYMENT
http://opendatacommunities.org/doc/london-borough-council/havering,London Borough of Havering,08/01/2016,2033.96,JAN2016L692,Highfield Care Homes Ltd t/a Romford Grange Care Home_a,"Children, Adults & Housing",Adult Services,Adult Community Team,Physical Support,NURSING HOMES - PRIVATE CONTRACTORS PAYMENT
http://opendatacommunities.org/doc/london-borough-council/havering,London Borough of Havering,08/01/2016,1970.92,JAN2016L693,Highfield Care Homes Ltd t/a Romford Grange Care Home_a,"Children, Adults & Housing",Adult Services,Adult Community Team,Physical Support,NURSING HOMES - PRIVATE CONTRACTORS PAYMENT
http://opendatacommunities.org/doc/london-borough-council/havering,London Borough of Havering,08/01/2016,2139.04,JAN2016L694,Highfield Care Homes Ltd t/a Romford Grange Care Home_a,"Children, Adults & Housing",Adult Services,Adult Community Team,Physical Support,RESIDENTIAL PLACEMENTS - PRIVATE CONTRACTORS PAYMENT
http://opendatacommunities.org/doc/london-borough-council/havering,London Borough of Havering,08/01/2016,1849.04,JAN2016L695,Highfield Care Homes Ltd t/a Romford Grange Care Home_a,"Children, Adults & Housing",Adult Services,Adult Community Team,Physical Support,RESIDENTIAL PLACEMENTS - PRIVATE CONTRACTORS PAYMENT
http://opendatacommunities.org/doc/london-borough-council/havering,London Borough of Havering,08/01/2016,-1082.60,JAN2016L696,Highfield Care Homes Ltd t/a Romford Grange Care Home_a,"Children, Adults & Housing",Adult Services,Adult Community Team,Support with Memory & Cognition,NURSING CARE INCOME
http://opendatacommunities.org/doc/london-borough-council/havering,London Borough of Havering,08/01/2016,2033.96,JAN2016L697,Highfield Care Homes Ltd t/a Romford Grange Care Home_a,"Children, Adults & Housing",Adult Services,Adult Community Team,Support with Memory & Cognition,NURSING HOMES - PRIVATE CONTRACTORS PAYMENT
http://opendatacommunities.org/doc/london-borough-council/havering,London Borough of Havering,08/01/2016,-528.88,JAN2016L698,Highfield Care Homes Ltd t/a Romford Grange Care Home_a,"Children, Adults & Housing",Adult Services,Adult Community Team,Sensory Support,NURSING CARE INCOME
http://opendatacommunities.org/doc/london-borough-council/havering,London Borough of Havering,08/01/2016,2033.96,JAN2016L699,Highfield Care Homes Ltd t/a Romford Grange Care Home_a,"Children, Adults & Housing",Adult Services,Adult Community Team,Sensory Support,NURSING HOMES - PRIVATE CONTRACTORS PAYMENT
http://opendatacommunities.org/doc/london-borough-council/havering,London Borough of Havering,08/01/2016,-505.20,JAN2016L700,Highfield Care Homes Ltd t/a Romford Grange Care Home_a,"Children, Adults & Housing",Adult Services,Adult Community Team,Physical Support,NURSING CARE INCOME
http://opendatacommunities.org/doc/london-borough-council/havering,London Borough of Havering,08/01/2016,2033.96,JAN2016L701,Highfield Care Homes Ltd t/a Romford Grange Care Home_a,"Children, Adults & Housing",Adult Services,Adult Community Team,Physical Support,NURSING HOMES - PRIVATE CONTRACTORS PAYMENT
http://opendatacommunities.org/doc/london-borough-council/havering,London Borough of Havering,08/01/2016,-568.08,JAN2016L702,Highfield Care Homes Ltd t/a Romford Grange Care Home_a,"Children, Adults & Housing",Adult Services,Adult Community Team,Physical Support,NURSING CARE INCOME
http://opendatacommunities.org/doc/london-borough-council/havering,London Borough of Havering,08/01/2016,1970.92,JAN2016L703,Highfield Care Homes Ltd t/a Romford Grange Care Home_a,"Children, Adults & Housing",Adult Services,Adult Community Team,Physical Support,NURSING HOMES - PRIVATE CONTRACTORS PAYMENT
http://opendatacommunities.org/doc/london-borough-council/havering,London Borough of Havering,08/01/2016,-505.20,JAN2016L704,Highfield Care Homes Ltd t/a Romford Grange Care Home_a,"Children, Adults & Housing",Adult Services,Adult Community Team,Support with Memory & Cognition,NURSING CARE INCOME
http://opendatacommunities.org/doc/london-borough-council/havering,London Borough of Havering,08/01/2016,2033.96,JAN2016L705,Highfield Care Homes Ltd t/a Romford Grange Care Home_a,"Children, Adults & Housing",Adult Services,Adult Community Team,Support with Memory & Cognition,NURSING HOMES - PRIVATE CONTRACTORS PAYMENT
http://opendatacommunities.org/doc/london-borough-council/havering,London Borough of Havering,08/01/2016,-752.16,JAN2016L706,Highfield Care Homes Ltd t/a Romford Grange Care Home_a,"Children, Adults & Housing",Adult Services,Adult Community Team,Physical Support,RESIDENTIAL CARE INCOME
http://opendatacommunities.org/doc/london-borough-council/havering,London Borough of Havering,08/01/2016,2033.96,JAN2016L707,Highfield Care Homes Ltd t/a Romford Grange Care Home_a,"Children, Adults & Housing",Adult Services,Adult Community Team,Physical Support,NURSING HOMES - PRIVATE CONTRACTORS PAYMENT
http://opendatacommunities.org/doc/london-borough-council/havering,London Borough of Havering,08/01/2016,-2139.04,JAN2016L708,Highfield Care Homes Ltd t/a Romford Grange Care Home_a,"Children, Adults & Housing",Adult Services,Adult Community Team,Physical Support,RESIDENTIAL CARE INCOME
http://opendatacommunities.org/doc/london-borough-council/havering,London Borough of Havering,08/01/2016,2139.04,JAN2016L709,Highfield Care Homes Ltd t/a Romford Grange Care Home_a,"Children, Adults & Housing",Adult Services,Adult Community Team,Physical Support,RESIDENTIAL PLACEMENTS - PRIVATE CONTRACTORS PAYMENT
http://opendatacommunities.org/doc/london-borough-council/havering,London Borough of Havering,08/01/2016,-512.88,JAN2016L710,Highfield Care Homes Ltd t/a Romford Grange Care Home_a,"Children, Adults & Housing",Adult Services,Adult Community Team,Physical Support,RESIDENTIAL CARE INCOME
http://opendatacommunities.org/doc/london-borough-council/havering,London Borough of Havering,08/01/2016,1849.04,JAN2016L711,Highfield Care Homes Ltd t/a Romford Grange Care Home_a,"Children, Adults & Housing",Adult Services,Adult Community Team,Physical Support,RESIDENTIAL PLACEMENTS - PRIVATE CONTRACTORS PAYMENT
http://opendatacommunities.org/doc/london-borough-council/havering,London Borough of Havering,08/01/2016,-497.20,JAN2016L712,Highfield Care Homes Ltd t/a Romford Grange Care Home_a,"Children, Adults & Housing",Adult Services,Adult Community Team,Physical Support,NURSING CARE INCOME
http://opendatacommunities.org/doc/london-borough-council/havering,London Borough of Havering,08/01/2016,1970.92,JAN2016L713,Highfield Care Homes Ltd t/a Romford Grange Care Home_a,"Children, Adults & Housing",Adult Services,Adult Community Team,Physical Support,NURSING HOMES - PRIVATE CONTRACTORS PAYMENT
http://opendatacommunities.org/doc/london-borough-council/havering,London Borough of Havering,08/01/2016,-6569.91,JAN2016L714,Highfield Care Homes Ltd t/a Romford Grange Care Home_a,"Children, Adults & Housing",Adult Services,Adult Community Team,Physical Support,RESIDENTIAL CARE INCOME
http://opendatacommunities.org/doc/london-borough-council/havering,London Borough of Havering,08/01/2016,6569.91,JAN2016L715,Highfield Care Homes Ltd t/a Romford Grange Care Home_a,"Children, Adults & Housing",Adult Services,Adult Community Team,Physical Support,RESIDENTIAL PLACEMENTS - PRIVATE CONTRACTORS PAYMENT
http://opendatacommunities.org/doc/london-borough-council/havering,London Borough of Havering,08/01/2016,-6493.51,JAN2016L716,Highfield Care Homes Ltd t/a Romford Grange Care Home_a,"Children, Adults & Housing",Adult Services,Adult Community Team,Physical Support,RESIDENTIAL PLACEMENTS - PRIVATE CONTRACTORS PAYMENT
http://opendatacommunities.org/doc/london-borough-council/havering,London Borough of Havering,08/01/2016,1533.64,JAN2016L717,Highfield Care Homes Ltd t/a Romford Grange Care Home_a,"Children, Adults & Housing",Adult Services,Adult Community Team,Physical Support,RESIDENTIAL CARE INCOME
http://opendatacommunities.org/doc/london-borough-council/havering,London Borough of Havering,08/01/2016,4323.60,JAN2016L725,Ashdene House Ltd_a,"Children, Adults & Housing",Adult Services,Learning Disabilities,Learning Disability Support,RESIDENTIAL PLACEMENTS - PRIVATE CONTRACTORS PAYMENT
http://opendatacommunities.org/doc/london-borough-council/havering,London Borough of Havering,12/01/2016,2288.50,JAN2016L726,Havering Asian Social & Welfare Association_a,"Children, Adults & Housing",Adult Services,Strategy and Commissioning,Carers Commissioning,PAYMENTS TO VOLUNTARY SECTOR
http://opendatacommunities.org/doc/london-borough-council/havering,London Borough of Havering,12/01/2016,517.86,JAN2016L731,Care Support - Carewatch (East London)_a,"Children, Adults & Housing",Adult Services,Adult Community Team,Physical Support,HOME CARE - PRIVATE CONTRACTORS PAYMENT
http://opendatacommunities.org/doc/london-borough-council/havering,London Borough of Havering,12/01/2016,896.37,JAN2016L732,Care Support - Carewatch (East London)_a,"Children, Adults & Housing",Adult Services,Adult Community Team,Physical Support,HOME CARE - PRIVATE CONTRACTORS PAYMENT
http://opendatacommunities.org/doc/london-borough-council/havering,London Borough of Havering,12/01/2016,691.04,JAN2016L733,Care Support - Carewatch (East London)_a,"Children, Adults & Housing",Adult Services,Adult Community Team,Physical Support,HOME CARE - PRIVATE CONTRACTORS PAYMENT
http://opendatacommunities.org/doc/london-borough-council/havering,London Borough of Havering,12/01/2016,425.39,JAN2016L734,Care Support - Carewatch (East London)_a,"Children, Adults & Housing",Adult Services,Adult Community Team,Physical Support,HOME CARE - PRIVATE CONTRACTORS PAYMENT
http://opendatacommunities.org/doc/london-borough-council/havering,London Borough of Havering,12/01/2016,1430.28,JAN2016L735,Care Support - Carewatch (East London)_a,"Children, Adults & Housing",Adult Services,Adult Community Team,Physical Support,HOME CARE - PRIVATE CONTRACTORS PAYMENT
http://opendatacommunities.org/doc/london-borough-council/havering,London Borough of Havering,12/01/2016,517.86,JAN2016L736,Care Support - Carewatch (East London)_a,"Children, Adults & Housing",Adult Services,Adult Community Team,Physical Support,HOME CARE - PRIVATE CONTRACTORS PAYMENT
http://opendatacommunities.org/doc/london-borough-council/havering,London Borough of Havering,12/01/2016,1382.08,JAN2016L737,Care Support - Carewatch (East London)_a,"Children, Adults & Housing",Adult Services,Adult Community Team,Physical Support,HOME CARE - PRIVATE CONTRACTORS PAYMENT
http://opendatacommunities.org/doc/london-borough-council/havering,London Borough of Havering,12/01/2016,1331.64,JAN2016L738,Care Support - Carewatch (East London)_a,"Children, Adults & Housing",Adult Services,Adult Community Team,Physical Support,HOME CARE - PRIVATE CONTRACTORS PAYMENT
http://opendatacommunities.org/doc/london-borough-council/havering,London Borough of Havering,12/01/2016,641.16,JAN2016L739,Care Support - Carewatch (East London)_a,"Children, Adults & Housing",Adult Services,Adult Community Team,Physical Support,HOME CARE - PRIVATE CONTRACTORS PAYMENT
http://opendatacommunities.org/doc/london-borough-council/havering,London Borough of Havering,12/01/2016,1380.96,JAN2016L740,Care Support - Carewatch (East London)_a,"Children, Adults & Housing",Adult Services,Adult Community Team,Physical Support,HOME CARE - PRIVATE CONTRACTORS PAYMENT
http://opendatacommunities.org/doc/london-borough-council/havering,London Borough of Havering,12/01/2016,2261.28,JAN2016L741,Care Support - Carewatch (East London)_a,"Children, Adults & Housing",Adult Services,Adult Community Team,Physical Support,HOME CARE - PRIVATE CONTRACTORS PAYMENT
http://opendatacommunities.org/doc/london-borough-council/havering,London Borough of Havering,12/01/2016,680.27,JAN2016L742,Care Support - Carewatch (East London)_a,"Children, Adults & Housing",Adult Services,Adult Community Team,Physical Support,HOME CARE - PRIVATE CONTRACTORS PAYMENT
http://opendatacommunities.org/doc/london-borough-council/havering,London Borough of Havering,12/01/2016,2161.78,JAN2016L743,Care Support - Carewatch (East London)_a,"Children, Adults & Housing",Adult Services,Adult Community Team,Physical Support,HOME CARE - PRIVATE CONTRACTORS PAYMENT
http://opendatacommunities.org/doc/london-borough-council/havering,London Borough of Havering,12/01/2016,1043.29,JAN2016L744,Care Support - Carewatch (East London)_a,"Children, Adults & Housing",Adult Services,Adult Community Team,Physical Support,HOME CARE - PRIVATE CONTRACTORS PAYMENT
http://opendatacommunities.org/doc/london-borough-council/havering,London Borough of Havering,12/01/2016,1251.50,JAN2016L745,Care Support - Carewatch (East London)_a,"Children, Adults & Housing",Adult Services,Adult Community Team,Physical Support,HOME CARE - PRIVATE CONTRACTORS PAYMENT
http://opendatacommunities.org/doc/london-borough-council/havering,London Borough of Havering,12/01/2016,2154.13,JAN2016L746,Care Support - Carewatch (East London)_a,"Children, Adults & Housing",Adult Services,Adult Community Team,Physical Support,HOME CARE - PRIVATE CONTRACTORS PAYMENT
http://opendatacommunities.org/doc/london-borough-council/havering,London Borough of Havering,12/01/2016,2874.03,JAN2016L747,Care Support - Carewatch (East London)_a,"Children, Adults & Housing",Adult Services,Adult Community Team,Physical Support,HOME CARE - PRIVATE CONTRACTORS PAYMENT
http://opendatacommunities.org/doc/london-borough-council/havering,London Borough of Havering,12/01/2016,627.48,JAN2016L748,Care Support - Carewatch (East London)_a,"Children, Adults & Housing",Adult Services,Learning Disabilities,Learning Disability Support,HOME CARE - PRIVATE CONTRACTORS PAYMENT
http://opendatacommunities.org/doc/london-borough-council/havering,London Borough of Havering,12/01/2016,724.59,JAN2016L749,Care Support - Carewatch (East London)_a,"Children, Adults & Housing",Adult Services,Adult Community Team,Physical Support,HOME CARE - PRIVATE CONTRACTORS PAYMENT
http://opendatacommunities.org/doc/london-borough-council/havering,London Borough of Havering,12/01/2016,418.32,JAN2016L750,Care Support - Carewatch (East London)_a,"Children, Adults & Housing",Adult Services,Adult Community Team,Physical Support,HOME CARE - PRIVATE CONTRACTORS PAYMENT
http://opendatacommunities.org/doc/london-borough-council/havering,London Borough of Havering,12/01/2016,1673.28,JAN2016L751,Care Support - Carewatch (East London)_a,"Children, Adults & Housing",Adult Services,Adult Community Team,Physical Support,HOME CARE - PRIVATE CONTRACTORS PAYMENT
http://opendatacommunities.org/doc/london-borough-council/havering,London Borough of Havering,12/01/2016,836.64,JAN2016L752,Care Support - Carewatch (East London)_a,"Children, Adults & Housing",Adult Services,Adult Community Team,Physical Support,HOME CARE - PRIVATE CONTRACTORS PAYMENT
http://opendatacommunities.org/doc/london-borough-council/havering,London Borough of Havering,12/01/2016,1673.28,JAN2016L753,Care Support - Carewatch (East London)_a,"Children, Adults & Housing",Adult Services,Adult Community Team,Physical Support,HOME CARE - PRIVATE CONTRACTORS PAYMENT
http://opendatacommunities.org/doc/london-borough-council/havering,London Borough of Havering,12/01/2016,418.32,JAN2016L754,Care Support - Carewatch (East London)_a,"Children, Adults & Housing",Adult Services,Adult Community Team,Physical Support,HOME CARE - PRIVATE CONTRACTORS PAYMENT
http://opendatacommunities.org/doc/london-borough-council/havering,London Borough of Havering,12/01/2016,836.64,JAN2016L755,Care Support - Carewatch (East London)_a,"Children, Adults & Housing",Adult Services,Adult Community Team,Physical Support,HOME CARE - PRIVATE CONTRACTORS PAYMENT
http://opendatacommunities.org/doc/london-borough-council/havering,London Borough of Havering,12/01/2016,418.32,JAN2016L756,Care Support - Carewatch (East London)_a,"Children, Adults & Housing",Adult Services,Adult Community Team,Physical Support,HOME CARE - PRIVATE CONTRACTORS PAYMENT
http://opendatacommunities.org/doc/london-borough-council/havering,London Borough of Havering,12/01/2016,836.64,JAN2016L757,Care Support - Carewatch (East London)_a,"Children, Adults & Housing",Adult Services,Adult Community Team,Physical Support,HOME CARE - PRIVATE CONTRACTORS PAYMENT
http://opendatacommunities.org/doc/london-borough-council/havering,London Borough of Havering,12/01/2016,857.56,JAN2016L758,Care Support - Carewatch (East London)_a,"Children, Adults & Housing",Adult Services,Adult Community Team,Physical Support,HOME CARE - PRIVATE CONTRACTORS PAYMENT
http://opendatacommunities.org/doc/london-borough-council/havering,London Borough of Havering,12/01/2016,836.64,JAN2016L759,Care Support - Carewatch (East London)_a,"Children, Adults & Housing",Adult Services,Adult Community Team,Physical Support,HOME CARE - PRIVATE CONTRACTORS PAYMENT
http://opendatacommunities.org/doc/london-borough-council/havering,London Borough of Havering,12/01/2016,717.12,JAN2016L760,Care Support - Carewatch (East London)_a,"Children, Adults & Housing",Adult Services,Adult Community Team,Physical Support,HOME CARE - PRIVATE CONTRACTORS PAYMENT
http://opendatacommunities.org/doc/london-borough-council/havering,London Borough of Havering,12/01/2016,836.64,JAN2016L761,Care Support - Carewatch (East London)_a,"Children, Adults & Housing",Adult Services,Adult Community Team,Physical Support,HOME CARE - PRIVATE CONTRACTORS PAYMENT
http://opendatacommunities.org/doc/london-borough-council/havering,London Borough of Havering,12/01/2016,519.25,JAN2016L762,Care Support - Carewatch (East London)_a,"Children, Adults & Housing",Adult Services,Adult Community Team,Physical Support,HOME CARE - PRIVATE CONTRACTORS PAYMENT
http://opendatacommunities.org/doc/london-borough-council/havering,London Borough of Havering,12/01/2016,418.32,JAN2016L763,Care Support - Carewatch (East London)_a,"Children, Adults & Housing",Adult Services,Adult Community Team,Physical Support,HOME CARE - PRIVATE CONTRACTORS PAYMENT
http://opendatacommunities.org/doc/london-borough-council/havering,London Borough of Havering,12/01/2016,836.64,JAN2016L764,Care Support - Carewatch (East London)_a,"Children, Adults & Housing",Adult Services,Adult Community Team,Physical Support,HOME CARE - PRIVATE CONTRACTORS PAYMENT
http://opendatacommunities.org/doc/london-borough-council/havering,London Borough of Havering,12/01/2016,717.12,JAN2016L765,Care Support - Carewatch (East London)_a,"Children, Adults & Housing",Adult Services,Adult Community Team,Physical Support,HOME CARE - PRIVATE CONTRACTORS PAYMENT
http://opendatacommunities.org/doc/london-borough-council/havering,London Borough of Havering,12/01/2016,627.48,JAN2016L766,Care Support - Carewatch (East London)_a,"Children, Adults & Housing",Adult Services,Adult Community Team,Physical Support,HOME CARE - PRIVATE CONTRACTORS PAYMENT
http://opendatacommunities.org/doc/london-borough-council/havering,London Borough of Havering,12/01/2016,448.20,JAN2016L767,Care Support - Carewatch (East London)_a,"Children, Adults & Housing",Adult Services,Adult Community Team,Physical Support,HOME CARE - PRIVATE CONTRACTORS PAYMENT
http://opendatacommunities.org/doc/london-borough-council/havering,London Borough of Havering,12/01/2016,627.48,JAN2016L768,Care Support - Carewatch (East London)_a,"Children, Adults & Housing",Adult Services,Adult Community Team,Physical Support,HOME CARE - PRIVATE CONTRACTORS PAYMENT
http://opendatacommunities.org/doc/london-borough-council/havering,London Borough of Havering,12/01/2016,694.71,JAN2016L769,Care Support - Carewatch (East London)_a,"Children, Adults & Housing",Adult Services,Adult Community Team,Physical Support,HOME CARE - PRIVATE CONTRACTORS PAYMENT
http://opendatacommunities.org/doc/london-borough-council/havering,London Borough of Havering,12/01/2016,836.64,JAN2016L770,Care Support - Carewatch (East London)_a,"Children, Adults & Housing",Adult Services,Adult Community Team,Physical Support,HOME CARE - PRIVATE CONTRACTORS PAYMENT
http://opendatacommunities.org/doc/london-borough-council/havering,London Borough of Havering,12/01/2016,836.64,JAN2016L771,Care Support - Carewatch (East London)_a,"Children, Adults & Housing",Adult Services,Adult Community Team,Physical Support,HOME CARE - PRIVATE CONTRACTORS PAYMENT
http://opendatacommunities.org/doc/london-borough-council/havering,London Borough of Havering,12/01/2016,537.84,JAN2016L772,Care Support - Carewatch (East London)_a,"Children, Adults & Housing",Adult Services,Adult Community Team,Physical Support,HOME CARE - PRIVATE CONTRACTORS PAYMENT
http://opendatacommunities.org/doc/london-borough-council/havering,London Borough of Havering,12/01/2016,406.89,JAN2016L773,Care Support - Carewatch (East London)_a,"Children, Adults & Housing",Adult Services,Adult Community Team,Physical Support,HOME CARE - PRIVATE CONTRACTORS PAYMENT
http://opendatacommunities.org/doc/london-borough-council/havering,London Borough of Havering,19/01/2016,4161.00,JAN2016L774,Care Support - Carewatch (East London)_a,"Children, Adults & Housing",Adult Services,Strategy and Commissioning,Adult Community Commissioning,PRIVATE CONTRACTORS PAYMENT - OTHER
http://opendatacommunities.org/doc/london-borough-council/havering,London Borough of Havering,19/01/2016,1809.84,JAN2016L775,Care Support - Carewatch (East London)_a,"Children, Adults & Housing",Adult Services,Strategy and Commissioning,Adult Community Commissioning,PRIVATE CONTRACTORS PAYMENT - OTHER
http://opendatacommunities.org/doc/london-borough-council/havering,London Borough of Havering,19/01/2016,5878.33,JAN2016L777,The Riverside Group Ltd_a,"Children, Adults & Housing",Adult Services,Strategy and Commissioning,Mental Health Commissioning,PRIVATE CONTRACTORS PAYMENT - OTHER
http://opendatacommunities.org/doc/london-borough-council/havering,London Borough of Havering,19/01/2016,1582.05,JAN2016L778,The Riverside Group Ltd_a,"Children, Adults & Housing",Adult Services,Strategy and Commissioning,Mental Health Commissioning,PRIVATE CONTRACTORS PAYMENT - OTHER
http://opendatacommunities.org/doc/london-borough-council/havering,London Borough of Havering,08/01/2016,-808.04,JAN2016L789,Four Seasons Health Care Ltd - Hopes Green Care Home_a,"Children, Adults & Housing",Adult Services,Adult Community Team,Physical Support,RESIDENTIAL CARE INCOME
http://opendatacommunities.org/doc/london-borough-council/havering,London Borough of Havering,08/01/2016,1849.04,JAN2016L790,Four Seasons Health Care Ltd - Hopes Green Care Home_a,"Children, Adults & Housing",Adult Services,Adult Community Team,Physical Support,RESIDENTIAL PLACEMENTS - PRIVATE CONTRACTORS PAYMENT
http://opendatacommunities.org/doc/london-borough-council/havering,London Borough of Havering,12/01/2016,6802.53,JAN2016L791,Havering Mind_a,"Children, Adults & Housing",Adult Services,Strategy and Commissioning,Mental Health Commissioning,PAYMENTS TO VOLUNTARY SECTOR
http://opendatacommunities.org/doc/london-borough-council/havering,London Borough of Havering,12/01/2016,3807.50,JAN2016L792,Havering Mind_a,"Children, Adults & Housing",Adult Services,Strategy and Commissioning,Carers Commissioning,PAYMENTS TO VOLUNTARY SECTOR
http://opendatacommunities.org/doc/london-borough-council/havering,London Borough of Havering,12/01/2016,4792.69,JAN2016L793,Havering Mind_a,"Children, Adults & Housing",Adult Services,Strategy and Commissioning,Mental Health Commissioning,PAYMENTS TO VOLUNTARY SECTOR
http://opendatacommunities.org/doc/london-borough-council/havering,London Borough of Havering,12/01/2016,3807.50,JAN2016L794,Havering Mind_a,"Children, Adults & Housing",Adult Services,Strategy and Commissioning,Mental Health Commissioning,PAYMENTS TO VOLUNTARY SECTOR
http://opendatacommunities.org/doc/london-borough-council/havering,London Borough of Havering,12/01/2016,3767.00,JAN2016L795,Havering Mind_a,"Children, Adults & Housing",Adult Services,Strategy and Commissioning,Mental Health Commissioning,PAYMENTS TO VOLUNTARY SECTOR
http://opendatacommunities.org/doc/london-borough-council/havering,London Borough of Havering,08/01/2016,2650.04,JAN2016L796,Beechcourt Care Centre_a,"Children, Adults & Housing",Adult Services,Adult Community Team,Physical Support,NURSING HOMES - PRIVATE CONTRACTORS PAYMENT
http://opendatacommunities.org/doc/london-borough-council/havering,London Borough of Havering,08/01/2016,2778.04,JAN2016L797,Beechcourt Care Centre_a,"Children, Adults & Housing",Adult Services,Adult Community Team,Physical Support,RESIDENTIAL PLACEMENTS - PRIVATE CONTRACTORS PAYMENT
http://opendatacommunities.org/doc/london-borough-council/havering,London Borough of Havering,08/01/2016,2033.96,JAN2016L798,Beechcourt Care Centre_a,"Children, Adults & Housing",Adult Services,Adult Community Team,Support with Memory & Cognition,NURSING HOMES - PRIVATE CONTRACTORS PAYMENT
http://opendatacommunities.org/doc/london-borough-council/havering,London Borough of Havering,08/01/2016,2033.96,JAN2016L799,Beechcourt Care Centre_a,"Children, Adults & Housing",Adult Services,Adult Community Team,Physical Support,NURSING HOMES - PRIVATE CONTRACTORS PAYMENT
http://opendatacommunities.org/doc/london-borough-council/havering,London Borough of Havering,08/01/2016,2033.96,JAN2016L800,Beechcourt Care Centre_a,"Children, Adults & Housing",Adult Services,Adult Community Team,Support with Memory & Cognition,NURSING HOMES - PRIVATE CONTRACTORS PAYMENT
http://opendatacommunities.org/doc/london-borough-council/havering,London Borough of Havering,08/01/2016,1970.92,JAN2016L801,Beechcourt Care Centre_a,"Children, Adults & Housing",Adult Services,Adult Community Team,Physical Support,NURSING HOMES - PRIVATE CONTRACTORS PAYMENT
http://opendatacommunities.org/doc/london-borough-council/havering,London Borough of Havering,08/01/2016,1970.92,JAN2016L802,Beechcourt Care Centre_a,"Children, Adults & Housing",Adult Services,Adult Community Team,Physical Support,NURSING HOMES - PRIVATE CONTRACTORS PAYMENT
http://opendatacommunities.org/doc/london-borough-council/havering,London Borough of Havering,08/01/2016,2033.96,JAN2016L803,Beechcourt Care Centre_a,"Children, Adults & Housing",Adult Services,Adult Community Team,Support with Memory & Cognition,NURSING HOMES - PRIVATE CONTRACTORS PAYMENT
http://opendatacommunities.org/doc/london-borough-council/havering,London Borough of Havering,08/01/2016,1970.92,JAN2016L804,Beechcourt Care Centre_a,"Children, Adults & Housing",Adult Services,Adult Community Team,Sensory Support,RESIDENTIAL PLACEMENTS - PRIVATE CONTRACTORS PAYMENT
http://opendatacommunities.org/doc/london-borough-council/havering,London Borough of Havering,08/01/2016,2033.96,JAN2016L805,Beechcourt Care Centre_a,"Children, Adults & Housing",Adult Services,Adult Community Team,Physical Support,NURSING HOMES - PRIVATE CONTRACTORS PAYMENT
http://opendatacommunities.org/doc/london-borough-council/havering,London Borough of Havering,08/01/2016,-2033.96,JAN2016L806,Beechcourt Care Centre_a,"Children, Adults & Housing",Adult Services,Adult Community Team,Support with Memory & Cognition,NURSING CARE INCOME
http://opendatacommunities.org/doc/london-borough-council/havering,London Borough of Havering,08/01/2016,2033.96,JAN2016L807,Beechcourt Care Centre_a,"Children, Adults & Housing",Adult Services,Adult Community Team,Support with Memory & Cognition,NURSING HOMES - PRIVATE CONTRACTORS PAYMENT
http://opendatacommunities.org/doc/london-borough-council/havering,London Borough of Havering,08/01/2016,-505.20,JAN2016L808,Beechcourt Care Centre_a,"Children, Adults & Housing",Adult Services,Adult Community Team,Physical Support,NURSING CARE INCOME
http://opendatacommunities.org/doc/london-borough-council/havering,London Borough of Havering,08/01/2016,2033.96,JAN2016L809,Beechcourt Care Centre_a,"Children, Adults & Housing",Adult Services,Adult Community Team,Physical Support,NURSING HOMES - PRIVATE CONTRACTORS PAYMENT
http://opendatacommunities.org/doc/london-borough-council/havering,London Borough of Havering,08/01/2016,-634.04,JAN2016L810,Beechcourt Care Centre_a,"Children, Adults & Housing",Adult Services,Adult Community Team,Support with Memory & Cognition,NURSING CARE INCOME
http://opendatacommunities.org/doc/london-borough-council/havering,London Borough of Havering,08/01/2016,2033.96,JAN2016L811,Beechcourt Care Centre_a,"Children, Adults & Housing",Adult Services,Adult Community Team,Support with Memory & Cognition,NURSING HOMES - PRIVATE CONTRACTORS PAYMENT
http://opendatacommunities.org/doc/london-borough-council/havering,London Borough of Havering,08/01/2016,-754.12,JAN2016L812,Beechcourt Care Centre_a,"Children, Adults & Housing",Adult Services,Adult Community Team,Physical Support,NURSING CARE INCOME
http://opendatacommunities.org/doc/london-borough-council/havering,London Borough of Havering,08/01/2016,2033.96,JAN2016L813,Beechcourt Care Centre_a,"Children, Adults & Housing",Adult Services,Adult Community Team,Physical Support,NURSING HOMES - PRIVATE CONTRACTORS PAYMENT
http://opendatacommunities.org/doc/london-borough-council/havering,London Borough of Havering,08/01/2016,-505.20,JAN2016L814,Beechcourt Care Centre_a,"Children, Adults & Housing",Adult Services,Adult Community Team,Physical Support,NURSING CARE INCOME
http://opendatacommunities.org/doc/london-borough-council/havering,London Borough of Havering,08/01/2016,1970.92,JAN2016L815,Beechcourt Care Centre_a,"Children, Adults & Housing",Adult Services,Adult Community Team,Physical Support,NURSING HOMES - PRIVATE CONTRACTORS PAYMENT
http://opendatacommunities.org/doc/london-borough-council/havering,London Borough of Havering,08/01/2016,-807.80,JAN2016L816,Beechcourt Care Centre_a,"Children, Adults & Housing",Adult Services,Adult Community Team,Physical Support,NURSING CARE INCOME
http://opendatacommunities.org/doc/london-borough-council/havering,London Borough of Havering,08/01/2016,1970.92,JAN2016L817,Beechcourt Care Centre_a,"Children, Adults & Housing",Adult Services,Adult Community Team,Physical Support,NURSING HOMES - PRIVATE CONTRACTORS PAYMENT
http://opendatacommunities.org/doc/london-borough-council/havering,London Borough of Havering,08/01/2016,-505.20,JAN2016L818,Beechcourt Care Centre_a,"Children, Adults & Housing",Adult Services,Adult Community Team,Physical Support,NURSING CARE INCOME
http://opendatacommunities.org/doc/london-borough-council/havering,London Borough of Havering,08/01/2016,1970.92,JAN2016L819,Beechcourt Care Centre_a,"Children, Adults & Housing",Adult Services,Adult Community Team,Physical Support,NURSING HOMES - PRIVATE CONTRACTORS PAYMENT
http://opendatacommunities.org/doc/london-borough-council/havering,London Borough of Havering,08/01/2016,-505.36,JAN2016L820,Beechcourt Care Centre_a,"Children, Adults & Housing",Adult Services,Adult Community Team,Physical Support,NURSING CARE INCOME
http://opendatacommunities.org/doc/london-borough-council/havering,London Borough of Havering,08/01/2016,2071.80,JAN2016L821,Beechcourt Care Centre_a,"Children, Adults & Housing",Adult Services,Adult Community Team,Physical Support,NURSING HOMES - PRIVATE CONTRACTORS PAYMENT
http://opendatacommunities.org/doc/london-borough-council/havering,London Borough of Havering,08/01/2016,3862.76,JAN2016L824,Hilton House_a,"Children, Adults & Housing",Adult Services,Learning Disabilities,Learning Disability Support,RESIDENTIAL PLACEMENTS - PRIVATE CONTRACTORS PAYMENT
http://opendatacommunities.org/doc/london-borough-council/havering,London Borough of Havering,08/01/2016,2097.08,JAN2016L825,Nightingale Residential Care Home Ltd_a,"Children, Adults & Housing",Mental Health,Mental Health - Non Section 75,Mental Health Support,RESIDENTIAL PLACEMENTS - PRIVATE CONTRACTORS PAYMENT
http://opendatacommunities.org/doc/london-borough-council/havering,London Borough of Havering,08/01/2016,2139.04,JAN2016L826,Nightingale Residential Care Home Ltd_a,"Children, Adults & Housing",Adult Services,Adult Community Team,Support with Memory & Cognition,RESIDENTIAL PLACEMENTS - PRIVATE CONTRACTORS PAYMENT
http://opendatacommunities.org/doc/london-borough-council/havering,London Borough of Havering,08/01/2016,2097.08,JAN2016L827,Nightingale Residential Care Home Ltd_a,"Children, Adults & Housing",Adult Services,Adult Community Team,Sensory Support,RESIDENTIAL PLACEMENTS - PRIVATE CONTRACTORS PAYMENT
http://opendatacommunities.org/doc/london-borough-council/havering,London Borough of Havering,08/01/2016,2139.04,JAN2016L828,Nightingale Residential Care Home Ltd_a,"Children, Adults & Housing",Adult Services,Adult Community Team,Physical Support,RESIDENTIAL PLACEMENTS - PRIVATE CONTRACTORS PAYMENT
http://opendatacommunities.org/doc/london-borough-council/havering,London Borough of Havering,08/01/2016,2139.04,JAN2016L829,Nightingale Residential Care Home Ltd_a,"Children, Adults & Housing",Adult Services,Adult Community Team,Physical Support,RESIDENTIAL PLACEMENTS - PRIVATE CONTRACTORS PAYMENT
http://opendatacommunities.org/doc/london-borough-council/havering,London Borough of Havering,08/01/2016,-903.68,JAN2016L830,Nightingale Residential Care Home Ltd_a,"Children, Adults & Housing",Adult Services,Adult Community Team,Physical Support,RESIDENTIAL CARE INCOME
http://opendatacommunities.org/doc/london-borough-council/havering,London Borough of Havering,08/01/2016,2139.04,JAN2016L831,Nightingale Residential Care Home Ltd_a,"Children, Adults & Housing",Adult Services,Adult Community Team,Physical Support,RESIDENTIAL PLACEMENTS - PRIVATE CONTRACTORS PAYMENT
http://opendatacommunities.org/doc/london-borough-council/havering,London Borough of Havering,08/01/2016,-800.24,JAN2016L832,Nightingale Residential Care Home Ltd_a,"Children, Adults & Housing",Adult Services,Adult Community Team,Support with Memory & Cognition,RESIDENTIAL CARE INCOME
http://opendatacommunities.org/doc/london-borough-council/havering,London Borough of Havering,08/01/2016,1849.04,JAN2016L833,Nightingale Residential Care Home Ltd_a,"Children, Adults & Housing",Adult Services,Adult Community Team,Support with Memory & Cognition,RESIDENTIAL PLACEMENTS - PRIVATE CONTRACTORS PAYMENT
http://opendatacommunities.org/doc/london-borough-council/havering,London Borough of Havering,08/01/2016,-566.84,JAN2016L834,Nightingale Residential Care Home Ltd_a,"Children, Adults & Housing",Adult Services,Adult Community Team,Physical Support,RESIDENTIAL CARE INCOME
http://opendatacommunities.org/doc/london-borough-council/havering,London Borough of Havering,08/01/2016,2139.04,JAN2016L835,Nightingale Residential Care Home Ltd_a,"Children, Adults & Housing",Adult Services,Adult Community Team,Physical Support,RESIDENTIAL PLACEMENTS - PRIVATE CONTRACTORS PAYMENT
http://opendatacommunities.org/doc/london-borough-council/havering,London Borough of Havering,08/01/2016,-505.20,JAN2016L836,Nightingale Residential Care Home Ltd_a,"Children, Adults & Housing",Adult Services,Adult Community Team,Physical Support,RESIDENTIAL CARE INCOME
http://opendatacommunities.org/doc/london-borough-council/havering,London Borough of Havering,08/01/2016,1849.04,JAN2016L837,Nightingale Residential Care Home Ltd_a,"Children, Adults & Housing",Adult Services,Adult Community Team,Physical Support,RESIDENTIAL PLACEMENTS - PRIVATE CONTRACTORS PAYMENT
http://opendatacommunities.org/doc/london-borough-council/havering,London Borough of Havering,08/01/2016,-505.20,JAN2016L838,Nightingale Residential Care Home Ltd_a,"Children, Adults & Housing",Adult Services,Adult Community Team,Support with Memory & Cognition,RESIDENTIAL CARE INCOME
http://opendatacommunities.org/doc/london-borough-council/havering,London Borough of Havering,08/01/2016,2139.04,JAN2016L839,Nightingale Residential Care Home Ltd_a,"Children, Adults & Housing",Adult Services,Adult Community Team,Support with Memory & Cognition,RESIDENTIAL PLACEMENTS - PRIVATE CONTRACTORS PAYMENT
http://opendatacommunities.org/doc/london-borough-council/havering,London Borough of Havering,08/01/2016,-796.56,JAN2016L840,Nightingale Residential Care Home Ltd_a,"Children, Adults & Housing",Adult Services,Adult Community Team,Support with Memory & Cognition,RESIDENTIAL CARE INCOME
http://opendatacommunities.org/doc/london-borough-council/havering,London Borough of Havering,08/01/2016,2139.04,JAN2016L841,Nightingale Residential Care Home Ltd_a,"Children, Adults & Housing",Adult Services,Adult Community Team,Support with Memory & Cognition,RESIDENTIAL PLACEMENTS - PRIVATE CONTRACTORS PAYMENT
http://opendatacommunities.org/doc/london-borough-council/havering,London Borough of Havering,08/01/2016,-505.20,JAN2016L842,Nightingale Residential Care Home Ltd_a,"Children, Adults & Housing",Adult Services,Adult Community Team,Support with Memory & Cognition,RESIDENTIAL CARE INCOME
http://opendatacommunities.org/doc/london-borough-council/havering,London Borough of Havering,08/01/2016,2139.04,JAN2016L843,Nightingale Residential Care Home Ltd_a,"Children, Adults & Housing",Adult Services,Adult Community Team,Support with Memory & Cognition,RESIDENTIAL PLACEMENTS - PRIVATE CONTRACTORS PAYMENT
http://opendatacommunities.org/doc/london-borough-council/havering,London Borough of Havering,08/01/2016,-505.20,JAN2016L844,Nightingale Residential Care Home Ltd_a,"Children, Adults & Housing",Adult Services,Adult Community Team,Physical Support,RESIDENTIAL CARE INCOME
http://opendatacommunities.org/doc/london-borough-council/havering,London Borough of Havering,08/01/2016,2139.04,JAN2016L845,Nightingale Residential Care Home Ltd_a,"Children, Adults & Housing",Adult Services,Adult Community Team,Physical Support,RESIDENTIAL PLACEMENTS - PRIVATE CONTRACTORS PAYMENT
http://opendatacommunities.org/doc/london-borough-council/havering,London Borough of Havering,08/01/2016,-516.40,JAN2016L846,Nightingale Residential Care Home Ltd_a,"Children, Adults & Housing",Adult Services,Adult Community Team,Physical Support,RESIDENTIAL CARE INCOME
http://opendatacommunities.org/doc/london-borough-council/havering,London Borough of Havering,08/01/2016,1849.04,JAN2016L847,Nightingale Residential Care Home Ltd_a,"Children, Adults & Housing",Adult Services,Adult Community Team,Physical Support,RESIDENTIAL PLACEMENTS - PRIVATE CONTRACTORS PAYMENT
http://opendatacommunities.org/doc/london-borough-council/havering,London Borough of Havering,08/01/2016,-488.68,JAN2016L848,Nightingale Residential Care Home Ltd_a,"Children, Adults & Housing",Adult Services,Adult Community Team,Physical Support,RESIDENTIAL CARE INCOME
http://opendatacommunities.org/doc/london-borough-council/havering,London Borough of Havering,08/01/2016,2139.04,JAN2016L849,Nightingale Residential Care Home Ltd_a,"Children, Adults & Housing",Adult Services,Adult Community Team,Physical Support,RESIDENTIAL PLACEMENTS - PRIVATE CONTRACTORS PAYMENT
http://opendatacommunities.org/doc/london-borough-council/havering,London Borough of Havering,08/01/2016,-1318.56,JAN2016L850,Nightingale Residential Care Home Ltd_a,"Children, Adults & Housing",Adult Services,Adult Community Team,Physical Support,RESIDENTIAL CARE INCOME
http://opendatacommunities.org/doc/london-borough-council/havering,London Borough of Havering,08/01/2016,2139.04,JAN2016L851,Nightingale Residential Care Home Ltd_a,"Children, Adults & Housing",Adult Services,Adult Community Team,Physical Support,RESIDENTIAL PLACEMENTS - PRIVATE CONTRACTORS PAYMENT
http://opendatacommunities.org/doc/london-borough-council/havering,London Borough of Havering,08/01/2016,-693.12,JAN2016L852,Nightingale Residential Care Home Ltd_a,"Children, Adults & Housing",Adult Services,Adult Community Team,Physical Support,RESIDENTIAL CARE INCOME
http://opendatacommunities.org/doc/london-borough-council/havering,London Borough of Havering,08/01/2016,2139.04,JAN2016L853,Nightingale Residential Care Home Ltd_a,"Children, Adults & Housing",Adult Services,Adult Community Team,Physical Support,RESIDENTIAL PLACEMENTS - PRIVATE CONTRACTORS PAYMENT
http://opendatacommunities.org/doc/london-borough-council/havering,London Borough of Havering,08/01/2016,-505.20,JAN2016L854,Nightingale Residential Care Home Ltd_a,"Children, Adults & Housing",Adult Services,Adult Community Team,Physical Support,RESIDENTIAL CARE INCOME
http://opendatacommunities.org/doc/london-borough-council/havering,London Borough of Havering,08/01/2016,2139.04,JAN2016L855,Nightingale Residential Care Home Ltd_a,"Children, Adults & Housing",Adult Services,Adult Community Team,Physical Support,RESIDENTIAL PLACEMENTS - PRIVATE CONTRACTORS PAYMENT
http://opendatacommunities.org/doc/london-borough-council/havering,London Borough of Havering,08/01/2016,-1527.89,JAN2016L856,Nightingale Residential Care Home Ltd_a,"Children, Adults & Housing",Adult Services,Adult Community Team,Physical Support,RESIDENTIAL PLACEMENTS - PRIVATE CONTRACTORS PAYMENT
http://opendatacommunities.org/doc/london-borough-council/havering,London Borough of Havering,08/01/2016,2055.84,JAN2016L857,Dudbrook Hall Residential Home_a,"Children, Adults & Housing",Adult Services,Adult Community Team,Physical Support,RESIDENTIAL PLACEMENTS - PRIVATE CONTRACTORS PAYMENT
http://opendatacommunities.org/doc/london-borough-council/havering,London Borough of Havering,08/01/2016,-1444.37,JAN2016L858,Dudbrook Hall Residential Home_a,"Children, Adults & Housing",Adult Services,Adult Community Team,Physical Support,RESIDENTIAL CARE INCOME
http://opendatacommunities.org/doc/london-borough-council/havering,London Borough of Havering,08/01/2016,6264.33,JAN2016L859,Dudbrook Hall Residential Home_a,"Children, Adults & Housing",Adult Services,Adult Community Team,Physical Support,RESIDENTIAL PLACEMENTS - PRIVATE CONTRACTORS PAYMENT
http://opendatacommunities.org/doc/london-borough-council/havering,London Borough of Havering,08/01/2016,2033.96,JAN2016L860,Havering Care Homes Ltd t/a Abbscross Nursing Home_a,"Children, Adults & Housing",Adult Services,Adult Community Team,Physical Support,NURSING HOMES - PRIVATE CONTRACTORS PAYMENT
http://opendatacommunities.org/doc/london-borough-council/havering,London Borough of Havering,08/01/2016,2033.96,JAN2016L861,Havering Care Homes Ltd t/a Abbscross Nursing Home_a,"Children, Adults & Housing",Adult Services,Adult Community Team,Support with Memory & Cognition,NURSING HOMES - PRIVATE CONTRACTORS PAYMENT
http://opendatacommunities.org/doc/london-borough-council/havering,London Borough of Havering,08/01/2016,1970.92,JAN2016L862,Havering Care Homes Ltd t/a Abbscross Nursing Home_a,"Children, Adults & Housing",Adult Services,Adult Community Team,Physical Support,NURSING HOMES - PRIVATE CONTRACTORS PAYMENT
http://opendatacommunities.org/doc/london-borough-council/havering,London Borough of Havering,08/01/2016,-849.80,JAN2016L863,Havering Care Homes Ltd t/a Abbscross Nursing Home_a,"Children, Adults & Housing",Adult Services,Adult Community Team,Physical Support,NURSING CARE INCOME
http://opendatacommunities.org/doc/london-borough-council/havering,London Borough of Havering,08/01/2016,2113.72,JAN2016L864,Havering Care Homes Ltd t/a Abbscross Nursing Home_a,"Children, Adults & Housing",Adult Services,Adult Community Team,Physical Support,NURSING HOMES - PRIVATE CONTRACTORS PAYMENT
http://opendatacommunities.org/doc/london-borough-council/havering,London Borough of Havering,08/01/2016,-1169.32,JAN2016L865,Havering Care Homes Ltd t/a Abbscross Nursing Home_a,"Children, Adults & Housing",Adult Services,Adult Community Team,Physical Support,NURSING CARE INCOME
http://opendatacommunities.org/doc/london-borough-council/havering,London Borough of Havering,08/01/2016,1970.92,JAN2016L866,Havering Care Homes Ltd t/a Abbscross Nursing Home_a,"Children, Adults & Housing",Adult Services,Adult Community Team,Physical Support,NURSING HOMES - PRIVATE CONTRACTORS PAYMENT
http://opendatacommunities.org/doc/london-borough-council/havering,London Borough of Havering,08/01/2016,-566.32,JAN2016L867,Havering Care Homes Ltd t/a Abbscross Nursing Home_a,"Children, Adults & Housing",Adult Services,Adult Community Team,Support with Memory & Cognition,NURSING CARE INCOME
http://opendatacommunities.org/doc/london-borough-council/havering,London Borough of Havering,08/01/2016,1970.92,JAN2016L868,Havering Care Homes Ltd t/a Abbscross Nursing Home_a,"Children, Adults & Housing",Adult Services,Adult Community Team,Support with Memory & Cognition,NURSING HOMES - PRIVATE CONTRACTORS PAYMENT
http://opendatacommunities.org/doc/london-borough-council/havering,London Borough of Havering,08/01/2016,-424.08,JAN2016L869,Havering Care Homes Ltd t/a Abbscross Nursing Home_a,"Children, Adults & Housing",Adult Services,Adult Community Team,Physical Support,NURSING CARE INCOME
http://opendatacommunities.org/doc/london-borough-council/havering,London Borough of Havering,08/01/2016,2033.96,JAN2016L870,Havering Care Homes Ltd t/a Abbscross Nursing Home_a,"Children, Adults & Housing",Adult Services,Adult Community Team,Physical Support,NURSING HOMES - PRIVATE CONTRACTORS PAYMENT
http://opendatacommunities.org/doc/london-borough-council/havering,London Borough of Havering,08/01/2016,2139.04,JAN2016L871,Abbey Care Home Ltd t/a Abbey Care Home_a,"Children, Adults & Housing",Adult Services,Adult Community Team,Support with Memory & Cognition,RESIDENTIAL PLACEMENTS - PRIVATE CONTRACTORS PAYMENT
http://opendatacommunities.org/doc/london-borough-council/havering,London Borough of Havering,08/01/2016,2139.04,JAN2016L872,Abbey Care Home Ltd t/a Abbey Care Home_a,"Children, Adults & Housing",Adult Services,Adult Community Team,Physical Support,RESIDENTIAL PLACEMENTS - PRIVATE CONTRACTORS PAYMENT
http://opendatacommunities.org/doc/london-borough-council/havering,London Borough of Havering,08/01/2016,1849.04,JAN2016L873,Abbey Care Home Ltd t/a Abbey Care Home_a,"Children, Adults & Housing",Adult Services,Adult Community Team,Physical Support,RESIDENTIAL PLACEMENTS - PRIVATE CONTRACTORS PAYMENT
http://opendatacommunities.org/doc/london-borough-council/havering,London Borough of Havering,07/01/2016,630.00,JAN2016L874,Tapestry_a.,"Children, Adults & Housing",Adult Services,Adult Community Team,Physical Support,DAYCARE - PRIVATE CONTRACTORS PAYMENT
http://opendatacommunities.org/doc/london-borough-council/havering,London Borough of Havering,07/01/2016,585.00,JAN2016L875,Tapestry_a.,"Children, Adults & Housing",Adult Services,Adult Community Team,Physical Support,DAYCARE - PRIVATE CONTRACTORS PAYMENT
http://opendatacommunities.org/doc/london-borough-council/havering,London Borough of Havering,07/01/2016,405.00,JAN2016L876,Tapestry_a.,"Children, Adults & Housing",Adult Services,Adult Community Team,Physical Support,DAYCARE - PRIVATE CONTRACTORS PAYMENT
http://opendatacommunities.org/doc/london-borough-council/havering,London Borough of Havering,07/01/2016,450.00,JAN2016L877,Tapestry_a.,"Children, Adults & Housing",Adult Services,Adult Community Team,Physical Support,DAYCARE - PRIVATE CONTRACTORS PAYMENT
http://opendatacommunities.org/doc/london-borough-council/havering,London Borough of Havering,07/01/2016,630.00,JAN2016L878,Tapestry_a.,"Children, Adults & Housing",Adult Services,Adult Community Team,Support with Memory & Cognition,DAYCARE - PRIVATE CONTRACTORS PAYMENT
http://opendatacommunities.org/doc/london-borough-council/havering,London Borough of Havering,07/01/2016,585.00,JAN2016L879,Tapestry_a.,"Children, Adults & Housing",Adult Services,Adult Community Team,Physical Support,DAYCARE - PRIVATE CONTRACTORS PAYMENT
http://opendatacommunities.org/doc/london-borough-council/havering,London Borough of Havering,07/01/2016,720.00,JAN2016L880,Tapestry_a.,"Children, Adults & Housing",Adult Services,Adult Community Team,Support with Memory & Cognition,DAYCARE - PRIVATE CONTRACTORS PAYMENT
http://opendatacommunities.org/doc/london-borough-council/havering,London Borough of Havering,07/01/2016,450.00,JAN2016L881,Tapestry_a.,"Children, Adults & Housing",Adult Services,Adult Community Team,Support for Social Isolation - Other,DAYCARE - PRIVATE CONTRACTORS PAYMENT
http://opendatacommunities.org/doc/london-borough-council/havering,London Borough of Havering,07/01/2016,585.00,JAN2016L882,Tapestry_a.,"Children, Adults & Housing",Adult Services,Adult Community Team,Physical Support,DAYCARE - PRIVATE CONTRACTORS PAYMENT
http://opendatacommunities.org/doc/london-borough-council/havering,London Borough of Havering,07/01/2016,540.00,JAN2016L883,Tapestry_a.,"Children, Adults & Housing",Adult Services,Adult Community Team,Physical Support,DAYCARE - PRIVATE CONTRACTORS PAYMENT
http://opendatacommunities.org/doc/london-borough-council/havering,London Borough of Havering,07/01/2016,450.00,JAN2016L884,Tapestry_a.,"Children, Adults & Housing",Adult Services,Adult Community Team,Support for Social Isolation - Other,DAYCARE - PRIVATE CONTRACTORS PAYMENT
http://opendatacommunities.org/doc/london-borough-council/havering,London Borough of Havering,07/01/2016,405.00,JAN2016L885,Tapestry_a.,"Children, Adults & Housing",Adult Services,Adult Community Team,Physical Support,DAYCARE - PRIVATE CONTRACTORS PAYMENT
http://opendatacommunities.org/doc/london-borough-council/havering,London Borough of Havering,07/01/2016,720.00,JAN2016L886,Tapestry_a.,"Children, Adults & Housing",Adult Services,Adult Community Team,Support for Social Isolation - Other,DAYCARE - PRIVATE CONTRACTORS PAYMENT
http://opendatacommunities.org/doc/london-borough-council/havering,London Borough of Havering,07/01/2016,900.00,JAN2016L887,Tapestry_a.,"Children, Adults & Housing",Adult Services,Adult Community Team,Physical Support,DAYCARE - PRIVATE CONTRACTORS PAYMENT
http://opendatacommunities.org/doc/london-borough-council/havering,London Borough of Havering,07/01/2016,720.00,JAN2016L888,Tapestry_a.,"Children, Adults & Housing",Adult Services,Adult Community Team,Physical Support,DAYCARE - PRIVATE CONTRACTORS PAYMENT
http://opendatacommunities.org/doc/london-borough-council/havering,London Borough of Havering,21/01/2016,900.00,JAN2016L889,Tapestry_a.,"Children, Adults & Housing",Adult Services,Adult Community Team,Support with Memory & Cognition,DAYCARE - PRIVATE CONTRACTORS PAYMENT
http://opendatacommunities.org/doc/london-borough-council/havering,London Borough of Havering,21/01/2016,540.00,JAN2016L890,Tapestry_a.,"Children, Adults & Housing",Adult Services,Adult Community Team,Support with Memory & Cognition,DAYCARE - PRIVATE CONTRACTORS PAYMENT
http://opendatacommunities.org/doc/london-borough-council/havering,London Borough of Havering,21/01/2016,900.00,JAN2016L891,Tapestry_a.,"Children, Adults & Housing",Adult Services,Adult Community Team,Physical Support,DAYCARE - PRIVATE CONTRACTORS PAYMENT
http://opendatacommunities.org/doc/london-borough-council/havering,London Borough of Havering,21/01/2016,495.00,JAN2016L892,Tapestry_a.,"Children, Adults & Housing",Adult Services,Adult Community Team,Physical Support,DAYCARE - PRIVATE CONTRACTORS PAYMENT
http://opendatacommunities.org/doc/london-borough-council/havering,London Borough of Havering,21/01/2016,540.00,JAN2016L893,Tapestry_a.,"Children, Adults & Housing",Adult Services,Adult Community Team,Support for Social Isolation - Other,DAYCARE - PRIVATE CONTRACTORS PAYMENT
http://opendatacommunities.org/doc/london-borough-council/havering,London Borough of Havering,21/01/2016,495.00,JAN2016L894,Tapestry_a.,"Children, Adults & Housing",Adult Services,Adult Community Team,Physical Support,DAYCARE - PRIVATE CONTRACTORS PAYMENT
http://opendatacommunities.org/doc/london-borough-council/havering,London Borough of Havering,12/01/2016,27375.00,JAN2016L895,Tapestry_a.,"Children, Adults & Housing",Adult Services,Strategy and Commissioning,Adult Community Commissioning,PAYMENTS TO VOLUNTARY SECTOR
http://opendatacommunities.org/doc/london-borough-council/havering,London Borough of Havering,12/01/2016,19545.95,JAN2016L896,Tapestry_a.,"Children, Adults & Housing",Adult Services,Strategy and Commissioning,Carers Commissioning,PAYMENTS TO VOLUNTARY SECTOR
http://opendatacommunities.org/doc/london-borough-council/havering,London Borough of Havering,12/01/2016,7612.50,JAN2016L897,Tapestry_a.,"Children, Adults & Housing",Adult Services,Strategy and Commissioning,Carers Commissioning,PAYMENTS TO VOLUNTARY SECTOR
http://opendatacommunities.org/doc/london-borough-council/havering,London Borough of Havering,12/01/2016,3046.50,JAN2016L898,Tapestry_a.,"Children, Adults & Housing",Adult Services,Strategy and Commissioning,Mental Health Commissioning,PAYMENTS TO VOLUNTARY SECTOR
http://opendatacommunities.org/doc/london-borough-council/havering,London Borough of Havering,08/01/2016,2033.96,JAN2016L903,One Tree Estates Ltd t/a Ashbrook Nursing Home_a,"Children, Adults & Housing",Adult Services,Adult Community Team,Physical Support,NURSING HOMES - PRIVATE CONTRACTORS PAYMENT
http://opendatacommunities.org/doc/london-borough-council/havering,London Borough of Havering,08/01/2016,1970.92,JAN2016L904,One Tree Estates Ltd t/a Ashbrook Nursing Home_a,"Children, Adults & Housing",Adult Services,Adult Community Team,Sensory Support,NURSING HOMES - PRIVATE CONTRACTORS PAYMENT
http://opendatacommunities.org/doc/london-borough-council/havering,London Borough of Havering,08/01/2016,2139.04,JAN2016L905,One Tree Estates Ltd t/a Ashbrook Nursing Home_a,"Children, Adults & Housing",Adult Services,Adult Community Team,Support for Social Isolation - Other,RESIDENTIAL PLACEMENTS - PRIVATE CONTRACTORS PAYMENT
http://opendatacommunities.org/doc/london-borough-council/havering,London Borough of Havering,08/01/2016,-1214.48,JAN2016L906,One Tree Estates Ltd t/a Ashbrook Nursing Home_a,"Children, Adults & Housing",Adult Services,Adult Community Team,Physical Support,NURSING CARE INCOME
http://opendatacommunities.org/doc/london-borough-council/havering,London Borough of Havering,08/01/2016,2033.96,JAN2016L907,One Tree Estates Ltd t/a Ashbrook Nursing Home_a,"Children, Adults & Housing",Adult Services,Adult Community Team,Physical Support,NURSING HOMES - PRIVATE CONTRACTORS PAYMENT
http://opendatacommunities.org/doc/london-borough-council/havering,London Borough of Havering,08/01/2016,-513.08,JAN2016L908,One Tree Estates Ltd t/a Ashbrook Nursing Home_a,"Children, Adults & Housing",Adult Services,Adult Community Team,Support with Memory & Cognition,RESIDENTIAL CARE INCOME
http://opendatacommunities.org/doc/london-borough-council/havering,London Borough of Havering,08/01/2016,2139.04,JAN2016L909,One Tree Estates Ltd t/a Ashbrook Nursing Home_a,"Children, Adults & Housing",Adult Services,Adult Community Team,Physical Support,RESIDENTIAL PLACEMENTS - PRIVATE CONTRACTORS PAYMENT
http://opendatacommunities.org/doc/london-borough-council/havering,London Borough of Havering,08/01/2016,-505.20,JAN2016L910,One Tree Estates Ltd t/a Ashbrook Nursing Home_a,"Children, Adults & Housing",Adult Services,Adult Community Team,Physical Support,NURSING CARE INCOME
http://opendatacommunities.org/doc/london-borough-council/havering,London Borough of Havering,08/01/2016,2033.96,JAN2016L911,One Tree Estates Ltd t/a Ashbrook Nursing Home_a,"Children, Adults & Housing",Adult Services,Adult Community Team,Physical Support,NURSING HOMES - PRIVATE CONTRACTORS PAYMENT
http://opendatacommunities.org/doc/london-borough-council/havering,London Borough of Havering,08/01/2016,-505.20,JAN2016L912,One Tree Estates Ltd t/a Ashbrook Nursing Home_a,"Children, Adults & Housing",Adult Services,Adult Community Team,Physical Support,NURSING CARE INCOME
http://opendatacommunities.org/doc/london-borough-council/havering,London Borough of Havering,08/01/2016,1970.92,JAN2016L913,One Tree Estates Ltd t/a Ashbrook Nursing Home_a,"Children, Adults & Housing",Adult Services,Adult Community Team,Physical Support,NURSING HOMES - PRIVATE CONTRACTORS PAYMENT
http://opendatacommunities.org/doc/london-borough-council/havering,London Borough of Havering,08/01/2016,-721.71,JAN2016L914,One Tree Estates Ltd t/a Ashbrook Nursing Home_a,"Children, Adults & Housing",Adult Services,Adult Community Team,Physical Support,NURSING CARE INCOME
http://opendatacommunities.org/doc/london-borough-council/havering,London Borough of Havering,08/01/2016,2815.60,JAN2016L915,One Tree Estates Ltd t/a Ashbrook Nursing Home_a,"Children, Adults & Housing",Adult Services,Adult Community Team,Physical Support,NURSING HOMES - PRIVATE CONTRACTORS PAYMENT
http://opendatacommunities.org/doc/london-borough-council/havering,London Borough of Havering,08/01/2016,3060.00,JAN2016L916,Little Gaynes_a,"Children, Adults & Housing",Adult Services,Adult Community Team,Physical Support,RESIDENTIAL PLACEMENTS - PRIVATE CONTRACTORS PAYMENT
http://opendatacommunities.org/doc/london-borough-council/havering,London Borough of Havering,08/01/2016,-1013.56,JAN2016L917,Little Gaynes_a,"Children, Adults & Housing",Adult Services,Adult Community Team,Support with Memory & Cognition,RESIDENTIAL CARE INCOME
http://opendatacommunities.org/doc/london-borough-council/havering,London Borough of Havering,08/01/2016,2139.04,JAN2016L918,Little Gaynes_a,"Children, Adults & Housing",Adult Services,Adult Community Team,Support with Memory & Cognition,RESIDENTIAL PLACEMENTS - PRIVATE CONTRACTORS PAYMENT
http://opendatacommunities.org/doc/london-borough-council/havering,London Borough of Havering,08/01/2016,-858.48,JAN2016L919,Little Gaynes_a,"Children, Adults & Housing",Adult Services,Adult Community Team,Physical Support,RESIDENTIAL PLACEMENTS - PRIVATE CONTRACTORS PAYMENT
http://opendatacommunities.org/doc/london-borough-council/havering,London Borough of Havering,26/01/2016,3400.00,JAN2016L920,Essex County Council_a,"Children, Adults & Housing",Adult Services,Learning Disabilities,Learning Disability Support,DAYCARE - PRIVATE CONTRACTORS PAYMENT
http://opendatacommunities.org/doc/london-borough-council/havering,London Borough of Havering,26/01/2016,16008.84,JAN2016L921,Essex County Council_a,"Children, Adults & Housing",Adult Services,Learning Disabilities,Learning Disability Support,DAYCARE - PRIVATE CONTRACTORS PAYMENT
http://opendatacommunities.org/doc/london-borough-council/havering,London Borough of Havering,08/01/2016,2139.04,JAN2016L922,Masumin Ltd t/s Abbeleigh House_a,"Children, Adults & Housing",Adult Services,Adult Community Team,Support with Memory & Cognition,RESIDENTIAL PLACEMENTS - PRIVATE CONTRACTORS PAYMENT
http://opendatacommunities.org/doc/london-borough-council/havering,London Borough of Havering,08/01/2016,2139.04,JAN2016L923,Masumin Ltd t/s Abbeleigh House_a,"Children, Adults & Housing",Adult Services,Adult Community Team,Physical Support,RESIDENTIAL PLACEMENTS - PRIVATE CONTRACTORS PAYMENT
http://opendatacommunities.org/doc/london-borough-council/havering,London Borough of Havering,08/01/2016,2139.04,JAN2016L924,Masumin Ltd t/s Abbeleigh House_a,"Children, Adults & Housing",Adult Services,Adult Community Team,Physical Support,RESIDENTIAL PLACEMENTS - PRIVATE CONTRACTORS PAYMENT
http://opendatacommunities.org/doc/london-borough-council/havering,London Borough of Havering,08/01/2016,2139.04,JAN2016L925,Masumin Ltd t/s Abbeleigh House_a,"Children, Adults & Housing",Adult Services,Adult Community Team,Physical Support,RESIDENTIAL PLACEMENTS - PRIVATE CONTRACTORS PAYMENT
http://opendatacommunities.org/doc/london-borough-council/havering,London Borough of Havering,08/01/2016,-505.20,JAN2016L926,Masumin Ltd t/s Abbeleigh House_a,"Children, Adults & Housing",Adult Services,Learning Disabilities,Learning Disability Support,RESIDENTIAL CARE INCOME
http://opendatacommunities.org/doc/london-borough-council/havering,London Borough of Havering,08/01/2016,2112.96,JAN2016L927,Masumin Ltd t/s Abbeleigh House_a,"Children, Adults & Housing",Adult Services,Learning Disabilities,Learning Disability Support,RESIDENTIAL PLACEMENTS - PRIVATE CONTRACTORS PAYMENT
http://opendatacommunities.org/doc/london-borough-council/havering,London Borough of Havering,08/01/2016,-505.20,JAN2016L928,Masumin Ltd t/s Abbeleigh House_a,"Children, Adults & Housing",Adult Services,Learning Disabilities,Learning Disability Support,RESIDENTIAL CARE INCOME
http://opendatacommunities.org/doc/london-borough-council/havering,London Borough of Havering,08/01/2016,2112.96,JAN2016L929,Masumin Ltd t/s Abbeleigh House_a,"Children, Adults & Housing",Adult Services,Learning Disabilities,Learning Disability Support,RESIDENTIAL PLACEMENTS - PRIVATE CONTRACTORS PAYMENT
http://opendatacommunities.org/doc/london-borough-council/havering,London Borough of Havering,08/01/2016,-1035.68,JAN2016L930,Masumin Ltd t/s Abbeleigh House_a,"Children, Adults & Housing",Adult Services,Adult Community Team,Physical Support,RESIDENTIAL CARE INCOME
http://opendatacommunities.org/doc/london-borough-council/havering,London Borough of Havering,08/01/2016,2139.04,JAN2016L931,Masumin Ltd t/s Abbeleigh House_a,"Children, Adults & Housing",Adult Services,Adult Community Team,Physical Support,RESIDENTIAL PLACEMENTS - PRIVATE CONTRACTORS PAYMENT
http://opendatacommunities.org/doc/london-borough-council/havering,London Borough of Havering,08/01/2016,-541.12,JAN2016L932,Masumin Ltd t/s Abbeleigh House_a,"Children, Adults & Housing",Adult Services,Adult Community Team,Physical Support,RESIDENTIAL CARE INCOME
http://opendatacommunities.org/doc/london-borough-council/havering,London Borough of Havering,08/01/2016,2139.04,JAN2016L933,Masumin Ltd t/s Abbeleigh House_a,"Children, Adults & Housing",Adult Services,Adult Community Team,Physical Support,RESIDENTIAL PLACEMENTS - PRIVATE CONTRACTORS PAYMENT
http://opendatacommunities.org/doc/london-borough-council/havering,London Borough of Havering,08/01/2016,-880.64,JAN2016L934,Masumin Ltd t/s Abbeleigh House_a,"Children, Adults & Housing",Adult Services,Adult Community Team,Physical Support,RESIDENTIAL CARE INCOME
http://opendatacommunities.org/doc/london-borough-council/havering,London Borough of Havering,08/01/2016,2139.04,JAN2016L935,Masumin Ltd t/s Abbeleigh House_a,"Children, Adults & Housing",Adult Services,Adult Community Team,Physical Support,RESIDENTIAL PLACEMENTS - PRIVATE CONTRACTORS PAYMENT
http://opendatacommunities.org/doc/london-borough-council/havering,London Borough of Havering,08/01/2016,-505.20,JAN2016L936,Masumin Ltd t/s Abbeleigh House_a,"Children, Adults & Housing",Adult Services,Adult Community Team,Support with Memory & Cognition,RESIDENTIAL CARE INCOME
http://opendatacommunities.org/doc/london-borough-council/havering,London Borough of Havering,08/01/2016,2139.04,JAN2016L937,Masumin Ltd t/s Abbeleigh House_a,"Children, Adults & Housing",Adult Services,Adult Community Team,Support with Memory & Cognition,RESIDENTIAL PLACEMENTS - PRIVATE CONTRACTORS PAYMENT
http://opendatacommunities.org/doc/london-borough-council/havering,London Borough of Havering,08/01/2016,-505.20,JAN2016L938,Masumin Ltd t/s Abbeleigh House_a,"Children, Adults & Housing",Adult Services,Adult Community Team,Sensory Support,RESIDENTIAL CARE INCOME
http://opendatacommunities.org/doc/london-borough-council/havering,London Borough of Havering,08/01/2016,1849.04,JAN2016L939,Masumin Ltd t/s Abbeleigh House_a,"Children, Adults & Housing",Adult Services,Adult Community Team,Sensory Support,RESIDENTIAL PLACEMENTS - PRIVATE CONTRACTORS PAYMENT
http://opendatacommunities.org/doc/london-borough-council/havering,London Borough of Havering,08/01/2016,-524.48,JAN2016L940,Masumin Ltd t/s Abbeleigh House_a,"Children, Adults & Housing",Adult Services,Adult Community Team,Physical Support,RESIDENTIAL CARE INCOME
http://opendatacommunities.org/doc/london-borough-council/havering,London Borough of Havering,08/01/2016,2139.04,JAN2016L941,Masumin Ltd t/s Abbeleigh House_a,"Children, Adults & Housing",Adult Services,Adult Community Team,Physical Support,RESIDENTIAL PLACEMENTS - PRIVATE CONTRACTORS PAYMENT
http://opendatacommunities.org/doc/london-borough-council/havering,London Borough of Havering,08/01/2016,-801.32,JAN2016L942,Masumin Ltd t/s Abbeleigh House_a,"Children, Adults & Housing",Adult Services,Adult Community Team,Physical Support,RESIDENTIAL CARE INCOME
http://opendatacommunities.org/doc/london-borough-council/havering,London Borough of Havering,08/01/2016,2139.04,JAN2016L943,Masumin Ltd t/s Abbeleigh House_a,"Children, Adults & Housing",Adult Services,Adult Community Team,Physical Support,RESIDENTIAL PLACEMENTS - PRIVATE CONTRACTORS PAYMENT
http://opendatacommunities.org/doc/london-borough-council/havering,London Borough of Havering,08/01/2016,-1048.96,JAN2016L944,Masumin Ltd t/s Abbeleigh House_a,"Children, Adults & Housing",Adult Services,Adult Community Team,Physical Support,RESIDENTIAL CARE INCOME
http://opendatacommunities.org/doc/london-borough-council/havering,London Borough of Havering,08/01/2016,4278.08,JAN2016L945,Masumin Ltd t/s Abbeleigh House_a,"Children, Adults & Housing",Adult Services,Adult Community Team,Physical Support,RESIDENTIAL PLACEMENTS - PRIVATE CONTRACTORS PAYMENT
http://opendatacommunities.org/doc/london-borough-council/havering,London Borough of Havering,08/01/2016,-11153.57,JAN2016L946,Masumin Ltd t/s Abbeleigh House_a,"Children, Adults & Housing",Adult Services,Adult Community Team,Physical Support,RESIDENTIAL PLACEMENTS - PRIVATE CONTRACTORS PAYMENT
http://opendatacommunities.org/doc/london-borough-council/havering,London Borough of Havering,08/01/2016,2139.04,JAN2016L947,Moreland House_a,"Children, Adults & Housing",Adult Services,Adult Community Team,Support with Memory & Cognition,RESIDENTIAL PLACEMENTS - PRIVATE CONTRACTORS PAYMENT
http://opendatacommunities.org/doc/london-borough-council/havering,London Borough of Havering,08/01/2016,2600.00,JAN2016L948,Moreland House_a,"Children, Adults & Housing",Adult Services,Adult Community Team,Physical Support,RESIDENTIAL PLACEMENTS - PRIVATE CONTRACTORS PAYMENT
http://opendatacommunities.org/doc/london-borough-council/havering,London Borough of Havering,08/01/2016,-505.20,JAN2016L949,Moreland House_a,"Children, Adults & Housing",Adult Services,Adult Community Team,Support with Memory & Cognition,RESIDENTIAL CARE INCOME
http://opendatacommunities.org/doc/london-borough-council/havering,London Borough of Havering,08/01/2016,2139.04,JAN2016L950,Moreland House_a,"Children, Adults & Housing",Adult Services,Adult Community Team,Support with Memory & Cognition,RESIDENTIAL PLACEMENTS - PRIVATE CONTRACTORS PAYMENT
http://opendatacommunities.org/doc/london-borough-council/havering,London Borough of Havering,08/01/2016,-505.20,JAN2016L951,Moreland House_a,"Children, Adults & Housing",Adult Services,Adult Community Team,Support with Memory & Cognition,RESIDENTIAL CARE INCOME
http://opendatacommunities.org/doc/london-borough-council/havering,London Borough of Havering,08/01/2016,2139.04,JAN2016L952,Moreland House_a,"Children, Adults & Housing",Adult Services,Adult Community Team,Support with Memory & Cognition,RESIDENTIAL PLACEMENTS - PRIVATE CONTRACTORS PAYMENT
http://opendatacommunities.org/doc/london-borough-council/havering,London Borough of Havering,08/01/2016,-588.24,JAN2016L953,Moreland House_a,"Children, Adults & Housing",Adult Services,Adult Community Team,Physical Support,RESIDENTIAL CARE INCOME
http://opendatacommunities.org/doc/london-borough-council/havering,London Borough of Havering,08/01/2016,2139.04,JAN2016L954,Moreland House_a,"Children, Adults & Housing",Adult Services,Adult Community Team,Physical Support,RESIDENTIAL PLACEMENTS - PRIVATE CONTRACTORS PAYMENT
http://opendatacommunities.org/doc/london-borough-council/havering,London Borough of Havering,08/01/2016,-700.92,JAN2016L955,Moreland House_a,"Children, Adults & Housing",Adult Services,Adult Community Team,Physical Support,NURSING CARE INCOME
http://opendatacommunities.org/doc/london-borough-council/havering,London Borough of Havering,08/01/2016,2033.96,JAN2016L956,Moreland House_a,"Children, Adults & Housing",Adult Services,Adult Community Team,Physical Support,NURSING HOMES - PRIVATE CONTRACTORS PAYMENT
http://opendatacommunities.org/doc/london-borough-council/havering,London Borough of Havering,08/01/2016,-505.20,JAN2016L957,Moreland House_a,"Children, Adults & Housing",Adult Services,Adult Community Team,Support with Memory & Cognition,RESIDENTIAL CARE INCOME
http://opendatacommunities.org/doc/london-borough-council/havering,London Borough of Havering,08/01/2016,2139.04,JAN2016L958,Moreland House_a,"Children, Adults & Housing",Adult Services,Adult Community Team,Support with Memory & Cognition,RESIDENTIAL PLACEMENTS - PRIVATE CONTRACTORS PAYMENT
http://opendatacommunities.org/doc/london-borough-council/havering,London Borough of Havering,08/01/2016,-493.20,JAN2016L959,Moreland House_a,"Children, Adults & Housing",Adult Services,Adult Community Team,Physical Support,RESIDENTIAL CARE INCOME
http://opendatacommunities.org/doc/london-borough-council/havering,London Borough of Havering,08/01/2016,2139.04,JAN2016L960,Moreland House_a,"Children, Adults & Housing",Adult Services,Adult Community Team,Physical Support,RESIDENTIAL PLACEMENTS - PRIVATE CONTRACTORS PAYMENT
http://opendatacommunities.org/doc/london-borough-council/havering,London Borough of Havering,08/01/2016,2139.04,JAN2016L963,Genesis Residential Homes Ltd - Dothan House_a,"Children, Adults & Housing",Adult Services,Adult Community Team,Support with Memory & Cognition,RESIDENTIAL PLACEMENTS - PRIVATE CONTRACTORS PAYMENT
http://opendatacommunities.org/doc/london-borough-council/havering,London Borough of Havering,08/01/2016,2139.04,JAN2016L964,Genesis Residential Homes Ltd - Dothan House_a,"Children, Adults & Housing",Adult Services,Adult Community Team,Physical Support,RESIDENTIAL PLACEMENTS - PRIVATE CONTRACTORS PAYMENT
http://opendatacommunities.org/doc/london-borough-council/havering,London Borough of Havering,08/01/2016,-697.36,JAN2016L965,Genesis Residential Homes Ltd - Dothan House_a,"Children, Adults & Housing",Adult Services,Adult Community Team,Physical Support,RESIDENTIAL CARE INCOME
http://opendatacommunities.org/doc/london-borough-council/havering,London Borough of Havering,08/01/2016,2139.04,JAN2016L966,Genesis Residential Homes Ltd - Dothan House_a,"Children, Adults & Housing",Adult Services,Adult Community Team,Physical Support,RESIDENTIAL PLACEMENTS - PRIVATE CONTRACTORS PAYMENT
http://opendatacommunities.org/doc/london-borough-council/havering,London Borough of Havering,08/01/2016,-617.60,JAN2016L967,Genesis Residential Homes Ltd - Dothan House_a,"Children, Adults & Housing",Adult Services,Adult Community Team,Support with Memory & Cognition,RESIDENTIAL CARE INCOME
http://opendatacommunities.org/doc/london-borough-council/havering,London Borough of Havering,08/01/2016,2139.04,JAN2016L968,Genesis Residential Homes Ltd - Dothan House_a,"Children, Adults & Housing",Adult Services,Adult Community Team,Support with Memory & Cognition,RESIDENTIAL PLACEMENTS - PRIVATE CONTRACTORS PAYMENT
http://opendatacommunities.org/doc/london-borough-council/havering,London Borough of Havering,08/01/2016,-662.40,JAN2016L969,Genesis Residential Homes Ltd - Dothan House_a,"Children, Adults & Housing",Adult Services,Adult Community Team,Support with Memory & Cognition,RESIDENTIAL CARE INCOME
http://opendatacommunities.org/doc/london-borough-council/havering,London Borough of Havering,08/01/2016,2139.04,JAN2016L970,Genesis Residential Homes Ltd - Dothan House_a,"Children, Adults & Housing",Adult Services,Adult Community Team,Support with Memory & Cognition,RESIDENTIAL PLACEMENTS - PRIVATE CONTRACTORS PAYMENT
http://opendatacommunities.org/doc/london-borough-council/havering,London Borough of Havering,08/01/2016,-907.68,JAN2016L971,Genesis Residential Homes Ltd - Dothan House_a,"Children, Adults & Housing",Adult Services,Adult Community Team,Support with Memory & Cognition,RESIDENTIAL CARE INCOME
http://opendatacommunities.org/doc/london-borough-council/havering,London Borough of Havering,08/01/2016,2139.04,JAN2016L972,Genesis Residential Homes Ltd - Dothan House_a,"Children, Adults & Housing",Adult Services,Adult Community Team,Support with Memory & Cognition,RESIDENTIAL PLACEMENTS - PRIVATE CONTRACTORS PAYMENT
http://opendatacommunities.org/doc/london-borough-council/havering,London Borough of Havering,08/01/2016,-1198.40,JAN2016L973,Genesis Residential Homes Ltd - Dothan House_a,"Children, Adults & Housing",Adult Services,Adult Community Team,Physical Support,RESIDENTIAL CARE INCOME
http://opendatacommunities.org/doc/london-borough-council/havering,London Borough of Havering,08/01/2016,2139.04,JAN2016L974,Genesis Residential Homes Ltd - Dothan House_a,"Children, Adults & Housing",Adult Services,Adult Community Team,Physical Support,RESIDENTIAL PLACEMENTS - PRIVATE CONTRACTORS PAYMENT
http://opendatacommunities.org/doc/london-borough-council/havering,London Borough of Havering,08/01/2016,-1305.56,JAN2016L975,Genesis Residential Homes Ltd - Dothan House_a,"Children, Adults & Housing",Adult Services,Adult Community Team,Physical Support,RESIDENTIAL CARE INCOME
http://opendatacommunities.org/doc/london-borough-council/havering,London Borough of Havering,08/01/2016,2284.80,JAN2016L976,Genesis Residential Homes Ltd - Dothan House_a,"Children, Adults & Housing",Adult Services,Adult Community Team,Physical Support,RESIDENTIAL PLACEMENTS - PRIVATE CONTRACTORS PAYMENT
http://opendatacommunities.org/doc/london-borough-council/havering,London Borough of Havering,08/01/2016,3026.88,JAN2016L977,Melody Lodge_a,"Children, Adults & Housing",Adult Services,Learning Disabilities,Learning Disability Support,RESIDENTIAL PLACEMENTS - PRIVATE CONTRACTORS PAYMENT
http://opendatacommunities.org/doc/london-borough-council/havering,London Borough of Havering,08/01/2016,1593.88,JAN2016L978,Ailsa House Residential Care Home_a,"Children, Adults & Housing",Adult Services,Adult Community Team,Physical Support,RESIDENTIAL PLACEMENTS - PRIVATE CONTRACTORS PAYMENT
http://opendatacommunities.org/doc/london-borough-council/havering,London Borough of Havering,08/01/2016,1970.92,JAN2016L979,Ashbourne Homes Ltd - Ladyville Lodge_a,"Children, Adults & Housing",Adult Services,Adult Community Team,Physical Support,NURSING HOMES - PRIVATE CONTRACTORS PAYMENT
http://opendatacommunities.org/doc/london-borough-council/havering,London Borough of Havering,08/01/2016,2139.04,JAN2016L980,Ashbourne Homes Ltd - Ladyville Lodge_a,"Children, Adults & Housing",Adult Services,Adult Community Team,Support with Memory & Cognition,RESIDENTIAL PLACEMENTS - PRIVATE CONTRACTORS PAYMENT
http://opendatacommunities.org/doc/london-borough-council/havering,London Borough of Havering,08/01/2016,-826.76,JAN2016L981,Ashbourne Homes Ltd - Ladyville Lodge_a,"Children, Adults & Housing",Adult Services,Adult Community Team,Physical Support,NURSING CARE INCOME
http://opendatacommunities.org/doc/london-borough-council/havering,London Borough of Havering,08/01/2016,1970.92,JAN2016L982,Ashbourne Homes Ltd - Ladyville Lodge_a,"Children, Adults & Housing",Adult Services,Adult Community Team,Physical Support,NURSING HOMES - PRIVATE CONTRACTORS PAYMENT
http://opendatacommunities.org/doc/london-borough-council/havering,London Borough of Havering,08/01/2016,-1180.88,JAN2016L983,Ashbourne Homes Ltd - Ladyville Lodge_a,"Children, Adults & Housing",Adult Services,Adult Community Team,Physical Support,NURSING CARE INCOME
http://opendatacommunities.org/doc/london-borough-council/havering,London Borough of Havering,08/01/2016,1970.92,JAN2016L984,Ashbourne Homes Ltd - Ladyville Lodge_a,"Children, Adults & Housing",Adult Services,Adult Community Team,Physical Support,NURSING HOMES - PRIVATE CONTRACTORS PAYMENT
http://opendatacommunities.org/doc/london-borough-council/havering,London Borough of Havering,08/01/2016,-505.20,JAN2016L985,Ashbourne Homes Ltd - Ladyville Lodge_a,"Children, Adults & Housing",Adult Services,Adult Community Team,Physical Support,NURSING CARE INCOME
http://opendatacommunities.org/doc/london-borough-council/havering,London Borough of Havering,08/01/2016,1970.92,JAN2016L986,Ashbourne Homes Ltd - Ladyville Lodge_a,"Children, Adults & Housing",Adult Services,Adult Community Team,Physical Support,NURSING HOMES - PRIVATE CONTRACTORS PAYMENT
http://opendatacommunities.org/doc/london-borough-council/havering,London Borough of Havering,08/01/2016,-517.72,JAN2016L987,Ashbourne Homes Ltd - Ladyville Lodge_a,"Children, Adults & Housing",Adult Services,Adult Community Team,Physical Support,NURSING CARE INCOME
http://opendatacommunities.org/doc/london-borough-council/havering,London Borough of Havering,08/01/2016,1970.92,JAN2016L988,Ashbourne Homes Ltd - Ladyville Lodge_a,"Children, Adults & Housing",Adult Services,Adult Community Team,Physical Support,NURSING HOMES - PRIVATE CONTRACTORS PAYMENT
http://opendatacommunities.org/doc/london-borough-council/havering,London Borough of Havering,08/01/2016,-465.88,JAN2016L989,Ashbourne Homes Ltd - Ladyville Lodge_a,"Children, Adults & Housing",Adult Services,Adult Community Team,Support with Memory & Cognition,RESIDENTIAL CARE INCOME
http://opendatacommunities.org/doc/london-borough-council/havering,London Borough of Havering,08/01/2016,2139.04,JAN2016L990,Ashbourne Homes Ltd - Ladyville Lodge_a,"Children, Adults & Housing",Adult Services,Adult Community Team,Support with Memory & Cognition,RESIDENTIAL PLACEMENTS - PRIVATE CONTRACTORS PAYMENT
http://opendatacommunities.org/doc/london-borough-council/havering,London Borough of Havering,08/01/2016,-1281.17,JAN2016L991,Ashbourne Homes Ltd - Ladyville Lodge_a,"Children, Adults & Housing",Adult Services,Adult Community Team,Support with Memory & Cognition,RESIDENTIAL CARE INCOME
http://opendatacommunities.org/doc/london-borough-council/havering,London Borough of Havering,08/01/2016,5882.36,JAN2016L992,Ashbourne Homes Ltd - Ladyville Lodge_a,"Children, Adults & Housing",Adult Services,Adult Community Team,Support with Memory & Cognition,RESIDENTIAL PLACEMENTS - PRIVATE CONTRACTORS PAYMENT
http://opendatacommunities.org/doc/london-borough-council/havering,London Borough of Havering,08/01/2016,-5805.97,JAN2016L993,Ashbourne Homes Ltd - Ladyville Lodge_a,"Children, Adults & Housing",Adult Services,Adult Community Team,Support with Memory & Cognition,RESIDENTIAL PLACEMENTS - PRIVATE CONTRACTORS PAYMENT
http://opendatacommunities.org/doc/london-borough-council/havering,London Borough of Havering,08/01/2016,1371.26,JAN2016L994,Ashbourne Homes Ltd - Ladyville Lodge_a,"Children, Adults & Housing",Adult Services,Adult Community Team,Physical Support,RESIDENTIAL CARE INCOME
http://opendatacommunities.org/doc/london-borough-council/havering,London Borough of Havering,08/01/2016,4308.20,JAN2016L995,**Redacted Personal Data**,"Children, Adults & Housing",Adult Services,Learning Disabilities,Learning Disability Support,RESIDENTIAL PLACEMENTS - PRIVATE CONTRACTORS PAYMENT
http://opendatacommunities.org/doc/london-borough-council/havering,London Borough of Havering,08/01/2016,1763.28,JAN2016L996,Crowstone Care Home Ltd - The Grange_a,"Children, Adults & Housing",Mental Health,Mental Health - Non Section 75,Mental Health Support,RESIDENTIAL PLACEMENTS - PRIVATE CONTRACTORS PAYMENT
http://opendatacommunities.org/doc/london-borough-council/havering,London Borough of Havering,08/01/2016,-505.20,JAN2016L997,Crowstone Care Home Ltd - The Grange_a,"Children, Adults & Housing",Mental Health,Mental Health - Non Section 75,Mental Health Support,RESIDENTIAL CARE INCOME
http://opendatacommunities.org/doc/london-borough-council/havering,London Borough of Havering,08/01/2016,1737.76,JAN2016L998,Crowstone Care Home Ltd - The Grange_a,"Children, Adults & Housing",Mental Health,Mental Health - Non Section 75,Mental Health Support,RESIDENTIAL PLACEMENTS - PRIVATE CONTRACTORS PAYMENT
http://opendatacommunities.org/doc/london-borough-council/havering,London Borough of Havering,08/01/2016,1831.12,JAN2016L1020,Dury Falls Residential Nursing Home_a,"Children, Adults & Housing",Adult Services,Adult Community Team,Physical Support,RESIDENTIAL PLACEMENTS - PRIVATE CONTRACTORS PAYMENT
http://opendatacommunities.org/doc/london-borough-council/havering,London Borough of Havering,08/01/2016,-807.84,JAN2016L1021,Dury Falls Residential Nursing Home_a,"Children, Adults & Housing",Adult Services,Adult Community Team,Support with Memory & Cognition,RESIDENTIAL CARE INCOME
http://opendatacommunities.org/doc/london-borough-council/havering,London Borough of Havering,08/01/2016,2139.04,JAN2016L1022,Dury Falls Residential Nursing Home_a,"Children, Adults & Housing",Adult Services,Adult Community Team,Support with Memory & Cognition,RESIDENTIAL PLACEMENTS - PRIVATE CONTRACTORS PAYMENT
http://opendatacommunities.org/doc/london-borough-council/havering,London Borough of Havering,08/01/2016,-505.20,JAN2016L1023,Dury Falls Residential Nursing Home_a,"Children, Adults & Housing",Adult Services,Adult Community Team,Support with Memory & Cognition,RESIDENTIAL CARE INCOME
http://opendatacommunities.org/doc/london-borough-council/havering,London Borough of Havering,08/01/2016,2139.04,JAN2016L1024,Dury Falls Residential Nursing Home_a,"Children, Adults & Housing",Adult Services,Adult Community Team,Support with Memory & Cognition,RESIDENTIAL PLACEMENTS - PRIVATE CONTRACTORS PAYMENT
http://opendatacommunities.org/doc/london-borough-council/havering,London Borough of Havering,08/01/2016,2720.00,JAN2016L1025,Emerson Court_a,"Children, Adults & Housing",Adult Services,Adult Community Team,Physical Support,RESIDENTIAL PLACEMENTS - PRIVATE CONTRACTORS PAYMENT
http://opendatacommunities.org/doc/london-borough-council/havering,London Borough of Havering,08/01/2016,2720.00,JAN2016L1026,Emerson Court_a,"Children, Adults & Housing",Adult Services,Adult Community Team,Physical Support,RESIDENTIAL PLACEMENTS - PRIVATE CONTRACTORS PAYMENT
http://opendatacommunities.org/doc/london-borough-council/havering,London Borough of Havering,08/01/2016,-505.20,JAN2016L1027,Emerson Court_a,"Children, Adults & Housing",Adult Services,Adult Community Team,Support with Memory & Cognition,RESIDENTIAL CARE INCOME
http://opendatacommunities.org/doc/london-borough-council/havering,London Borough of Havering,08/01/2016,2139.04,JAN2016L1028,Emerson Court_a,"Children, Adults & Housing",Adult Services,Adult Community Team,Support with Memory & Cognition,RESIDENTIAL PLACEMENTS - PRIVATE CONTRACTORS PAYMENT
http://opendatacommunities.org/doc/london-borough-council/havering,London Borough of Havering,08/01/2016,-488.00,JAN2016L1029,Emerson Court_a,"Children, Adults & Housing",Adult Services,Adult Community Team,Support with Memory & Cognition,RESIDENTIAL CARE INCOME
http://opendatacommunities.org/doc/london-borough-council/havering,London Borough of Havering,08/01/2016,2139.04,JAN2016L1030,Emerson Court_a,"Children, Adults & Housing",Adult Services,Adult Community Team,Support with Memory & Cognition,RESIDENTIAL PLACEMENTS - PRIVATE CONTRACTORS PAYMENT
http://opendatacommunities.org/doc/london-borough-council/havering,London Borough of Havering,08/01/2016,-662.96,JAN2016L1031,Emerson Court_a,"Children, Adults & Housing",Adult Services,Adult Community Team,Physical Support,RESIDENTIAL CARE INCOME
http://opendatacommunities.org/doc/london-borough-council/havering,London Borough of Havering,08/01/2016,2139.04,JAN2016L1032,Emerson Court_a,"Children, Adults & Housing",Adult Services,Adult Community Team,Physical Support,RESIDENTIAL PLACEMENTS - PRIVATE CONTRACTORS PAYMENT
http://opendatacommunities.org/doc/london-borough-council/havering,London Borough of Havering,08/01/2016,5352.36,JAN2016L1033,Voyage Ltd - 89 Mawney Road_a,"Children, Adults & Housing",Adult Services,Learning Disabilities,Learning Disability Support,RESIDENTIAL PLACEMENTS - PRIVATE CONTRACTORS PAYMENT
http://opendatacommunities.org/doc/london-borough-council/havering,London Borough of Havering,08/01/2016,5120.04,JAN2016L1034,Voyage Ltd - 89 Mawney Road_a,"Children, Adults & Housing",Adult Services,Learning Disabilities,Learning Disability Support,RESIDENTIAL PLACEMENTS - PRIVATE CONTRACTORS PAYMENT
http://opendatacommunities.org/doc/london-borough-council/havering,London Borough of Havering,08/01/2016,-400.60,JAN2016L1035,Voyage Ltd - 89 Mawney Road_a,"Children, Adults & Housing",Adult Services,Learning Disabilities,Learning Disability Support,RESIDENTIAL CARE INCOME
http://opendatacommunities.org/doc/london-borough-council/havering,London Borough of Havering,08/01/2016,5120.04,JAN2016L1036,Voyage Ltd - 89 Mawney Road_a,"Children, Adults & Housing",Adult Services,Learning Disabilities,Learning Disability Support,RESIDENTIAL PLACEMENTS - PRIVATE CONTRACTORS PAYMENT
http://opendatacommunities.org/doc/london-borough-council/havering,London Borough of Havering,08/01/2016,-505.20,JAN2016L1037,Voyage Ltd - 89 Mawney Road_a,"Children, Adults & Housing",Adult Services,Learning Disabilities,Learning Disability Support,RESIDENTIAL CARE INCOME
http://opendatacommunities.org/doc/london-borough-council/havering,London Borough of Havering,08/01/2016,5120.04,JAN2016L1038,Voyage Ltd - 89 Mawney Road_a,"Children, Adults & Housing",Adult Services,Learning Disabilities,Learning Disability Support,RESIDENTIAL PLACEMENTS - PRIVATE CONTRACTORS PAYMENT
http://opendatacommunities.org/doc/london-borough-council/havering,London Borough of Havering,08/01/2016,-505.20,JAN2016L1039,Voyage Ltd - 89 Mawney Road_a,"Children, Adults & Housing",Adult Services,Learning Disabilities,Learning Disability Support,RESIDENTIAL CARE INCOME
http://opendatacommunities.org/doc/london-borough-council/havering,London Borough of Havering,08/01/2016,5120.04,JAN2016L1040,Voyage Ltd - 89 Mawney Road_a,"Children, Adults & Housing",Adult Services,Learning Disabilities,Learning Disability Support,RESIDENTIAL PLACEMENTS - PRIVATE CONTRACTORS PAYMENT
http://opendatacommunities.org/doc/london-borough-council/havering,London Borough of Havering,08/01/2016,5120.04,JAN2016L1041,Voyage Ltd - 89 Mawney Road_a,"Children, Adults & Housing",Adult Services,Learning Disabilities,Learning Disability Support,RESIDENTIAL PLACEMENTS - PRIVATE CONTRACTORS PAYMENT
http://opendatacommunities.org/doc/london-borough-council/havering,London Borough of Havering,12/01/2016,1510.93,JAN2016L1042,Homestead Care Service_a,"Children, Adults & Housing",Adult Services,Adult Community Team,Physical Support,HOME CARE - PRIVATE CONTRACTORS PAYMENT
http://opendatacommunities.org/doc/london-borough-council/havering,London Borough of Havering,12/01/2016,1170.55,JAN2016L1043,Homestead Care Service_a,"Children, Adults & Housing",Adult Services,Adult Community Team,Physical Support,HOME CARE - PRIVATE CONTRACTORS PAYMENT
http://opendatacommunities.org/doc/london-borough-council/havering,London Borough of Havering,12/01/2016,480.58,JAN2016L1044,Homestead Care Service_a,"Children, Adults & Housing",Adult Services,Adult Community Team,Physical Support,HOME CARE - PRIVATE CONTRACTORS PAYMENT
http://opendatacommunities.org/doc/london-borough-council/havering,London Borough of Havering,12/01/2016,437.49,JAN2016L1045,Homestead Care Service_a,"Children, Adults & Housing",Adult Services,Adult Community Team,Physical Support,HOME CARE - PRIVATE CONTRACTORS PAYMENT
http://opendatacommunities.org/doc/london-borough-council/havering,London Borough of Havering,12/01/2016,571.43,JAN2016L1046,Homestead Care Service_a,"Children, Adults & Housing",Adult Services,Adult Community Team,Physical Support,HOME CARE - PRIVATE CONTRACTORS PAYMENT
http://opendatacommunities.org/doc/london-borough-council/havering,London Borough of Havering,12/01/2016,655.81,JAN2016L1047,Homestead Care Service_a,"Children, Adults & Housing",Adult Services,Learning Disabilities,Learning Disability Support,HOME CARE - PRIVATE CONTRACTORS PAYMENT
http://opendatacommunities.org/doc/london-borough-council/havering,London Borough of Havering,12/01/2016,1494.71,JAN2016L1048,Homestead Care Service_a,"Children, Adults & Housing",Adult Services,Adult Community Team,Physical Support,HOME CARE - PRIVATE CONTRACTORS PAYMENT
http://opendatacommunities.org/doc/london-borough-council/havering,London Borough of Havering,12/01/2016,1607.48,JAN2016L1049,Homestead Care Service_a,"Children, Adults & Housing",Adult Services,Adult Community Team,Physical Support,HOME CARE - PRIVATE CONTRACTORS PAYMENT
http://opendatacommunities.org/doc/london-borough-council/havering,London Borough of Havering,12/01/2016,746.31,JAN2016L1050,Homestead Care Service_a,"Children, Adults & Housing",Adult Services,Adult Community Team,Physical Support,HOME CARE - PRIVATE CONTRACTORS PAYMENT
http://opendatacommunities.org/doc/london-borough-council/havering,London Borough of Havering,12/01/2016,1079.68,JAN2016L1051,Homestead Care Service_a,"Children, Adults & Housing",Adult Services,Adult Community Team,Physical Support,HOME CARE - PRIVATE CONTRACTORS PAYMENT
http://opendatacommunities.org/doc/london-borough-council/havering,London Borough of Havering,12/01/2016,1590.50,JAN2016L1052,Homestead Care Service_a,"Children, Adults & Housing",Adult Services,Adult Community Team,Physical Support,HOME CARE - PRIVATE CONTRACTORS PAYMENT
http://opendatacommunities.org/doc/london-borough-council/havering,London Borough of Havering,12/01/2016,549.05,JAN2016L1053,Homestead Care Service_a,"Children, Adults & Housing",Adult Services,Adult Community Team,Physical Support,HOME CARE - PRIVATE CONTRACTORS PAYMENT
http://opendatacommunities.org/doc/london-borough-council/havering,London Borough of Havering,12/01/2016,977.58,JAN2016L1054,Homestead Care Service_a,"Children, Adults & Housing",Adult Services,Adult Community Team,Physical Support,HOME CARE - PRIVATE CONTRACTORS PAYMENT
http://opendatacommunities.org/doc/london-borough-council/havering,London Borough of Havering,12/01/2016,984.66,JAN2016L1055,Homestead Care Service_a,"Children, Adults & Housing",Adult Services,Adult Community Team,Physical Support,HOME CARE - PRIVATE CONTRACTORS PAYMENT
http://opendatacommunities.org/doc/london-borough-council/havering,London Borough of Havering,12/01/2016,406.35,JAN2016L1056,Homestead Care Service_a,"Children, Adults & Housing",Adult Services,Learning Disabilities,Learning Disability Support,HOME CARE - PRIVATE CONTRACTORS PAYMENT
http://opendatacommunities.org/doc/london-borough-council/havering,London Borough of Havering,12/01/2016,464.14,JAN2016L1057,Homestead Care Service_a,"Children, Adults & Housing",Adult Services,Adult Community Team,Physical Support,HOME CARE - PRIVATE CONTRACTORS PAYMENT
http://opendatacommunities.org/doc/london-borough-council/havering,London Borough of Havering,12/01/2016,712.91,JAN2016L1058,Homestead Care Service_a,"Children, Adults & Housing",Adult Services,Adult Community Team,Physical Support,HOME CARE - PRIVATE CONTRACTORS PAYMENT
http://opendatacommunities.org/doc/london-borough-council/havering,London Borough of Havering,12/01/2016,571.46,JAN2016L1059,Homestead Care Service_a,"Children, Adults & Housing",Adult Services,Adult Community Team,Physical Support,HOME CARE - PRIVATE CONTRACTORS PAYMENT
http://opendatacommunities.org/doc/london-borough-council/havering,London Borough of Havering,12/01/2016,824.89,JAN2016L1060,Homestead Care Service_a,"Children, Adults & Housing",Adult Services,Adult Community Team,Physical Support,HOME CARE - PRIVATE CONTRACTORS PAYMENT
http://opendatacommunities.org/doc/london-borough-council/havering,London Borough of Havering,12/01/2016,1441.70,JAN2016L1061,Homestead Care Service_a,"Children, Adults & Housing",Adult Services,Adult Community Team,Physical Support,HOME CARE - PRIVATE CONTRACTORS PAYMENT
http://opendatacommunities.org/doc/london-borough-council/havering,London Borough of Havering,12/01/2016,974.84,JAN2016L1062,Homestead Care Service_a,"Children, Adults & Housing",Adult Services,Adult Community Team,Physical Support,HOME CARE - PRIVATE CONTRACTORS PAYMENT
http://opendatacommunities.org/doc/london-borough-council/havering,London Borough of Havering,12/01/2016,519.67,JAN2016L1063,Homestead Care Service_a,"Children, Adults & Housing",Adult Services,Adult Community Team,Physical Support,HOME CARE - PRIVATE CONTRACTORS PAYMENT
http://opendatacommunities.org/doc/london-borough-council/havering,London Borough of Havering,12/01/2016,418.82,JAN2016L1064,Homestead Care Service_a,"Children, Adults & Housing",Adult Services,Adult Community Team,Physical Support,HOME CARE - PRIVATE CONTRACTORS PAYMENT
http://opendatacommunities.org/doc/london-borough-council/havering,London Borough of Havering,12/01/2016,1448.41,JAN2016L1065,Homestead Care Service_a,"Children, Adults & Housing",Adult Services,Adult Community Team,Physical Support,HOME CARE - PRIVATE CONTRACTORS PAYMENT
http://opendatacommunities.org/doc/london-borough-council/havering,London Borough of Havering,12/01/2016,732.50,JAN2016L1066,Homestead Care Service_a,"Children, Adults & Housing",Adult Services,Adult Community Team,Physical Support,HOME CARE - PRIVATE CONTRACTORS PAYMENT
http://opendatacommunities.org/doc/london-borough-council/havering,London Borough of Havering,12/01/2016,461.62,JAN2016L1067,Homestead Care Service_a,"Children, Adults & Housing",Adult Services,Adult Community Team,Physical Support,HOME CARE - PRIVATE CONTRACTORS PAYMENT
http://opendatacommunities.org/doc/london-borough-council/havering,London Borough of Havering,12/01/2016,623.76,JAN2016L1068,Homestead Care Service_a,"Children, Adults & Housing",Adult Services,Adult Community Team,Physical Support,HOME CARE - PRIVATE CONTRACTORS PAYMENT
http://opendatacommunities.org/doc/london-borough-council/havering,London Borough of Havering,12/01/2016,532.62,JAN2016L1069,Homestead Care Service_a,"Children, Adults & Housing",Adult Services,Adult Community Team,Physical Support,HOME CARE - PRIVATE CONTRACTORS PAYMENT
http://opendatacommunities.org/doc/london-borough-council/havering,London Borough of Havering,12/01/2016,564.20,JAN2016L1070,Homestead Care Service_a,"Children, Adults & Housing",Adult Services,Adult Community Team,Physical Support,HOME CARE - PRIVATE CONTRACTORS PAYMENT
http://opendatacommunities.org/doc/london-borough-council/havering,London Borough of Havering,12/01/2016,404.63,JAN2016L1071,Homestead Care Service_a,"Children, Adults & Housing",Adult Services,Adult Community Team,Physical Support,HOME CARE - PRIVATE CONTRACTORS PAYMENT
http://opendatacommunities.org/doc/london-borough-council/havering,London Borough of Havering,12/01/2016,673.29,JAN2016L1072,Homestead Care Service_a,"Children, Adults & Housing",Adult Services,Adult Community Team,Physical Support,HOME CARE - PRIVATE CONTRACTORS PAYMENT
http://opendatacommunities.org/doc/london-borough-council/havering,London Borough of Havering,12/01/2016,569.95,JAN2016L1073,Homestead Care Service_a,"Children, Adults & Housing",Adult Services,Adult Community Team,Physical Support,HOME CARE - PRIVATE CONTRACTORS PAYMENT
http://opendatacommunities.org/doc/london-borough-council/havering,London Borough of Havering,12/01/2016,725.83,JAN2016L1074,Homestead Care Service_a,"Children, Adults & Housing",Adult Services,Adult Community Team,Physical Support,HOME CARE - PRIVATE CONTRACTORS PAYMENT
http://opendatacommunities.org/doc/london-borough-council/havering,London Borough of Havering,12/01/2016,611.71,JAN2016L1075,Homestead Care Service_a,"Children, Adults & Housing",Adult Services,Adult Community Team,Physical Support,HOME CARE - PRIVATE CONTRACTORS PAYMENT
http://opendatacommunities.org/doc/london-borough-council/havering,London Borough of Havering,12/01/2016,1363.98,JAN2016L1076,Homestead Care Service_a,"Children, Adults & Housing",Adult Services,Adult Community Team,Physical Support,HOME CARE - PRIVATE CONTRACTORS PAYMENT
http://opendatacommunities.org/doc/london-borough-council/havering,London Borough of Havering,12/01/2016,1412.83,JAN2016L1077,Homestead Care Service_a,"Children, Adults & Housing",Adult Services,Adult Community Team,Physical Support,HOME CARE - PRIVATE CONTRACTORS PAYMENT
http://opendatacommunities.org/doc/london-borough-council/havering,London Borough of Havering,12/01/2016,1430.01,JAN2016L1078,Homestead Care Service_a,"Children, Adults & Housing",Adult Services,Adult Community Team,Physical Support,HOME CARE - PRIVATE CONTRACTORS PAYMENT
http://opendatacommunities.org/doc/london-borough-council/havering,London Borough of Havering,12/01/2016,1137.86,JAN2016L1079,Homestead Care Service_a,"Children, Adults & Housing",Adult Services,Adult Community Team,Physical Support,HOME CARE - PRIVATE CONTRACTORS PAYMENT
http://opendatacommunities.org/doc/london-borough-council/havering,London Borough of Havering,12/01/2016,1029.61,JAN2016L1080,Homestead Care Service_a,"Children, Adults & Housing",Adult Services,Adult Community Team,Physical Support,HOME CARE - PRIVATE CONTRACTORS PAYMENT
http://opendatacommunities.org/doc/london-borough-council/havering,London Borough of Havering,12/01/2016,667.50,JAN2016L1081,Homestead Care Service_a,"Children, Adults & Housing",Adult Services,Adult Community Team,Physical Support,HOME CARE - PRIVATE CONTRACTORS PAYMENT
http://opendatacommunities.org/doc/london-borough-council/havering,London Borough of Havering,12/01/2016,1837.36,JAN2016L1082,Homestead Care Service_a,"Children, Adults & Housing",Adult Services,Adult Community Team,Physical Support,HOME CARE - PRIVATE CONTRACTORS PAYMENT
http://opendatacommunities.org/doc/london-borough-council/havering,London Borough of Havering,12/01/2016,1745.07,JAN2016L1083,Homestead Care Service_a,"Children, Adults & Housing",Adult Services,Adult Community Team,Physical Support,HOME CARE - PRIVATE CONTRACTORS PAYMENT
http://opendatacommunities.org/doc/london-borough-council/havering,London Borough of Havering,12/01/2016,783.36,JAN2016L1084,Homestead Care Service_a,"Children, Adults & Housing",Adult Services,Adult Community Team,Physical Support,HOME CARE - PRIVATE CONTRACTORS PAYMENT
http://opendatacommunities.org/doc/london-borough-council/havering,London Borough of Havering,12/01/2016,1402.13,JAN2016L1085,Homestead Care Service_a,"Children, Adults & Housing",Adult Services,Adult Community Team,Physical Support,HOME CARE - PRIVATE CONTRACTORS PAYMENT
http://opendatacommunities.org/doc/london-borough-council/havering,London Borough of Havering,12/01/2016,826.48,JAN2016L1086,Homestead Care Service_a,"Children, Adults & Housing",Adult Services,Adult Community Team,Physical Support,HOME CARE - PRIVATE CONTRACTORS PAYMENT
http://opendatacommunities.org/doc/london-borough-council/havering,London Borough of Havering,12/01/2016,427.85,JAN2016L1087,Homestead Care Service_a,"Children, Adults & Housing",Adult Services,Adult Community Team,Physical Support,HOME CARE - PRIVATE CONTRACTORS PAYMENT
http://opendatacommunities.org/doc/london-borough-council/havering,London Borough of Havering,12/01/2016,516.29,JAN2016L1088,Homestead Care Service_a,"Children, Adults & Housing",Adult Services,Adult Community Team,Physical Support,HOME CARE - PRIVATE CONTRACTORS PAYMENT
http://opendatacommunities.org/doc/london-borough-council/havering,London Borough of Havering,12/01/2016,568.48,JAN2016L1089,Homestead Care Service_a,"Children, Adults & Housing",Adult Services,Adult Community Team,Physical Support,HOME CARE - PRIVATE CONTRACTORS PAYMENT
http://opendatacommunities.org/doc/london-borough-council/havering,London Borough of Havering,12/01/2016,1664.56,JAN2016L1090,Homestead Care Service_a,"Children, Adults & Housing",Adult Services,Adult Community Team,Physical Support,HOME CARE - PRIVATE CONTRACTORS PAYMENT
http://opendatacommunities.org/doc/london-borough-council/havering,London Borough of Havering,12/01/2016,594.03,JAN2016L1091,Homestead Care Service_a,"Children, Adults & Housing",Adult Services,Adult Community Team,Physical Support,HOME CARE - PRIVATE CONTRACTORS PAYMENT
http://opendatacommunities.org/doc/london-borough-council/havering,London Borough of Havering,12/01/2016,645.60,JAN2016L1092,Homestead Care Service_a,"Children, Adults & Housing",Adult Services,Adult Community Team,Physical Support,HOME CARE - PRIVATE CONTRACTORS PAYMENT
http://opendatacommunities.org/doc/london-borough-council/havering,London Borough of Havering,12/01/2016,866.06,JAN2016L1093,Homestead Care Service_a,"Children, Adults & Housing",Adult Services,Adult Community Team,Physical Support,HOME CARE - PRIVATE CONTRACTORS PAYMENT
http://opendatacommunities.org/doc/london-borough-council/havering,London Borough of Havering,12/01/2016,727.09,JAN2016L1094,Homestead Care Service_a,"Children, Adults & Housing",Adult Services,Adult Community Team,Physical Support,HOME CARE - PRIVATE CONTRACTORS PAYMENT
http://opendatacommunities.org/doc/london-borough-council/havering,London Borough of Havering,12/01/2016,615.27,JAN2016L1095,Homestead Care Service_a,"Children, Adults & Housing",Adult Services,Adult Community Team,Physical Support,HOME CARE - PRIVATE CONTRACTORS PAYMENT
http://opendatacommunities.org/doc/london-borough-council/havering,London Borough of Havering,12/01/2016,917.82,JAN2016L1096,Homestead Care Service_a,"Children, Adults & Housing",Adult Services,Adult Community Team,Physical Support,HOME CARE - PRIVATE CONTRACTORS PAYMENT
http://opendatacommunities.org/doc/london-borough-council/havering,London Borough of Havering,12/01/2016,566.97,JAN2016L1097,Homestead Care Service_a,"Children, Adults & Housing",Adult Services,Adult Community Team,Physical Support,HOME CARE - PRIVATE CONTRACTORS PAYMENT
http://opendatacommunities.org/doc/london-borough-council/havering,London Borough of Havering,12/01/2016,672.30,JAN2016L1098,Homestead Care Service_a,"Children, Adults & Housing",Adult Services,Adult Community Team,Physical Support,HOME CARE - PRIVATE CONTRACTORS PAYMENT
http://opendatacommunities.org/doc/london-borough-council/havering,London Borough of Havering,12/01/2016,1211.12,JAN2016L1099,Homestead Care Service_a,"Children, Adults & Housing",Adult Services,Adult Community Team,Physical Support,HOME CARE - PRIVATE CONTRACTORS PAYMENT
http://opendatacommunities.org/doc/london-borough-council/havering,London Borough of Havering,12/01/2016,1566.07,JAN2016L1100,Homestead Care Service_a,"Children, Adults & Housing",Adult Services,Adult Community Team,Physical Support,HOME CARE - PRIVATE CONTRACTORS PAYMENT
http://opendatacommunities.org/doc/london-borough-council/havering,London Borough of Havering,08/01/2016,2484.08,JAN2016L1101,Moorlands Rehabilitation (Staffordshire) Ltd_a,"Children, Adults & Housing",Mental Health,Mental Health - Non Section 75,Mental Health Support,NURSING HOMES - PRIVATE CONTRACTORS PAYMENT
http://opendatacommunities.org/doc/london-borough-council/havering,London Borough of Havering,08/01/2016,2118.24,JAN2016L1102,Arran Manor_a,"Children, Adults & Housing",Adult Services,Adult Community Team,Support with Memory & Cognition,RESIDENTIAL PLACEMENTS - PRIVATE CONTRACTORS PAYMENT
http://opendatacommunities.org/doc/london-borough-council/havering,London Borough of Havering,22/01/2016,641.69,JAN2016L1110,Home Support Services (Havering & Essex) Ltd_a,"Children, Adults & Housing",Adult Services,Adult Community Team,Physical Support,HOME CARE - PRIVATE CONTRACTORS PAYMENT
http://opendatacommunities.org/doc/london-borough-council/havering,London Borough of Havering,22/01/2016,772.65,JAN2016L1111,Home Support Services (Havering & Essex) Ltd_a,"Children, Adults & Housing",Adult Services,Adult Community Team,Physical Support,HOME CARE - PRIVATE CONTRACTORS PAYMENT
http://opendatacommunities.org/doc/london-borough-council/havering,London Borough of Havering,22/01/2016,406.87,JAN2016L1112,Home Support Services (Havering & Essex) Ltd_a,"Children, Adults & Housing",Adult Services,Adult Community Team,Physical Support,HOME CARE - PRIVATE CONTRACTORS PAYMENT
http://opendatacommunities.org/doc/london-borough-council/havering,London Borough of Havering,22/01/2016,1000.73,JAN2016L1113,Home Support Services (Havering & Essex) Ltd_a,"Children, Adults & Housing",Adult Services,Adult Community Team,Physical Support,HOME CARE - PRIVATE CONTRACTORS PAYMENT
http://opendatacommunities.org/doc/london-borough-council/havering,London Borough of Havering,22/01/2016,640.68,JAN2016L1114,Home Support Services (Havering & Essex) Ltd_a,"Children, Adults & Housing",Adult Services,Adult Community Team,Physical Support,HOME CARE - PRIVATE CONTRACTORS PAYMENT
http://opendatacommunities.org/doc/london-borough-council/havering,London Borough of Havering,22/01/2016,767.42,JAN2016L1115,Home Support Services (Havering & Essex) Ltd_a,"Children, Adults & Housing",Adult Services,Adult Community Team,Physical Support,HOME CARE - PRIVATE CONTRACTORS PAYMENT
http://opendatacommunities.org/doc/london-borough-council/havering,London Borough of Havering,22/01/2016,414.34,JAN2016L1116,Home Support Services (Havering & Essex) Ltd_a,"Children, Adults & Housing",Adult Services,Adult Community Team,Physical Support,HOME CARE - PRIVATE CONTRACTORS PAYMENT
http://opendatacommunities.org/doc/london-borough-council/havering,London Borough of Havering,22/01/2016,537.35,JAN2016L1117,Home Support Services (Havering & Essex) Ltd_a,"Children, Adults & Housing",Adult Services,Adult Community Team,Physical Support,HOME CARE - PRIVATE CONTRACTORS PAYMENT
http://opendatacommunities.org/doc/london-borough-council/havering,London Borough of Havering,22/01/2016,1636.18,JAN2016L1118,Home Support Services (Havering & Essex) Ltd_a,"Children, Adults & Housing",Adult Services,Adult Community Team,Physical Support,HOME CARE - PRIVATE CONTRACTORS PAYMENT
http://opendatacommunities.org/doc/london-borough-council/havering,London Borough of Havering,22/01/2016,1254.96,JAN2016L1119,Home Support Services (Havering & Essex) Ltd_a,"Children, Adults & Housing",Adult Services,Adult Community Team,Physical Support,HOME CARE - PRIVATE CONTRACTORS PAYMENT
http://opendatacommunities.org/doc/london-borough-council/havering,London Borough of Havering,22/01/2016,480.18,JAN2016L1120,Home Support Services (Havering & Essex) Ltd_a,"Children, Adults & Housing",Adult Services,Adult Community Team,Physical Support,HOME CARE - PRIVATE CONTRACTORS PAYMENT
http://opendatacommunities.org/doc/london-borough-council/havering,London Borough of Havering,22/01/2016,432.16,JAN2016L1121,Home Support Services (Havering & Essex) Ltd_a,"Children, Adults & Housing",Adult Services,Adult Community Team,Physical Support,HOME CARE - PRIVATE CONTRACTORS PAYMENT
http://opendatacommunities.org/doc/london-borough-council/havering,London Borough of Havering,22/01/2016,552.77,JAN2016L1122,Home Support Services (Havering & Essex) Ltd_a,"Children, Adults & Housing",Adult Services,Adult Community Team,Physical Support,HOME CARE - PRIVATE CONTRACTORS PAYMENT
http://opendatacommunities.org/doc/london-borough-council/havering,London Borough of Havering,22/01/2016,584.16,JAN2016L1123,Home Support Services (Havering & Essex) Ltd_a,"Children, Adults & Housing",Adult Services,Adult Community Team,Physical Support,HOME CARE - PRIVATE CONTRACTORS PAYMENT
http://opendatacommunities.org/doc/london-borough-council/havering,London Borough of Havering,22/01/2016,611.30,JAN2016L1124,Home Support Services (Havering & Essex) Ltd_a,"Children, Adults & Housing",Adult Services,Adult Community Team,Physical Support,HOME CARE - PRIVATE CONTRACTORS PAYMENT
http://opendatacommunities.org/doc/london-borough-council/havering,London Borough of Havering,22/01/2016,1008.95,JAN2016L1125,Home Support Services (Havering & Essex) Ltd_a,"Children, Adults & Housing",Adult Services,Adult Community Team,Physical Support,HOME CARE - PRIVATE CONTRACTORS PAYMENT
http://opendatacommunities.org/doc/london-borough-council/havering,London Borough of Havering,22/01/2016,992.52,JAN2016L1126,Home Support Services (Havering & Essex) Ltd_a,"Children, Adults & Housing",Adult Services,Learning Disabilities,Learning Disability Support,HOME CARE - PRIVATE CONTRACTORS PAYMENT
http://opendatacommunities.org/doc/london-borough-council/havering,London Borough of Havering,22/01/2016,1056.51,JAN2016L1127,Home Support Services (Havering & Essex) Ltd_a,"Children, Adults & Housing",Adult Services,Adult Community Team,Physical Support,HOME CARE - PRIVATE CONTRACTORS PAYMENT
http://opendatacommunities.org/doc/london-borough-council/havering,London Borough of Havering,22/01/2016,1352.08,JAN2016L1128,Home Support Services (Havering & Essex) Ltd_a,"Children, Adults & Housing",Adult Services,Adult Community Team,Physical Support,HOME CARE - PRIVATE CONTRACTORS PAYMENT
http://opendatacommunities.org/doc/london-borough-council/havering,London Borough of Havering,22/01/2016,489.55,JAN2016L1129,Home Support Services (Havering & Essex) Ltd_a,"Children, Adults & Housing",Adult Services,Adult Community Team,Physical Support,HOME CARE - PRIVATE CONTRACTORS PAYMENT
http://opendatacommunities.org/doc/london-borough-council/havering,London Borough of Havering,22/01/2016,826.42,JAN2016L1130,Home Support Services (Havering & Essex) Ltd_a,"Children, Adults & Housing",Adult Services,Adult Community Team,Physical Support,HOME CARE - PRIVATE CONTRACTORS PAYMENT
http://opendatacommunities.org/doc/london-borough-council/havering,London Borough of Havering,22/01/2016,922.05,JAN2016L1131,Home Support Services (Havering & Essex) Ltd_a,"Children, Adults & Housing",Adult Services,Adult Community Team,Physical Support,HOME CARE - PRIVATE CONTRACTORS PAYMENT
http://opendatacommunities.org/doc/london-borough-council/havering,London Borough of Havering,22/01/2016,927.29,JAN2016L1132,Home Support Services (Havering & Essex) Ltd_a,"Children, Adults & Housing",Adult Services,Adult Community Team,Physical Support,HOME CARE - PRIVATE CONTRACTORS PAYMENT
http://opendatacommunities.org/doc/london-borough-council/havering,London Borough of Havering,22/01/2016,612.79,JAN2016L1133,Home Support Services (Havering & Essex) Ltd_a,"Children, Adults & Housing",Adult Services,Adult Community Team,Physical Support,HOME CARE - PRIVATE CONTRACTORS PAYMENT
http://opendatacommunities.org/doc/london-borough-council/havering,London Borough of Havering,22/01/2016,578.43,JAN2016L1134,Home Support Services (Havering & Essex) Ltd_a,"Children, Adults & Housing",Adult Services,Adult Community Team,Physical Support,HOME CARE - PRIVATE CONTRACTORS PAYMENT
http://opendatacommunities.org/doc/london-borough-council/havering,London Borough of Havering,22/01/2016,637.44,JAN2016L1135,Home Support Services (Havering & Essex) Ltd_a,"Children, Adults & Housing",Adult Services,Adult Community Team,Physical Support,HOME CARE - PRIVATE CONTRACTORS PAYMENT
http://opendatacommunities.org/doc/london-borough-council/havering,London Borough of Havering,22/01/2016,768.43,JAN2016L1136,Home Support Services (Havering & Essex) Ltd_a,"Children, Adults & Housing",Adult Services,Adult Community Team,Physical Support,HOME CARE - PRIVATE CONTRACTORS PAYMENT
http://opendatacommunities.org/doc/london-borough-council/havering,London Borough of Havering,22/01/2016,1260.94,JAN2016L1137,Home Support Services (Havering & Essex) Ltd_a,"Children, Adults & Housing",Adult Services,Adult Community Team,Physical Support,HOME CARE - PRIVATE CONTRACTORS PAYMENT
http://opendatacommunities.org/doc/london-borough-council/havering,London Borough of Havering,22/01/2016,412.35,JAN2016L1138,Home Support Services (Havering & Essex) Ltd_a,"Children, Adults & Housing",Adult Services,Adult Community Team,Physical Support,HOME CARE - PRIVATE CONTRACTORS PAYMENT
http://opendatacommunities.org/doc/london-borough-council/havering,London Borough of Havering,22/01/2016,1718.85,JAN2016L1139,Home Support Services (Havering & Essex) Ltd_a,"Children, Adults & Housing",Adult Services,Adult Community Team,Physical Support,HOME CARE - PRIVATE CONTRACTORS PAYMENT
http://opendatacommunities.org/doc/london-borough-council/havering,London Borough of Havering,22/01/2016,806.26,JAN2016L1140,Home Support Services (Havering & Essex) Ltd_a,"Children, Adults & Housing",Adult Services,Adult Community Team,Physical Support,HOME CARE - PRIVATE CONTRACTORS PAYMENT
http://opendatacommunities.org/doc/london-borough-council/havering,London Borough of Havering,22/01/2016,567.98,JAN2016L1141,Home Support Services (Havering & Essex) Ltd_a,"Children, Adults & Housing",Adult Services,Adult Community Team,Physical Support,HOME CARE - PRIVATE CONTRACTORS PAYMENT
http://opendatacommunities.org/doc/london-borough-council/havering,London Borough of Havering,22/01/2016,541.08,JAN2016L1142,Home Support Services (Havering & Essex) Ltd_a,"Children, Adults & Housing",Adult Services,Adult Community Team,Physical Support,HOME CARE - PRIVATE CONTRACTORS PAYMENT
http://opendatacommunities.org/doc/london-borough-council/havering,London Borough of Havering,22/01/2016,1843.60,JAN2016L1143,Home Support Services (Havering & Essex) Ltd_a,"Children, Adults & Housing",Adult Services,Adult Community Team,Physical Support,HOME CARE - PRIVATE CONTRACTORS PAYMENT
http://opendatacommunities.org/doc/london-borough-council/havering,London Borough of Havering,22/01/2016,703.41,JAN2016L1144,Home Support Services (Havering & Essex) Ltd_a,"Children, Adults & Housing",Adult Services,Adult Community Team,Physical Support,HOME CARE - PRIVATE CONTRACTORS PAYMENT
http://opendatacommunities.org/doc/london-borough-council/havering,London Borough of Havering,22/01/2016,524.14,JAN2016L1145,Home Support Services (Havering & Essex) Ltd_a,"Children, Adults & Housing",Adult Services,Adult Community Team,Physical Support,HOME CARE - PRIVATE CONTRACTORS PAYMENT
http://opendatacommunities.org/doc/london-borough-council/havering,London Borough of Havering,22/01/2016,694.21,JAN2016L1146,Home Support Services (Havering & Essex) Ltd_a,"Children, Adults & Housing",Adult Services,Adult Community Team,Physical Support,HOME CARE - PRIVATE CONTRACTORS PAYMENT
http://opendatacommunities.org/doc/london-borough-council/havering,London Borough of Havering,22/01/2016,537.84,JAN2016L1147,Home Support Services (Havering & Essex) Ltd_a,"Children, Adults & Housing",Adult Services,Adult Community Team,Physical Support,HOME CARE - PRIVATE CONTRACTORS PAYMENT
http://opendatacommunities.org/doc/london-borough-council/havering,London Borough of Havering,22/01/2016,475.84,JAN2016L1148,Home Support Services (Havering & Essex) Ltd_a,"Children, Adults & Housing",Adult Services,Adult Community Team,Physical Support,HOME CARE - PRIVATE CONTRACTORS PAYMENT
http://opendatacommunities.org/doc/london-borough-council/havering,London Borough of Havering,22/01/2016,525.14,JAN2016L1149,Home Support Services (Havering & Essex) Ltd_a,"Children, Adults & Housing",Adult Services,Adult Community Team,Physical Support,HOME CARE - PRIVATE CONTRACTORS PAYMENT
http://opendatacommunities.org/doc/london-borough-council/havering,London Borough of Havering,08/01/2016,2033.96,JAN2016L1150,Havering Care Homes Ltd t/a Upminster Nursing Home_a,"Children, Adults & Housing",Adult Services,Adult Community Team,Physical Support,NURSING HOMES - PRIVATE CONTRACTORS PAYMENT
http://opendatacommunities.org/doc/london-borough-council/havering,London Borough of Havering,08/01/2016,1970.92,JAN2016L1151,Havering Care Homes Ltd t/a Upminster Nursing Home_a,"Children, Adults & Housing",Adult Services,Adult Community Team,Physical Support,NURSING HOMES - PRIVATE CONTRACTORS PAYMENT
http://opendatacommunities.org/doc/london-borough-council/havering,London Borough of Havering,08/01/2016,1970.92,JAN2016L1152,Havering Care Homes Ltd t/a Upminster Nursing Home_a,"Children, Adults & Housing",Adult Services,Adult Community Team,Physical Support,NURSING HOMES - PRIVATE CONTRACTORS PAYMENT
http://opendatacommunities.org/doc/london-borough-council/havering,London Borough of Havering,08/01/2016,-505.20,JAN2016L1153,Havering Care Homes Ltd t/a Upminster Nursing Home_a,"Children, Adults & Housing",Adult Services,Adult Community Team,Physical Support,RESIDENTIAL CARE INCOME
http://opendatacommunities.org/doc/london-borough-council/havering,London Borough of Havering,08/01/2016,1849.04,JAN2016L1154,Havering Care Homes Ltd t/a Upminster Nursing Home_a,"Children, Adults & Housing",Adult Services,Adult Community Team,Physical Support,RESIDENTIAL PLACEMENTS - PRIVATE CONTRACTORS PAYMENT
http://opendatacommunities.org/doc/london-borough-council/havering,London Borough of Havering,08/01/2016,-574.28,JAN2016L1155,Parkside_a,"Children, Adults & Housing",Adult Services,Adult Community Team,Support with Memory & Cognition,RESIDENTIAL CARE INCOME
http://opendatacommunities.org/doc/london-borough-council/havering,London Borough of Havering,08/01/2016,2139.04,JAN2016L1156,Parkside_a,"Children, Adults & Housing",Adult Services,Adult Community Team,Support with Memory & Cognition,RESIDENTIAL PLACEMENTS - PRIVATE CONTRACTORS PAYMENT
http://opendatacommunities.org/doc/london-borough-council/havering,London Borough of Havering,08/01/2016,-628.96,JAN2016L1157,Parkside_a,"Children, Adults & Housing",Adult Services,Adult Community Team,Support with Memory & Cognition,RESIDENTIAL CARE INCOME
http://opendatacommunities.org/doc/london-borough-council/havering,London Borough of Havering,08/01/2016,1849.04,JAN2016L1158,Parkside_a,"Children, Adults & Housing",Adult Services,Adult Community Team,Support with Memory & Cognition,RESIDENTIAL PLACEMENTS - PRIVATE CONTRACTORS PAYMENT
http://opendatacommunities.org/doc/london-borough-council/havering,London Borough of Havering,08/01/2016,-543.96,JAN2016L1159,Parkside_a,"Children, Adults & Housing",Adult Services,Adult Community Team,Physical Support,RESIDENTIAL CARE INCOME
http://opendatacommunities.org/doc/london-borough-council/havering,London Borough of Havering,08/01/2016,1849.04,JAN2016L1160,Parkside_a,"Children, Adults & Housing",Adult Services,Adult Community Team,Physical Support,RESIDENTIAL PLACEMENTS - PRIVATE CONTRACTORS PAYMENT
http://opendatacommunities.org/doc/london-borough-council/havering,London Borough of Havering,08/01/2016,-693.04,JAN2016L1161,Parkside_a,"Children, Adults & Housing",Adult Services,Adult Community Team,Support with Memory & Cognition,RESIDENTIAL CARE INCOME
http://opendatacommunities.org/doc/london-borough-council/havering,London Borough of Havering,08/01/2016,2139.04,JAN2016L1162,Parkside_a,"Children, Adults & Housing",Adult Services,Adult Community Team,Support with Memory & Cognition,RESIDENTIAL PLACEMENTS - PRIVATE CONTRACTORS PAYMENT
http://opendatacommunities.org/doc/london-borough-council/havering,London Borough of Havering,08/01/2016,-971.04,JAN2016L1163,Parkside_a,"Children, Adults & Housing",Adult Services,Adult Community Team,Physical Support,NURSING CARE INCOME
http://opendatacommunities.org/doc/london-borough-council/havering,London Borough of Havering,08/01/2016,2139.04,JAN2016L1164,Parkside_a,"Children, Adults & Housing",Adult Services,Adult Community Team,Physical Support,NURSING HOMES - PRIVATE CONTRACTORS PAYMENT
http://opendatacommunities.org/doc/london-borough-council/havering,London Borough of Havering,08/01/2016,2226.00,JAN2016L1165,Scope_a,"Children, Adults & Housing",Adult Services,Adult Community Team,Physical Support,RESIDENTIAL PLACEMENTS - PRIVATE CONTRACTORS PAYMENT
http://opendatacommunities.org/doc/london-borough-council/havering,London Borough of Havering,08/01/2016,2226.00,JAN2016L1166,Scope_a,"Children, Adults & Housing",Adult Services,Learning Disabilities,Learning Disability Support,RESIDENTIAL PLACEMENTS - PRIVATE CONTRACTORS PAYMENT
http://opendatacommunities.org/doc/london-borough-council/havering,London Borough of Havering,19/01/2016,5637.97,JAN2016L1167,Integrated Services Programme_a,"Children, Adults & Housing",Adult Services,Learning Disabilities,Learning Disability Support,HOME CARE - PRIVATE CONTRACTORS PAYMENT
http://opendatacommunities.org/doc/london-borough-council/havering,London Borough of Havering,08/01/2016,3708.00,JAN2016L1169,Barchester Healthcare Ltd - Park View Care Home_a,"Children, Adults & Housing",Mental Health,Mental Health - Non Section 75,Mental Health Support,NURSING HOMES - PRIVATE CONTRACTORS PAYMENT
http://opendatacommunities.org/doc/london-borough-council/havering,London Borough of Havering,08/01/2016,-741.28,JAN2016L1170,Barchester Healthcare Ltd - Park View Care Home_a,"Children, Adults & Housing",Adult Services,Adult Community Team,Physical Support,NURSING CARE INCOME
http://opendatacommunities.org/doc/london-borough-council/havering,London Borough of Havering,08/01/2016,3740.84,JAN2016L1171,Barchester Healthcare Ltd - Park View Care Home_a,"Children, Adults & Housing",Adult Services,Adult Community Team,Physical Support,NURSING HOMES - PRIVATE CONTRACTORS PAYMENT
http://opendatacommunities.org/doc/london-borough-council/havering,London Borough of Havering,08/01/2016,-556.44,JAN2016L1172,Barchester Healthcare Ltd - Park View Care Home_a,"Children, Adults & Housing",Adult Services,Adult Community Team,Physical Support,RESIDENTIAL CARE INCOME
http://opendatacommunities.org/doc/london-borough-council/havering,London Borough of Havering,08/01/2016,2417.64,JAN2016L1173,Barchester Healthcare Ltd - Park View Care Home_a,"Children, Adults & Housing",Adult Services,Adult Community Team,Physical Support,RESIDENTIAL PLACEMENTS - PRIVATE CONTRACTORS PAYMENT
http://opendatacommunities.org/doc/london-borough-council/havering,London Borough of Havering,08/01/2016,-1131.68,JAN2016L1174,Barchester Healthcare Ltd - Park View Care Home_a,"Children, Adults & Housing",Adult Services,Adult Community Team,Support for Social Isolation - Other,RESIDENTIAL CARE INCOME
http://opendatacommunities.org/doc/london-borough-council/havering,London Borough of Havering,08/01/2016,2139.04,JAN2016L1175,Barchester Healthcare Ltd - Park View Care Home_a,"Children, Adults & Housing",Adult Services,Adult Community Team,Support for Social Isolation - Other,RESIDENTIAL PLACEMENTS - PRIVATE CONTRACTORS PAYMENT
http://opendatacommunities.org/doc/london-borough-council/havering,London Borough of Havering,08/01/2016,-1361.33,JAN2016L1176,Barchester Healthcare Ltd - Park View Care Home_a,"Children, Adults & Housing",Adult Services,Adult Community Team,Physical Support,NURSING HOMES - PRIVATE CONTRACTORS PAYMENT
http://opendatacommunities.org/doc/london-borough-council/havering,London Borough of Havering,08/01/2016,7065.40,JAN2016L1177,Bramerton Care Home - Community Homes of Intensive Care and Education Ltd_a,"Children, Adults & Housing",Adult Services,Learning Disabilities,Learning Disability Support,RESIDENTIAL PLACEMENTS - PRIVATE CONTRACTORS PAYMENT
http://opendatacommunities.org/doc/london-borough-council/havering,London Borough of Havering,08/01/2016,2033.96,JAN2016L1180,Lukka Care Homes Ltd - Ravenscourt_a,"Children, Adults & Housing",Adult Services,Adult Community Team,Physical Support,NURSING HOMES - PRIVATE CONTRACTORS PAYMENT
http://opendatacommunities.org/doc/london-borough-council/havering,London Borough of Havering,08/01/2016,2033.96,JAN2016L1181,Lukka Care Homes Ltd - Ravenscourt_a,"Children, Adults & Housing",Adult Services,Adult Community Team,Physical Support,NURSING HOMES - PRIVATE CONTRACTORS PAYMENT
http://opendatacommunities.org/doc/london-borough-council/havering,London Borough of Havering,08/01/2016,2033.96,JAN2016L1182,Lukka Care Homes Ltd - Ravenscourt_a,"Children, Adults & Housing",Adult Services,Adult Community Team,Support with Memory & Cognition,NURSING HOMES - PRIVATE CONTRACTORS PAYMENT
http://opendatacommunities.org/doc/london-borough-council/havering,London Borough of Havering,08/01/2016,2033.96,JAN2016L1183,Lukka Care Homes Ltd - Ravenscourt_a,"Children, Adults & Housing",Adult Services,Adult Community Team,Support with Memory & Cognition,NURSING HOMES - PRIVATE CONTRACTORS PAYMENT
http://opendatacommunities.org/doc/london-borough-council/havering,London Borough of Havering,08/01/2016,1970.92,JAN2016L1184,Lukka Care Homes Ltd - Ravenscourt_a,"Children, Adults & Housing",Adult Services,Adult Community Team,Physical Support,NURSING HOMES - PRIVATE CONTRACTORS PAYMENT
http://opendatacommunities.org/doc/london-borough-council/havering,London Borough of Havering,08/01/2016,2033.96,JAN2016L1185,Lukka Care Homes Ltd - Ravenscourt_a,"Children, Adults & Housing",Adult Services,Adult Community Team,Physical Support,NURSING HOMES - PRIVATE CONTRACTORS PAYMENT
http://opendatacommunities.org/doc/london-borough-council/havering,London Borough of Havering,08/01/2016,2071.80,JAN2016L1186,Lukka Care Homes Ltd - Ravenscourt_a,"Children, Adults & Housing",Adult Services,Adult Community Team,Physical Support,NURSING HOMES - PRIVATE CONTRACTORS PAYMENT
http://opendatacommunities.org/doc/london-borough-council/havering,London Borough of Havering,08/01/2016,2139.04,JAN2016L1187,Lukka Care Homes Ltd - Ravenscourt_a,"Children, Adults & Housing",Adult Services,Adult Community Team,Support with Memory & Cognition,RESIDENTIAL PLACEMENTS - PRIVATE CONTRACTORS PAYMENT
http://opendatacommunities.org/doc/london-borough-council/havering,London Borough of Havering,08/01/2016,2139.04,JAN2016L1188,Lukka Care Homes Ltd - Ravenscourt_a,"Children, Adults & Housing",Adult Services,Adult Community Team,Physical Support,RESIDENTIAL PLACEMENTS - PRIVATE CONTRACTORS PAYMENT
http://opendatacommunities.org/doc/london-borough-council/havering,London Borough of Havering,08/01/2016,2139.04,JAN2016L1189,Lukka Care Homes Ltd - Ravenscourt_a,"Children, Adults & Housing",Adult Services,Adult Community Team,Support with Memory & Cognition,RESIDENTIAL PLACEMENTS - PRIVATE CONTRACTORS PAYMENT
http://opendatacommunities.org/doc/london-borough-council/havering,London Borough of Havering,08/01/2016,2033.96,JAN2016L1190,Lukka Care Homes Ltd - Ravenscourt_a,"Children, Adults & Housing",Adult Services,Adult Community Team,Physical Support,NURSING HOMES - PRIVATE CONTRACTORS PAYMENT
http://opendatacommunities.org/doc/london-borough-council/havering,London Borough of Havering,08/01/2016,2033.96,JAN2016L1191,Lukka Care Homes Ltd - Ravenscourt_a,"Children, Adults & Housing",Adult Services,Adult Community Team,Physical Support,NURSING HOMES - PRIVATE CONTRACTORS PAYMENT
http://opendatacommunities.org/doc/london-borough-council/havering,London Borough of Havering,08/01/2016,2752.00,JAN2016L1192,Lukka Care Homes Ltd - Ravenscourt_a,"Children, Adults & Housing",Adult Services,Adult Community Team,Physical Support,NURSING HOMES - PRIVATE CONTRACTORS PAYMENT
http://opendatacommunities.org/doc/london-borough-council/havering,London Borough of Havering,08/01/2016,-679.08,JAN2016L1193,Lukka Care Homes Ltd - Ravenscourt_a,"Children, Adults & Housing",Adult Services,Adult Community Team,Physical Support,NURSING CARE INCOME
http://opendatacommunities.org/doc/london-borough-council/havering,London Borough of Havering,08/01/2016,1970.92,JAN2016L1194,Lukka Care Homes Ltd - Ravenscourt_a,"Children, Adults & Housing",Adult Services,Adult Community Team,Physical Support,NURSING HOMES - PRIVATE CONTRACTORS PAYMENT
http://opendatacommunities.org/doc/london-borough-council/havering,London Borough of Havering,08/01/2016,-505.20,JAN2016L1195,Lukka Care Homes Ltd - Ravenscourt_a,"Children, Adults & Housing",Adult Services,Adult Community Team,Physical Support,NURSING CARE INCOME
http://opendatacommunities.org/doc/london-borough-council/havering,London Borough of Havering,08/01/2016,1970.92,JAN2016L1196,Lukka Care Homes Ltd - Ravenscourt_a,"Children, Adults & Housing",Adult Services,Adult Community Team,Physical Support,NURSING HOMES - PRIVATE CONTRACTORS PAYMENT
http://opendatacommunities.org/doc/london-borough-council/havering,London Borough of Havering,08/01/2016,-507.52,JAN2016L1197,Lukka Care Homes Ltd - Ravenscourt_a,"Children, Adults & Housing",Adult Services,Adult Community Team,Physical Support,NURSING CARE INCOME
http://opendatacommunities.org/doc/london-borough-council/havering,London Borough of Havering,08/01/2016,1970.92,JAN2016L1198,Lukka Care Homes Ltd - Ravenscourt_a,"Children, Adults & Housing",Adult Services,Adult Community Team,Physical Support,NURSING HOMES - PRIVATE CONTRACTORS PAYMENT
http://opendatacommunities.org/doc/london-borough-council/havering,London Borough of Havering,08/01/2016,-505.20,JAN2016L1199,Lukka Care Homes Ltd - Ravenscourt_a,"Children, Adults & Housing",Adult Services,Adult Community Team,Support with Memory & Cognition,NURSING CARE INCOME
http://opendatacommunities.org/doc/london-borough-council/havering,London Borough of Havering,08/01/2016,2033.96,JAN2016L1200,Lukka Care Homes Ltd - Ravenscourt_a,"Children, Adults & Housing",Adult Services,Adult Community Team,Support with Memory & Cognition,NURSING HOMES - PRIVATE CONTRACTORS PAYMENT
http://opendatacommunities.org/doc/london-borough-council/havering,London Borough of Havering,08/01/2016,-473.20,JAN2016L1201,Lukka Care Homes Ltd - Ravenscourt_a,"Children, Adults & Housing",Adult Services,Adult Community Team,Physical Support,NURSING CARE INCOME
http://opendatacommunities.org/doc/london-borough-council/havering,London Borough of Havering,08/01/2016,2033.96,JAN2016L1202,Lukka Care Homes Ltd - Ravenscourt_a,"Children, Adults & Housing",Adult Services,Adult Community Team,Physical Support,NURSING HOMES - PRIVATE CONTRACTORS PAYMENT
http://opendatacommunities.org/doc/london-borough-council/havering,London Borough of Havering,08/01/2016,-627.92,JAN2016L1203,Lukka Care Homes Ltd - Ravenscourt_a,"Children, Adults & Housing",Adult Services,Adult Community Team,Physical Support,NURSING CARE INCOME
http://opendatacommunities.org/doc/london-borough-council/havering,London Borough of Havering,08/01/2016,2033.96,JAN2016L1204,Lukka Care Homes Ltd - Ravenscourt_a,"Children, Adults & Housing",Adult Services,Adult Community Team,Physical Support,NURSING HOMES - PRIVATE CONTRACTORS PAYMENT
http://opendatacommunities.org/doc/london-borough-council/havering,London Borough of Havering,08/01/2016,-501.20,JAN2016L1205,Lukka Care Homes Ltd - Ravenscourt_a,"Children, Adults & Housing",Adult Services,Adult Community Team,Physical Support,NURSING CARE INCOME
http://opendatacommunities.org/doc/london-borough-council/havering,London Borough of Havering,08/01/2016,1970.92,JAN2016L1206,Lukka Care Homes Ltd - Ravenscourt_a,"Children, Adults & Housing",Adult Services,Adult Community Team,Physical Support,NURSING HOMES - PRIVATE CONTRACTORS PAYMENT
http://opendatacommunities.org/doc/london-borough-council/havering,London Borough of Havering,08/01/2016,-892.28,JAN2016L1207,Lukka Care Homes Ltd - Ravenscourt_a,"Children, Adults & Housing",Adult Services,Adult Community Team,Physical Support,NURSING CARE INCOME
http://opendatacommunities.org/doc/london-borough-council/havering,London Borough of Havering,08/01/2016,1970.92,JAN2016L1208,Lukka Care Homes Ltd - Ravenscourt_a,"Children, Adults & Housing",Adult Services,Adult Community Team,Physical Support,NURSING HOMES - PRIVATE CONTRACTORS PAYMENT
http://opendatacommunities.org/doc/london-borough-council/havering,London Borough of Havering,08/01/2016,-505.20,JAN2016L1209,Lukka Care Homes Ltd - Ravenscourt_a,"Children, Adults & Housing",Adult Services,Adult Community Team,Physical Support,RESIDENTIAL CARE INCOME
http://opendatacommunities.org/doc/london-borough-council/havering,London Borough of Havering,08/01/2016,2139.04,JAN2016L1210,Lukka Care Homes Ltd - Ravenscourt_a,"Children, Adults & Housing",Adult Services,Adult Community Team,Physical Support,RESIDENTIAL PLACEMENTS - PRIVATE CONTRACTORS PAYMENT
http://opendatacommunities.org/doc/london-borough-council/havering,London Borough of Havering,08/01/2016,-505.20,JAN2016L1211,Lukka Care Homes Ltd - Ravenscourt_a,"Children, Adults & Housing",Adult Services,Adult Community Team,Physical Support,NURSING CARE INCOME
http://opendatacommunities.org/doc/london-borough-council/havering,London Borough of Havering,08/01/2016,2033.96,JAN2016L1212,Lukka Care Homes Ltd - Ravenscourt_a,"Children, Adults & Housing",Adult Services,Adult Community Team,Physical Support,NURSING HOMES - PRIVATE CONTRACTORS PAYMENT
http://opendatacommunities.org/doc/london-borough-council/havering,London Borough of Havering,08/01/2016,-528.96,JAN2016L1213,Lukka Care Homes Ltd - Ravenscourt_a,"Children, Adults & Housing",Adult Services,Adult Community Team,Physical Support,RESIDENTIAL CARE INCOME
http://opendatacommunities.org/doc/london-borough-council/havering,London Borough of Havering,08/01/2016,2139.04,JAN2016L1214,Lukka Care Homes Ltd - Ravenscourt_a,"Children, Adults & Housing",Adult Services,Adult Community Team,Physical Support,RESIDENTIAL PLACEMENTS - PRIVATE CONTRACTORS PAYMENT
http://opendatacommunities.org/doc/london-borough-council/havering,London Borough of Havering,08/01/2016,-1564.84,JAN2016L1215,Lukka Care Homes Ltd - Ravenscourt_a,"Children, Adults & Housing",Adult Services,Adult Community Team,Physical Support,RESIDENTIAL CARE INCOME
http://opendatacommunities.org/doc/london-borough-council/havering,London Borough of Havering,08/01/2016,2139.04,JAN2016L1216,Lukka Care Homes Ltd - Ravenscourt_a,"Children, Adults & Housing",Adult Services,Adult Community Team,Physical Support,RESIDENTIAL PLACEMENTS - PRIVATE CONTRACTORS PAYMENT
http://opendatacommunities.org/doc/london-borough-council/havering,London Borough of Havering,08/01/2016,-505.20,JAN2016L1217,Lukka Care Homes Ltd - Ravenscourt_a,"Children, Adults & Housing",Adult Services,Adult Community Team,Physical Support,NURSING CARE INCOME
http://opendatacommunities.org/doc/london-borough-council/havering,London Borough of Havering,08/01/2016,2033.96,JAN2016L1218,Lukka Care Homes Ltd - Ravenscourt_a,"Children, Adults & Housing",Adult Services,Adult Community Team,Physical Support,NURSING HOMES - PRIVATE CONTRACTORS PAYMENT
http://opendatacommunities.org/doc/london-borough-council/havering,London Borough of Havering,08/01/2016,-489.20,JAN2016L1219,Lukka Care Homes Ltd - Ravenscourt_a,"Children, Adults & Housing",Adult Services,Adult Community Team,Support with Memory & Cognition,NURSING CARE INCOME
http://opendatacommunities.org/doc/london-borough-council/havering,London Borough of Havering,08/01/2016,2033.96,JAN2016L1220,Lukka Care Homes Ltd - Ravenscourt_a,"Children, Adults & Housing",Adult Services,Adult Community Team,Support with Memory & Cognition,NURSING HOMES - PRIVATE CONTRACTORS PAYMENT
http://opendatacommunities.org/doc/london-borough-council/havering,London Borough of Havering,08/01/2016,2139.04,JAN2016L1221,**Redacted Personal Data**,"Children, Adults & Housing",Adult Services,Adult Community Team,Physical Support,RESIDENTIAL PLACEMENTS - PRIVATE CONTRACTORS PAYMENT
http://opendatacommunities.org/doc/london-borough-council/havering,London Borough of Havering,08/01/2016,1849.04,JAN2016L1222,**Redacted Personal Data**,"Children, Adults & Housing",Adult Services,Adult Community Team,Physical Support,RESIDENTIAL PLACEMENTS - PRIVATE CONTRACTORS PAYMENT
http://opendatacommunities.org/doc/london-borough-council/havering,London Borough of Havering,08/01/2016,2139.04,JAN2016L1223,**Redacted Personal Data**,"Children, Adults & Housing",Adult Services,Adult Community Team,Physical Support,RESIDENTIAL PLACEMENTS - PRIVATE CONTRACTORS PAYMENT
http://opendatacommunities.org/doc/london-borough-council/havering,London Borough of Havering,08/01/2016,2139.04,JAN2016L1224,**Redacted Personal Data**,"Children, Adults & Housing",Adult Services,Adult Community Team,Physical Support,RESIDENTIAL PLACEMENTS - PRIVATE CONTRACTORS PAYMENT
http://opendatacommunities.org/doc/london-borough-council/havering,London Borough of Havering,08/01/2016,-555.12,JAN2016L1225,**Redacted Personal Data**,"Children, Adults & Housing",Adult Services,Adult Community Team,Sensory Support,RESIDENTIAL CARE INCOME
http://opendatacommunities.org/doc/london-borough-council/havering,London Borough of Havering,08/01/2016,1849.04,JAN2016L1226,**Redacted Personal Data**,"Children, Adults & Housing",Adult Services,Adult Community Team,Sensory Support,RESIDENTIAL PLACEMENTS - PRIVATE CONTRACTORS PAYMENT
http://opendatacommunities.org/doc/london-borough-council/havering,London Borough of Havering,08/01/2016,-516.84,JAN2016L1227,**Redacted Personal Data**,"Children, Adults & Housing",Adult Services,Adult Community Team,Physical Support,RESIDENTIAL CARE INCOME
http://opendatacommunities.org/doc/london-borough-council/havering,London Borough of Havering,08/01/2016,1849.04,JAN2016L1228,**Redacted Personal Data**,"Children, Adults & Housing",Adult Services,Adult Community Team,Physical Support,RESIDENTIAL PLACEMENTS - PRIVATE CONTRACTORS PAYMENT
http://opendatacommunities.org/doc/london-borough-council/havering,London Borough of Havering,08/01/2016,-556.12,JAN2016L1229,**Redacted Personal Data**,"Children, Adults & Housing",Adult Services,Adult Community Team,Physical Support,RESIDENTIAL CARE INCOME
http://opendatacommunities.org/doc/london-borough-council/havering,London Borough of Havering,08/01/2016,2139.04,JAN2016L1230,**Redacted Personal Data**,"Children, Adults & Housing",Adult Services,Adult Community Team,Physical Support,RESIDENTIAL PLACEMENTS - PRIVATE CONTRACTORS PAYMENT
http://opendatacommunities.org/doc/london-borough-council/havering,London Borough of Havering,08/01/2016,-645.20,JAN2016L1231,**Redacted Personal Data**,"Children, Adults & Housing",Adult Services,Adult Community Team,Support with Memory & Cognition,RESIDENTIAL CARE INCOME
http://opendatacommunities.org/doc/london-borough-council/havering,London Borough of Havering,08/01/2016,2139.04,JAN2016L1232,**Redacted Personal Data**,"Children, Adults & Housing",Adult Services,Adult Community Team,Support with Memory & Cognition,RESIDENTIAL PLACEMENTS - PRIVATE CONTRACTORS PAYMENT
http://opendatacommunities.org/doc/london-borough-council/havering,London Borough of Havering,08/01/2016,-511.20,JAN2016L1233,**Redacted Personal Data**,"Children, Adults & Housing",Adult Services,Adult Community Team,Physical Support,RESIDENTIAL CARE INCOME
http://opendatacommunities.org/doc/london-borough-council/havering,London Borough of Havering,08/01/2016,2139.04,JAN2016L1234,**Redacted Personal Data**,"Children, Adults & Housing",Adult Services,Adult Community Team,Physical Support,RESIDENTIAL PLACEMENTS - PRIVATE CONTRACTORS PAYMENT
http://opendatacommunities.org/doc/london-borough-council/havering,London Borough of Havering,08/01/2016,924.42,JAN2016L1235,**Redacted Personal Data**,"Children, Adults & Housing",Adult Services,Adult Community Team,Physical Support,RESPITE CARE - PRIVATE CONTRACTORS PAYMENT
http://opendatacommunities.org/doc/london-borough-council/havering,London Borough of Havering,08/01/2016,2690.64,JAN2016L1236,Brook Care Home_a,"Children, Adults & Housing",Mental Health,Mental Health - Non Section 75,Mental Health Support,RESIDENTIAL PLACEMENTS - PRIVATE CONTRACTORS PAYMENT
http://opendatacommunities.org/doc/london-borough-council/havering,London Borough of Havering,25/01/2016,3454.08,JAN2016L1237,**Redacted Personal Data**,"Children, Adults & Housing",Adult Services,Learning Disabilities,Learning Disability Support,DIRECT PAYMENTS
http://opendatacommunities.org/doc/london-borough-council/havering,London Borough of Havering,08/01/2016,1970.92,JAN2016L1238,Cranham Court Nursing Home_a,"Children, Adults & Housing",Adult Services,Adult Community Team,Physical Support,NURSING HOMES - PRIVATE CONTRACTORS PAYMENT
http://opendatacommunities.org/doc/london-borough-council/havering,London Borough of Havering,08/01/2016,2612.04,JAN2016L1239,Cranham Court Nursing Home_a,"Children, Adults & Housing",Adult Services,Adult Community Team,Physical Support,NURSING HOMES - PRIVATE CONTRACTORS PAYMENT
http://opendatacommunities.org/doc/london-borough-council/havering,London Borough of Havering,08/01/2016,2033.96,JAN2016L1240,Cranham Court Nursing Home_a,"Children, Adults & Housing",Adult Services,Adult Community Team,Physical Support,NURSING HOMES - PRIVATE CONTRACTORS PAYMENT
http://opendatacommunities.org/doc/london-borough-council/havering,London Borough of Havering,08/01/2016,2033.96,JAN2016L1241,Cranham Court Nursing Home_a,"Children, Adults & Housing",Adult Services,Adult Community Team,Physical Support,NURSING HOMES - PRIVATE CONTRACTORS PAYMENT
http://opendatacommunities.org/doc/london-borough-council/havering,London Borough of Havering,08/01/2016,1970.92,JAN2016L1242,Cranham Court Nursing Home_a,"Children, Adults & Housing",Adult Services,Adult Community Team,Physical Support,NURSING HOMES - PRIVATE CONTRACTORS PAYMENT
http://opendatacommunities.org/doc/london-borough-council/havering,London Borough of Havering,08/01/2016,2490.76,JAN2016L1243,Cranham Court Nursing Home_a,"Children, Adults & Housing",Adult Services,Adult Community Team,Physical Support,RESIDENTIAL PLACEMENTS - PRIVATE CONTRACTORS PAYMENT
http://opendatacommunities.org/doc/london-borough-council/havering,London Borough of Havering,08/01/2016,2033.96,JAN2016L1244,Cranham Court Nursing Home_a,"Children, Adults & Housing",Adult Services,Adult Community Team,Physical Support,NURSING HOMES - PRIVATE CONTRACTORS PAYMENT
http://opendatacommunities.org/doc/london-borough-council/havering,London Borough of Havering,08/01/2016,1922.05,JAN2016L1245,Cranham Court Nursing Home_a,"Children, Adults & Housing",Adult Services,Adult Community Team,Physical Support,NURSING CARE INCOME
http://opendatacommunities.org/doc/london-borough-council/havering,London Borough of Havering,08/01/2016,1970.92,JAN2016L1246,Cranham Court Nursing Home_a,"Children, Adults & Housing",Adult Services,Adult Community Team,Physical Support,NURSING HOMES - PRIVATE CONTRACTORS PAYMENT
http://opendatacommunities.org/doc/london-borough-council/havering,London Borough of Havering,08/01/2016,-901.40,JAN2016L1247,Cranham Court Nursing Home_a,"Children, Adults & Housing",Adult Services,Adult Community Team,Physical Support,NURSING CARE INCOME
http://opendatacommunities.org/doc/london-borough-council/havering,London Borough of Havering,08/01/2016,2033.96,JAN2016L1248,Cranham Court Nursing Home_a,"Children, Adults & Housing",Adult Services,Adult Community Team,Physical Support,NURSING HOMES - PRIVATE CONTRACTORS PAYMENT
http://opendatacommunities.org/doc/london-borough-council/havering,London Borough of Havering,08/01/2016,-505.20,JAN2016L1249,Cranham Court Nursing Home_a,"Children, Adults & Housing",Adult Services,Adult Community Team,Physical Support,RESIDENTIAL CARE INCOME
http://opendatacommunities.org/doc/london-borough-council/havering,London Borough of Havering,08/01/2016,2139.04,JAN2016L1250,Cranham Court Nursing Home_a,"Children, Adults & Housing",Adult Services,Adult Community Team,Physical Support,RESIDENTIAL PLACEMENTS - PRIVATE CONTRACTORS PAYMENT
http://opendatacommunities.org/doc/london-borough-council/havering,London Borough of Havering,08/01/2016,-505.20,JAN2016L1251,Cranham Court Nursing Home_a,"Children, Adults & Housing",Adult Services,Adult Community Team,Physical Support,NURSING CARE INCOME
http://opendatacommunities.org/doc/london-borough-council/havering,London Borough of Havering,08/01/2016,1970.92,JAN2016L1252,Cranham Court Nursing Home_a,"Children, Adults & Housing",Adult Services,Adult Community Team,Physical Support,NURSING HOMES - PRIVATE CONTRACTORS PAYMENT
http://opendatacommunities.org/doc/london-borough-council/havering,London Borough of Havering,08/01/2016,-505.20,JAN2016L1253,Cranham Court Nursing Home_a,"Children, Adults & Housing",Adult Services,Adult Community Team,Support with Memory & Cognition,NURSING CARE INCOME
http://opendatacommunities.org/doc/london-borough-council/havering,London Borough of Havering,08/01/2016,2033.96,JAN2016L1254,Cranham Court Nursing Home_a,"Children, Adults & Housing",Adult Services,Adult Community Team,Support with Memory & Cognition,NURSING HOMES - PRIVATE CONTRACTORS PAYMENT
http://opendatacommunities.org/doc/london-borough-council/havering,London Borough of Havering,08/01/2016,-754.48,JAN2016L1255,Cranham Court Nursing Home_a,"Children, Adults & Housing",Adult Services,Adult Community Team,Physical Support,RESIDENTIAL CARE INCOME
http://opendatacommunities.org/doc/london-borough-council/havering,London Borough of Havering,08/01/2016,2139.04,JAN2016L1256,Cranham Court Nursing Home_a,"Children, Adults & Housing",Adult Services,Adult Community Team,Physical Support,RESIDENTIAL PLACEMENTS - PRIVATE CONTRACTORS PAYMENT
